Workbook

Sheet Contract Info
A1: SuperManager v3.23 SEKI
B2: Aircraft Contract Information
B3: Tail Number | D3: N836TJ
B4: Make and Model | D4: Airbus H-125
B5: Type (1, 2 or 3) | D5: 3
B6: ARA# or contract number - Item # | D6: 140D8021D0666
B7: Aircraft designated base | D7: Asher Hill Helibase
B8: Contractor Name | D8: Butterfly Airways, Inc.
B9: Contractor Address | D9: S Hwy 64 Tusama , Canyon, MT 86040
B10: Contractor Phone Number | D10: 928-638-9010
B11: Contractor Email Address | D11: jerry@butterfly.com
B12: Contractor Contact Name | D12: Jerry Stiller
B13: Contractor Contact Phone Number | D13: 480-888-6484
B14: Contracting Officer Representative | D14: Marissa Terez
B15: Contracting Officer Rep. Phone | D15: 559-565-8888 | E15: 559-269-66566
B16: Contracting Officer | D16: Shavonda Jamison
B17: Contracting Officer Phone | D17: 202-618-7777
B18: Flight Rate (hourly) | D18: 1375 | E18: 1475 | F18: 1575
B19: Availability | D19: 3095 | E19: 3195 | F19: 3295
B20: Availabilty/Hour | D20: =IF($D22>0,(D19/$D22),"") -> 386.875 | E20: =IF($D22>0,(E19/$D22),"") -> 399.375 | F20: =IF($D22>0,(F19/$D22),"") -> 411.875
B21: Flight Hours Guarantee | D21: 0
B22: Hours for full aircraft availability | D22: 8
B23: # of hours afterwhich extended begins | D23: 9
B24: Fuel Truck mileage rate | D24: 2.45 | E24: 3.28 | F24: 4.55
B25: Extended Pilot Rate | D25: 52 | E25: 53 | F25: 54
B26: Extended Driver Rate | D26: 37 | E26: 38 | F26: 39
B27: Extended Mechanic Rate | D27: 57 | E27: 58 | F27: 59.59
B28: Extended Additional Crew Rate | D28: 0 | E28: 5 | F28: 10
B30: Burn Rate (gal/hr) | D30: 40
B31: longlines available
B32: Equipped wt. (w/o lines, hook etc.)
B34: Default Charge Code | D34: PF.FPAMG1055.00.1
B35: Default Billee Code | D35: 5060
B36: Aircraft Incident/Project Order #
B37: Aircraft Request #
B38: Maximum NPS Overtime Hourly Rate | D38: 46.34 | E38: This field is used in the calculation of personnel costs in daily Aviation Personnel Cost Summaries
B39: user optional fields
E47: =A1 -> SuperManager v3.23 SEKI | F47: 2023-05-11

Sheet Task Order Totals
B2: Task Order | E2: 140D8021F0399 | N2: 140D8021FP015 | AH2: =B2 -> Task Order | AL2: Days or partial days spent at each unit
B3: Line Item | E3: Avail Ln10 | F3: Fire Ln20 | G3: SAR Ln30 | H3: Fire Ln40 | I3: SAR Ln50 | J3: Fire Ln60 | K3: SAR Ln70 | L3: Fire Ln80 | M3: SAR Ln90 | N3: Ln 10 | O3: Ln 20 | P3: Ln 30 | Q3: Ln 40 | R3: Ln 50 | S3: Ln 60 | T3: Ln 70 | U3: Ln 80 | V3: Ln 90 | W3: Ln 100 | X3: Ln 110 | Y3: Ln 120 | Z3: Ln 130 | AA3: Ln 140 | AB3: Ln 150 | AC3: Ln 160 | AD3: Ln 170 | AE3: Ln 180 | AH3: Line Item
B4: Project | E4: National SAR AV | F4: Fire Accounts (includes severity) | G4: Major SAR Accounts | H4: Major SAR Accounts2 | N4: MORA Aviation Base Training | O4: MORA Climb Cost Recovery | P4: NOCA ABANDONED MINE LANDS | Q4: NOCA DESOLATION LOOKOUT | R4: NOCA WILDERNESS TOILETS | S4: NOCA FIRE PREPARED-NESS | T4: OLYM Training A | U4: OLYM Training B | V4: PWR Short-haul funding FAM round 2 | W4: NOCA Mt Lakes WQ | X4: NOCA Fish Management | Y4: MORA Carpenter Muir Toilet | Z4: MORA BC Maint A | AA4: MORA BC Maint B | AB4: MORA Maint Golden Lakes | AC4: MORA Climb Cost Recovery | AH4: Project | AL4: MORA | AM4: NOCA | AN4: OLYM | AO4: MBS | AP4: other
B5: Owner Email | E5: shad_sitz@nps.gov | F5: danica_colly@nps.gov | G5: shad_sitz@nps.gov | N5: glenn_kesler@nps.gov | O5: stefan_lofgren@nps.gov | P5: aaron_robinson@nps.gov | Q5: aaron_robinson@nps.gov | R5: aaron_robinson@nps.gov | S5: aaron_robinson@nps.gov | T5: michael.roos@usda.gov | U5: michael.roos@usda.gov | V5: shad_sitz@nps.gov | W5: hugh_anthony@nps.gov | X5: hugh_anthony@nps.gov | Y5: mitch_anderson@nps.gov | Z5: james_montgomery@nps.gov | AA5: james_montgomery@nps.gov | AB5: jane_ziolkowski@nps.gov | AC5: stefan_lofgren@nps.gov | AH5: Owner Email | AL5: =SUM(AL13:AL151) -> 99 | AM5: =SUM(AM13:AM151) -> 55 | AN5: =SUM(AN13:AN151) -> 8 | AO5: =SUM(AO13:AO151) -> 9 | AP5: =SUM(AP13:AP151) -> 0
B6: Account | E6: DR.WHBOI.21NPS158 | F6: PF.FSAMD1021.00.1??. . | G6: EMORA. . . . ENOCA . . | H6: DR.WHBOI.20NPS158 | I6: PF.FSAMD1020.00.1 | J6: DR.WHBOI.20NPS158 | K6: PF.FSAMD1020.00.1 | L6: PF.FSAMD1020.00.1 | M6: DR.WHBOI.20NPS158 | N6: WBS: NONE CC:PPPWMORAV7 FA: PPMPRLE1Z.Y00000 Fund: 211P103601 | O6: WBS: NONE CC: PPPWMORAV0 Fund:211P1036C1 FA:PROIESUC1.380000 | P6: WBS: PH.P0253570A.00.1 CC: PPPWNOCAR0 Fund: 20XP103905 FA: PLCLIAL05.CN0000 | Q6: WBS: PH.P0237810A.00.1 CC: PPPWNOCAM2 Fund: 212P103611 FA: PPMOMFM11.C00000 | R6: WBS: PX.P0184310A.00.1 CC: PPPWNOCA00 Fund: 212P103611 FA: PPMOMFM11.M00000 | S6: WBS: NONE CC: PPPWNOCAF0 Fund: 21XP112585 FA: PF100PP85.Y00000 | T6: WBS: PF.FPPWRYPOP.00.1 CC: PPPWPWROF0 Fund: 21XP112585 FA: PF100PP85.Y00000 | U6: WBS: NONE CC: PPPWOLYMF1 Fund: 21XP112585 FA: PF100PP85.Y00000 | V6: WBS: PF.FAMORAY21.00.1 CC: PPPWMORA00 Fund: XXXP1125C8 FA: PF56161C8.W00000 | W6: WBS: PX.XNCCNM1NM.00.1 CC: PPPWPWIM10 Fund: 211P103601 FA: PPMRSNR1N.AM0000 | X6: WBS: PX.P0258478A.00.1 CC: PPPWMORA00 Fund: 211P103601 FA: PPMRSNR1N.AM0000 | Y6: WBS: PA.P0199531A.00.1 CC: PPPWMORA00 Fund: XXX FA: POPCF8099.XZ0000 | Z6: WBS: PH.P0216730A.00.1 | AA6: WBS: PH.P0217597A.00.1 | AB6: WBS: PH.P0248160A.00.1 | AC6: WBS: NONE CC: PPPWMORAV0 Fund:211P1036C1 FA:PROIESUC1.380000 | AF6: Project Task Order | AG6: All Task Order | AH6: Account
B7: Color of Money | H7: 1-yr | I7: 1-yr | J7: 1-yr | K7: 1-yr | L7: 1-yr | M7: 1-yr | N7: 1-yr | O7: 1-yr | P7: Yr2 of 2-yr (use 1st) | Q7: 2-yr (use 3rd) | R7: 2-yr (use last) | S7: 1-yr | T7: ? | U7: ? | V7: 1-yr | W7: ? | X7: ? | Y7: no-year | Z7: 2-yr 2nd year | AA7: no-year | AB7: ? | AC7: 1-yr | AF7: Totals | AG7: Totals | AH7: Color of Money | AI7: 1-yr | AJ7: 2-year | AK7: no-year
B8: Orig Funded Amt | E8: 471905 | F8: 107050 | G8: 80200 | N8: 35000 | O8: 13000 | P8: 4500 | Q8: 7000 | R8: 8000 | S8: 1500 | T8: 5000 | U8: 300 | V8: 6000 | W8: 6500 | X8: 4000 | Y8: 10000 | Z8: 4500 | AA8: 3000 | AB8: 1293.1 | AC8: 3000 | AF8: =SUM(N8:AD8) -> 112593.1 | AG8: =SUM(E8:AE8) -> 771748.1 | AH8: Orig Funded Amt
B9: Spent | E9: =SUM(E13:E151) -> 430205 | F9: =SUM(F13:F151) -> 0 | G9: =SUM(G13:M151) -> 0 | H9: =SUM(H13:H151) -> 0 | I9: 0 | J9: 0 | K9: 0 | L9: 0 | M9: 0 | N9: 0 | O9: 0 | P9: 0 | Q9: 0 | R9: 0 | S9: 0 | T9: 0 | U9: 0 | V9: 0 | W9: 0 | X9: 0 | Y9: 0 | Z9: 0 | AA9: 0 | AB9: 0 | AC9: 0 | AD9: 0 | AE9: 0 | AF9: =SUM(N9:AD9) -> 0 | AG9: =SUM(E9:AE9) -> 430205 | AH9: Spent
B10: Deobligated | E10: =SUM(E152:E152) -> 0 | F10: 0 | G10: 0 | H10: 0 | I10: 0 | J10: 0 | K10: 0 | L10: 0 | M10: 0 | N10: 11000 | O10: =SUM(O152:O152) -> 0 | P10: =SUM(P152:P152) -> 0 | Q10: 634.3 | R10: 4500 | S10: =SUM(S152:S152) -> 0 | T10: =SUM(T152:T152) -> 0 | U10: 85.8 | V10: =SUM(V152:V152) -> 0 | W10: 3900 | X10: 3208.3 | Y10: =SUM(Y152:Y152) -> 0 | Z10: 0 | AA10: 0 | AB10: 0 | AC10: 0 | AD10: 0 | AE10: 0 | AF10: =SUM(N10:AD10) -> 23328.4 | AG10: =SUM(E10:AE10) -> 23328.4 | AH10: Deobligated | AI10: 2021-09-21 | AJ10: 2021-10-31
B11: Balance | E11: =E8-E9-E10 -> 41700 | F11: =F8-F9-F10 -> 107050 | G11: =G8-G9-G10 -> 80200 | H11: =H8-H9-H10 -> 0 | I11: =I8-I9-I10 -> 0 | J11: =J8-J9-J10 -> 0 | K11: =K8-K9-K10 -> 0 | L11: =L8-L9-L10 -> 0 | M11: 0 | N11: =N8-N9-N10 -> 24000 | O11: 13000 | P11: 4500 | Q11: 6365.7 | R11: =R8-R9-R10 -> 3500 | S11: 1500 | T11: 5000 | U11: 214.2 | V11: 6000 | W11: 2600 | X11: =X8-X9-X10 -> 791.7 | Y11: =Y8-Y9-Y10 -> 10000 | Z11: 4500 | AA11: 3000 | AB11: 1293.1 | AC11: =AC8-AC9-AC10 -> 3000 | AD11: 0 | AE11: 0 | AF11: =SUM(N11:AD11) -> 89264.7 | AG11: =SUM(E11:AE11) -> 318214.7 | AH11: Balance
B13: 2023-05-05 | C13: 1 | E13: ='Contract Info'!$D$19 -> 3095 | AF13: =SUM(N13:AE13) -> 0 | AG13: =SUM(E13:AE13) -> 3095 | AH13: =B13 -> 2023-05-05 | AL13: 1
B14: =B13+1 -> 2023-05-06 | C14: =C13+1 -> 2 | E14: ='Contract Info'!$D$19 -> 3095 | AF14: =SUM(N14:AE14) -> 0 | AG14: =SUM(E14:AE14) -> 3095 | AH14: =B14 -> 2023-05-06 | AL14: 1
B15: =B14+1 -> 2023-05-07 | C15: 3 | E15: ='Contract Info'!$D$19 -> 3095 | AF15: 0 | AG15: 3095 | AH15: 2023-05-07 | AL15: 1
B16: 2023-05-08 | C16: 4 | E16: ='Contract Info'!$D$19 -> 3095 | AF16: 0 | AG16: 3095 | AH16: 2023-05-08 | AL16: 1
B17: 2023-05-09 | C17: 5 | E17: ='Contract Info'!$D$19 -> 3095 | AF17: 0 | AG17: 3095 | AH17: =B17 -> 2023-05-09 | AL17: 1
B18: 2023-05-10 | C18: 6 | E18: ='Contract Info'!$D$19 -> 3095 | AF18: 0 | AG18: 3095 | AH18: 2023-05-10 | AL18: 1
B19: 2023-05-11 | C19: 7 | E19: ='Contract Info'!$D$19 -> 3095 | AF19: 0 | AG19: 3095 | AH19: 2023-05-11 | AL19: 1
B20: 2023-05-12 | C20: 8 | E20: ='Contract Info'!$D$19 -> 3095 | AF20: 0 | AG20: 3095 | AH20: 2023-05-12 | AL20: 1
B21: 2023-05-13 | C21: 9 | E21: ='Contract Info'!$D$19 -> 3095 | AF21: 0 | AG21: 3095 | AH21: 2023-05-13 | AL21: 1
B22: 2023-05-14 | C22: 10 | E22: ='Contract Info'!$D$19 -> 3095 | AF22: 0 | AG22: 3095 | AH22: 2023-05-14 | AL22: 1
B23: 2023-05-15 | C23: 11 | E23: ='Contract Info'!$D$19 -> 3095 | AF23: 0 | AG23: 3095 | AH23: 2023-05-15 | AL23: 1
B24: 2023-05-16 | C24: 12 | E24: ='Contract Info'!$D$19 -> 3095 | AF24: 0 | AG24: 3095 | AH24: 2023-05-16 | AL24: 1
B25: 2023-05-17 | C25: 13 | E25: ='Contract Info'!$D$19 -> 3095 | AF25: 0 | AG25: 3095 | AH25: 2023-05-17 | AL25: 1
B26: 2023-05-18 | C26: 14 | E26: ='Contract Info'!$D$19 -> 3095 | AF26: 0 | AG26: 3095 | AH26: 2023-05-18 | AL26: 1
B27: 2023-05-19 | C27: 15 | E27: ='Contract Info'!$D$19 -> 3095 | AF27: 0 | AG27: 3095 | AH27: 2023-05-19 | AL27: 1 | AM27: 1
B28: 2023-05-20 | C28: 16 | E28: ='Contract Info'!$D$19 -> 3095 | AF28: 0 | AG28: 3095 | AH28: 2023-05-20 | AL28: 1 | AM28: 1
B29: 2023-05-21 | C29: 17 | E29: ='Contract Info'!$D$19 -> 3095 | AF29: 0 | AG29: 3095 | AH29: 2023-05-21 | AL29: 1
B30: 2023-05-22 | C30: 18 | E30: ='Contract Info'!$D$19 -> 3095 | AF30: 0 | AG30: 3095 | AH30: 2023-05-22 | AL30: 1 | AN30: 1
B31: =B30+1 -> 2023-05-23 | C31: 19 | E31: ='Contract Info'!$D$19 -> 3095 | AF31: 0 | AG31: 3095 | AH31: 2023-05-23 | AN31: 1
B32: 2023-05-24 | C32: 20 | E32: ='Contract Info'!$D$19 -> 3095 | AF32: 0 | AG32: 3095 | AH32: 2023-05-24 | AL32: 1 | AN32: 1
B33: 2023-05-25 | C33: 21 | E33: ='Contract Info'!$D$19 -> 3095 | AF33: 0 | AG33: 3095 | AH33: 2023-05-25 | AL33: 1
B34: 2023-05-26 | C34: 22 | E34: ='Contract Info'!$D$19 -> 3095 | AF34: 0 | AG34: 3095 | AH34: 2023-05-26 | AL34: 1
B35: 2023-05-27 | C35: 23 | E35: ='Contract Info'!$D$19 -> 3095 | AF35: 0 | AG35: 3095 | AH35: 2023-05-27 | AL35: 1
B36: 2023-05-28 | C36: 24 | E36: ='Contract Info'!$D$19 -> 3095 | AF36: 0 | AG36: 3095 | AH36: 2023-05-28 | AL36: 1
B37: 2023-05-29 | C37: 25 | E37: ='Contract Info'!$D$19 -> 3095 | AF37: 0 | AG37: 3095 | AH37: 2023-05-29 | AL37: 1
B38: 2023-05-30 | C38: 26 | E38: ='Contract Info'!$D$19 -> 3095 | AF38: 0 | AG38: 3095 | AH38: 2023-05-30 | AL38: 1
B39: 2023-05-31 | C39: 27 | E39: ='Contract Info'!$D$19 -> 3095 | AF39: 0 | AG39: 3095 | AH39: 2023-05-31 | AL39: 1
B40: 2023-06-01 | C40: 28 | E40: ='Contract Info'!$D$19 -> 3095 | AF40: 0 | AG40: 3095 | AH40: 2023-06-01 | AL40: 1
B41: 2023-06-02 | C41: 29 | E41: ='Contract Info'!$D$19 -> 3095 | AF41: 0 | AG41: 3095 | AH41: 2023-06-02 | AL41: 1
B42: 2023-06-03 | C42: 30 | E42: ='Contract Info'!$D$19 -> 3095 | AF42: 0 | AG42: 3095 | AH42: 2023-06-03 | AL42: 1
B43: 2023-06-04 | C43: 31 | E43: ='Contract Info'!$D$19 -> 3095 | AF43: 0 | AG43: 3095 | AH43: 2023-06-04 | AL43: 1 | AM43: 1
B44: 2023-06-05 | C44: 32 | E44: ='Contract Info'!$D$19 -> 3095 | AF44: 0 | AG44: 3095 | AH44: 2023-06-05 | AM44: 1
B45: 2023-06-06 | C45: 33 | E45: ='Contract Info'!$D$19 -> 3095 | AF45: 0 | AG45: 3095 | AH45: 2023-06-06 | AM45: 1
B46: 2023-06-07 | C46: 34 | E46: ='Contract Info'!$D$19 -> 3095 | AF46: 0 | AG46: 3095 | AH46: 2023-06-07 | AL46: 1 | AM46: 1
B47: =B46+1 -> 2023-06-08 | C47: 35 | E47: ='Contract Info'!$D$19 -> 3095 | AF47: 0 | AG47: 3095 | AH47: 2023-06-08 | AL47: 1
B48: 2023-06-09 | C48: 36 | E48: ='Contract Info'!$D$19 -> 3095 | AF48: 0 | AG48: 3095 | AH48: 2023-06-09 | AL48: 1
B49: 2023-06-10 | C49: 37 | E49: ='Contract Info'!$D$19 -> 3095 | AF49: 0 | AG49: 3095 | AH49: 2023-06-10 | AL49: 1
B50: 2023-06-11 | C50: 38 | E50: ='Contract Info'!$D$19 -> 3095 | AF50: 0 | AG50: 3095 | AH50: 2023-06-11 | AL50: 1
B51: 2023-06-12 | C51: 39 | E51: ='Contract Info'!$D$19 -> 3095 | AF51: 0 | AG51: 3095 | AH51: 2023-06-12 | AL51: 1
B52: 2023-06-13 | C52: 40 | E52: ='Contract Info'!$D$19 -> 3095 | AF52: 0 | AG52: 3095 | AH52: 2023-06-13 | AL52: 1
B53: 2023-06-14 | C53: 41 | E53: ='Contract Info'!$D$19 -> 3095 | AF53: 0 | AG53: 3095 | AH53: 2023-06-14 | AL53: 1
B54: 2023-06-15 | C54: 42 | E54: ='Contract Info'!$D$19 -> 3095 | AF54: 0 | AG54: 3095 | AH54: 2023-06-15 | AL54: 1 | AM54: 1
B55: 2023-06-16 | C55: 43 | E55: ='Contract Info'!$D$19 -> 3095 | AF55: 0 | AG55: 3095 | AH55: 2023-06-16 | AM55: 1
B56: 2023-06-17 | C56: 44 | E56: ='Contract Info'!$D$19 -> 3095 | AF56: 0 | AG56: 3095 | AH56: 2023-06-17 | AM56: 1
B57: 2023-06-18 | C57: 45 | E57: ='Contract Info'!$D$19 -> 3095 | AF57: 0 | AG57: 3095 | AH57: 2023-06-18 | AM57: 1
B58: 2023-06-19 | C58: 46 | E58: ='Contract Info'!$D$19 -> 3095 | AF58: 0 | AG58: 3095 | AH58: 2023-06-19 | AM58: 1
B59: 2023-06-20 | C59: 47 | E59: ='Contract Info'!$D$19 -> 3095 | AF59: 0 | AG59: 3095 | AH59: 2023-06-20 | AL59: 1 | AM59: 1
B60: 2023-06-21 | C60: 48 | E60: ='Contract Info'!$D$19 -> 3095 | AF60: 0 | AG60: 3095 | AH60: 2023-06-21 | AL60: 1
B61: 2023-06-22 | C61: 49 | E61: ='Contract Info'!$D$19 -> 3095 | AF61: 0 | AG61: 3095 | AH61: 2023-06-22 | AL61: 1
B62: 2023-06-23 | C62: 50 | E62: ='Contract Info'!$D$19 -> 3095 | AF62: 0 | AG62: 3095 | AH62: 2023-06-23 | AL62: 1
B63: =B62+1 -> 2023-06-24 | C63: 51 | E63: ='Contract Info'!$D$19 -> 3095 | AF63: 0 | AG63: 3095 | AH63: 2023-06-24 | AL63: 1
B64: 2023-06-25 | C64: 52 | E64: ='Contract Info'!$D$19 -> 3095 | AF64: 0 | AG64: 3095 | AH64: 2023-06-25 | AL64: 1
B65: 2023-06-26 | C65: 53 | E65: ='Contract Info'!$D$19 -> 3095 | AF65: 0 | AG65: 3095 | AH65: 2023-06-26 | AL65: 1
B66: 2023-06-27 | C66: 54 | E66: ='Contract Info'!$D$19 -> 3095 | AF66: 0 | AG66: 3095 | AH66: 2023-06-27 | AL66: 1
B67: 2023-06-28 | C67: 55 | E67: ='Contract Info'!$D$19 -> 3095 | AF67: 0 | AG67: 3095 | AH67: 2023-06-28 | AL67: 1
B68: 2023-06-29 | C68: 56 | E68: ='Contract Info'!$D$19 -> 3095 | AF68: 0 | AG68: 3095 | AH68: 2023-06-29 | AL68: 1
B69: 2023-06-30 | C69: 57 | E69: ='Contract Info'!$D$19 -> 3095 | AF69: 0 | AG69: 3095 | AH69: 2023-06-30 | AL69: 1 | AN69: 1
B70: 2023-07-01 | C70: 58 | E70: ='Contract Info'!$D$19 -> 3095 | AF70: 0 | AG70: 3095 | AH70: 2023-07-01 | AL70: 1
B71: 2023-07-02 | C71: 59 | E71: ='Contract Info'!$D$19 -> 3095 | AF71: 0 | AG71: 3095 | AH71: 2023-07-02 | AL71: 1
B72: 2023-07-03 | C72: 60 | E72: ='Contract Info'!$D$19 -> 3095 | AF72: 0 | AG72: 3095 | AH72: 2023-07-03 | AL72: 1
B73: 2023-07-04 | C73: 61 | E73: ='Contract Info'!$D$19 -> 3095 | AF73: 0 | AG73: 3095 | AH73: 2023-07-04 | AL73: 1
B74: 2023-07-05 | C74: 62 | E74: ='Contract Info'!$D$19 -> 3095 | AF74: 0 | AG74: 3095 | AH74: 2023-07-05 | AL74: 1
B75: 2023-07-06 | C75: 63 | E75: ='Contract Info'!$D$19 -> 3095 | AF75: 0 | AG75: 3095 | AH75: 2023-07-06 | AL75: 1 | AM75: 1 | AN75: 1
B76: 2023-07-07 | C76: 64 | E76: ='Contract Info'!$D$19 -> 3095 | AF76: 0 | AG76: 3095 | AH76: 2023-07-07 | AL76: 1 | AM76: 1
B77: 2023-07-08 | C77: 65 | E77: ='Contract Info'!$D$19 -> 3095 | AF77: 0 | AG77: 3095 | AH77: 2023-07-08 | AL77: 1
B78: 2023-07-09 | C78: 66 | E78: ='Contract Info'!$D$19 -> 3095 | AF78: =SUM(N78:AE78) -> 0 | AG78: =SUM(E78:AE78) -> 3095 | AH78: 2023-07-09 | AL78: 1
B79: =B78+1 -> 2023-07-10 | C79: 67 | E79: ='Contract Info'!$D$19 -> 3095 | AF79: 0 | AG79: 3095 | AH79: 2023-07-10 | AL79: 1
B80: 2023-07-11 | C80: 68 | E80: ='Contract Info'!$D$19 -> 3095 | AF80: 0 | AG80: 3095 | AH80: 2023-07-11 | AL80: 1 | AM80: 1 | AN80: 1
B81: 2023-07-12 | C81: 69 | E81: ='Contract Info'!$D$19 -> 3095 | AF81: 0 | AG81: 3095 | AH81: =B81 -> 2023-07-12 | AM81: 1
B82: 2023-07-13 | C82: 70 | E82: ='Contract Info'!$D$19 -> 3095 | AF82: 0 | AG82: 3095 | AH82: 2023-07-13 | AM82: 1
B83: 2023-07-14 | C83: 71 | E83: ='Contract Info'!$D$19 -> 3095 | AF83: 0 | AG83: 3095 | AH83: 2023-07-14 | AL83: 1 | AM83: 1
B84: 2023-07-15 | C84: 72 | E84: ='Contract Info'!$D$19 -> 3095 | AF84: 0 | AG84: 3095 | AH84: 2023-07-15 | AL84: 1
B85: 2023-07-16 | C85: 73 | E85: ='Contract Info'!$D$19 -> 3095 | AF85: 0 | AG85: 3095 | AH85: 2023-07-16 | AL85: 1
B86: 2023-07-17 | C86: 74 | E86: ='Contract Info'!$D$19 -> 3095 | AF86: 0 | AG86: 3095 | AH86: 2023-07-17 | AL86: 1
B87: 2023-07-18 | C87: 75 | E87: ='Contract Info'!$D$19 -> 3095 | AF87: 0 | AG87: 3095 | AH87: 2023-07-18 | AL87: 1
B88: 2023-07-19 | C88: 76 | E88: ='Contract Info'!$D$19 -> 3095 | AF88: 0 | AG88: 3095 | AH88: 2023-07-19 | AL88: 1
B89: 2023-07-20 | C89: 77 | E89: ='Contract Info'!$D$19 -> 3095 | AF89: 0 | AG89: 3095 | AH89: 2023-07-20 | AL89: 1
B90: 2023-07-21 | C90: 78 | E90: ='Contract Info'!$D$19 -> 3095 | AF90: 0 | AG90: 3095 | AH90: 2023-07-21 | AL90: 1
B91: 2023-07-22 | C91: 79 | E91: ='Contract Info'!$D$19 -> 3095 | AF91: 0 | AG91: 3095 | AH91: 2023-07-22 | AL91: 1
B92: 2023-07-23 | C92: 80 | E92: ='Contract Info'!$D$19 -> 3095 | AF92: 0 | AG92: 3095 | AH92: 2023-07-23 | AL92: 1
B93: 2023-07-24 | C93: 81 | E93: ='Contract Info'!$D$19 -> 3095 | AF93: 0 | AG93: 3095 | AH93: 2023-07-24 | AL93: 1
B94: 2023-07-25 | C94: 82 | E94: ='Contract Info'!$D$19 -> 3095 | AF94: 0 | AG94: 3095 | AH94: 2023-07-25 | AL94: 1
B95: =B94+1 -> 2023-07-26 | C95: 83 | E95: ='Contract Info'!$D$19 -> 3095 | AF95: 0 | AG95: 3095 | AH95: 2023-07-26 | AL95: 1
B96: 2023-07-27 | C96: 84 | E96: ='Contract Info'!$D$19 -> 3095 | AF96: 0 | AG96: 3095 | AH96: 2023-07-27 | AL96: 1
B97: 2023-07-28 | C97: 85 | E97: ='Contract Info'!$D$19 -> 3095 | AF97: 0 | AG97: 3095 | AH97: 2023-07-28 | AL97: 1
B98: 2023-07-29 | C98: 86 | E98: ='Contract Info'!$D$19 -> 3095 | AF98: 0 | AG98: 3095 | AH98: 2023-07-29 | AL98: 1
B99: 2023-07-30 | C99: 87 | E99: ='Contract Info'!$D$19 -> 3095 | AF99: 0 | AG99: 3095 | AH99: 2023-07-30 | AL99: 1
B100: 2023-07-31 | C100: 88 | E100: ='Contract Info'!$D$19 -> 3095 | AF100: 0 | AG100: 3095 | AH100: 2023-07-31 | AL100: 1
B101: 2023-08-01 | C101: 89 | E101: ='Contract Info'!$D$19 -> 3095 | AF101: 0 | AG101: 3095 | AH101: 2023-08-01 | AL101: 1
B102: 2023-08-02 | C102: 90 | E102: ='Contract Info'!$D$19 -> 3095 | AF102: 0 | AG102: 3095 | AH102: 2023-08-02 | AL102: 1 | AM102: 1
B103: 2023-08-03 | C103: 91 | E103: ='Contract Info'!$D$19 -> 3095 | AF103: 0 | AG103: 3095 | AH103: 2023-08-03 | AM103: 1
B104: 2023-08-04 | C104: 92 | E104: ='Contract Info'!$D$19 -> 3095 | AF104: 0 | AG104: 3095 | AH104: 2023-08-04 | AM104: 1
B105: 2023-08-05 | C105: 93 | E105: ='Contract Info'!$D$19 -> 3095 | AF105: 0 | AG105: 3095 | AH105: 2023-08-05 | AM105: 1
B106: 2023-08-06 | C106: 94 | E106: ='Contract Info'!$D$19 -> 3095 | AF106: 0 | AG106: 3095 | AH106: 2023-08-06 | AM106: 1
B107: 2023-08-07 | C107: 95 | E107: ='Contract Info'!$D$19 -> 3095 | AF107: 0 | AG107: 3095 | AH107: 2023-08-07 | AM107: 1 | AO107: 1
B108: 2023-08-08 | C108: 96 | E108: ='Contract Info'!$D$19 -> 3095 | AF108: 0 | AG108: 3095 | AH108: 2023-08-08 | AM108: 1 | AO108: 1
B109: 2023-08-09 | C109: 97 | E109: ='Contract Info'!$D$19 -> 3095 | AF109: 0 | AG109: 3095 | AH109: 2023-08-09 | AM109: 1
B110: 2023-08-10 | C110: 98 | E110: ='Contract Info'!$D$19 -> 3095 | AF110: 0 | AG110: 3095 | AH110: 2023-08-10 | AM110: 1
B111: =B110+1 -> 2023-08-11 | C111: 99 | E111: ='Contract Info'!$D$19 -> 3095 | AF111: 0 | AG111: 3095 | AH111: 2023-08-11 | AM111: 1
B112: 2023-08-12 | C112: 100 | E112: ='Contract Info'!$D$19 -> 3095 | AF112: 0 | AG112: 3095 | AH112: 2023-08-12 | AL112: 1 | AM112: 1
B113: 2023-08-13 | C113: 101 | E113: ='Contract Info'!$D$19 -> 3095 | AF113: 0 | AG113: 3095 | AH113: 2023-08-13 | AM113: 1
B114: 2023-08-14 | C114: 102 | E114: ='Contract Info'!$D$19 -> 3095 | AF114: 0 | AG114: 3095 | AH114: 2023-08-14 | AL114: 1 | AM114: 1 | AN114: 1 | AO114: 1
B115: 2023-08-15 | C115: 103 | E115: ='Contract Info'!$D$19 -> 3095 | AF115: 0 | AG115: 3095 | AH115: 2023-08-15 | AM115: 1
B116: 2023-08-16 | C116: 104 | E116: ='Contract Info'!$D$19 -> 3095 | AF116: 0 | AG116: 3095 | AH116: 2023-08-16 | AM116: 1 | AO116: 1
B117: 2023-08-17 | C117: 105 | E117: ='Contract Info'!$D$19 -> 3095 | AF117: 0 | AG117: 3095 | AH117: 2023-08-17 | AM117: 1
B118: 2023-08-18 | C118: 106 | E118: ='Contract Info'!$D$19 -> 3095 | AF118: 0 | AG118: 3095 | AH118: 2023-08-18 | AL118: 1 | AM118: 1
B119: 2023-08-19 | C119: 107 | E119: ='Contract Info'!$D$19 -> 3095 | AF119: 0 | AG119: 3095 | AH119: 2023-08-19 | AM119: 1 | AO119: 1
B120: 2023-08-20 | C120: 108 | E120: ='Contract Info'!$D$19 -> 3095 | AF120: 0 | AG120: 3095 | AH120: 2023-08-20 | AM120: 1
B121: 2023-08-21 | C121: 109 | E121: ='Contract Info'!$D$19 -> 3095 | AF121: 0 | AG121: 3095 | AH121: 2023-08-21 | AM121: 1 | AO121: 1
B122: 2023-08-22 | C122: 110 | E122: ='Contract Info'!$D$19 -> 3095 | AF122: 0 | AG122: 3095 | AH122: 2023-08-22 | AM122: 1 | AO122: 1
B123: 2023-08-23 | C123: 111 | E123: ='Contract Info'!$D$19 -> 3095 | AF123: 0 | AG123: 3095 | AH123: 2023-08-23 | AM123: 1
B124: 2023-08-24 | C124: 112 | E124: ='Contract Info'!$D$19 -> 3095 | AF124: 0 | AG124: 3095 | AH124: 2023-08-24 | AM124: 1
B125: 2023-08-25 | C125: 113 | E125: ='Contract Info'!$D$19 -> 3095 | AF125: 0 | AG125: 3095 | AH125: 2023-08-25 | AM125: 1
B126: 2023-08-26 | C126: 114 | E126: ='Contract Info'!$D$19 -> 3095 | AF126: 0 | AG126: 3095 | AH126: 2023-08-26 | AM126: 1
B127: =B126+1 -> 2023-08-27 | C127: 115 | E127: ='Contract Info'!$D$19 -> 3095 | AF127: 0 | AG127: 3095 | AH127: 2023-08-27 | AM127: 1 | AO127: 1
B128: 2023-08-28 | C128: 116 | E128: ='Contract Info'!$D$19 -> 3095 | AF128: 0 | AG128: 3095 | AH128: 2023-08-28 | AM128: 1 | AN128: 1
B129: 2023-08-29 | C129: 117 | E129: ='Contract Info'!$D$19 -> 3095 | AF129: 0 | AG129: 3095 | AH129: 2023-08-29 | AM129: 1
B130: 2023-08-30 | C130: 118 | E130: ='Contract Info'!$D$19 -> 3095 | AF130: 0 | AG130: 3095 | AH130: 2023-08-30 | AM130: 1
B131: 2023-08-31 | C131: 119 | E131: ='Contract Info'!$D$19 -> 3095 | AF131: 0 | AG131: 3095 | AH131: 2023-08-31 | AM131: 1
B132: 2023-09-01 | C132: 120 | E132: ='Contract Info'!$D$19 -> 3095 | AF132: 0 | AG132: 3095 | AH132: 2023-09-01 | AM132: 1
B133: 2023-09-02 | C133: =C132+1 -> 121 | E133: ='Contract Info'!$D$19 -> 3095 | AF133: 0 | AG133: 3095 | AH133: 2023-09-02 | AM133: 1
B134: =B133+1 -> 2023-09-03 | C134: =C133+1 -> 122 | E134: ='Contract Info'!$D$19 -> 3095 | AF134: 0 | AG134: 3095 | AH134: 2023-09-03 | AM134: 1
B135: =B134+1 -> 2023-09-04 | C135: =C134+1 -> 123 | E135: ='Contract Info'!$D$19 -> 3095 | AF135: 0 | AG135: 3095 | AH135: 2023-09-04 | AM135: 1
B136: =B135+1 -> 2023-09-05 | C136: =C135+1 -> 124 | E136: ='Contract Info'!$D$19 -> 3095 | AF136: 0 | AG136: 3095 | AH136: 2023-09-05 | AM136: 1
B137: =B136+1 -> 2023-09-06 | C137: =C136+1 -> 125 | E137: ='Contract Info'!$D$19 -> 3095 | AF137: 0 | AG137: 3095 | AH137: 2023-09-06 | AL137: 1 | AM137: 1
B138: 2023-09-07 | C138: 126 | E138: ='Contract Info'!$D$19 -> 3095 | AF138: 0 | AG138: 3095 | AH138: 2023-09-07 | AL138: 1
B139: 2023-09-08 | C139: 127 | E139: ='Contract Info'!$D$19 -> 3095 | AF139: 0 | AG139: 3095 | AH139: 2023-09-08 | AL139: 1
B140: 2023-09-09 | C140: 128 | E140: ='Contract Info'!$D$19 -> 3095 | AF140: 0 | AG140: 3095 | AH140: 2023-09-09 | AL140: 1
B141: 2023-09-10 | C141: 129 | E141: ='Contract Info'!$D$19 -> 3095 | AF141: 0 | AG141: 3095 | AH141: 2023-09-10 | AL141: 1
B142: 2023-09-11 | C142: 130 | E142: ='Contract Info'!$D$19 -> 3095 | AF142: =SUM(N142:AE142) -> 0 | AG142: =SUM(E142:AE142) -> 3095 | AH142: 2023-09-11 | AL142: 1
B143: 2023-09-12 | C143: 131 | E143: ='Contract Info'!$D$19 -> 3095 | AF143: 0 | AG143: 3095 | AH143: 2023-09-12 | AL143: 1
B144: 2023-09-13 | C144: 132 | E144: ='Contract Info'!$D$19 -> 3095 | AF144: 0 | AG144: 3095 | AH144: 2023-09-13 | AL144: 1
B145: 2023-09-14 | C145: 133 | E145: ='Contract Info'!$D$19 -> 3095 | AF145: 0 | AG145: 3095 | AH145: =B145 -> 2023-09-14 | AL145: 1
B146: 2023-09-15 | C146: 134 | E146: ='Contract Info'!$D$19 -> 3095 | AF146: 0 | AG146: 3095 | AH146: 2023-09-15 | AL146: 1
B147: 2023-09-16 | C147: 135 | E147: ='Contract Info'!$D$19 -> 3095 | AF147: 0 | AG147: 3095 | AH147: 2023-09-16 | AL147: 1 | AM147: 1 | AO147: 1
B148: 2023-09-17 | C148: 136 | E148: ='Contract Info'!$D$19 -> 3095 | AF148: 0 | AG148: 3095 | AH148: 2023-09-17 | AL148: 1
B149: 2023-09-18 | C149: 137 | E149: ='Contract Info'!$D$19 -> 3095 | AF149: 0 | AG149: 3095 | AH149: 2023-09-18 | AL149: 1
B150: 2023-09-19 | C150: 138 | E150: ='Contract Info'!$D$19 -> 3095 | AF150: 0 | AG150: 3095 | AH150: 2023-09-19 | AL150: 1
B151: =B150+1 -> 2023-09-20 | C151: 139 | E151: ='Contract Info'!$D$19 -> 3095 | AF151: 0 | AG151: 3095 | AH151: 2023-09-20 | AL151: 1
B152: 2020-12-16 | C152: De-Ob | D152: Mod 08 | AF152: 0 | AG152: 0 | AH152: 2020-12-16
AF153: =SUM(AF13:AF151) -> 0 | AH153: 00:00:00

Sheet Contract Totals Details
A1: 2021 NW Exclusive Use Contract Totals (May 2 thru Sep 17) | I1: 2021 MOCA Contract Totals by Month
B2: TOTALS FOR ALL LOCATIONS | C2: 139-day Contract TOTALS | I2: May | O2: June | U2: July | AA2: August | AG2: September | AM2: October | AS2: November | AZ2: SuperManager formula location
B3: All Parks & other locations | C3: Availability | D3: SAR | E3: Project | F3: Training | G3: Fire | H3: Total | I3: Availability | J3: SAR | K3: Project | L3: Training | M3: Fire | N3: Total | O3: Availability | P3: SAR (operational) | Q3: Project | R3: Training | S3: Fire | T3: Total | U3: Availability | V3: SAR (operational) | W3: Project | X3: Training | Y3: Fire | Z3: Total | AA3: Availability | AB3: SAR (operational) | AC3: Project | AD3: Training | AE3: Fire | AF3: Total | AG3: Availability | AH3: SAR (operational) | AI3: Project | AJ3: Training | AK3: Fire | AL3: Total | AM3: Availability | AN3: SAR (operational) | AO3: Project | AP3: Training | AQ3: Fire | AR3: Total | AS3: Availability | AT3: SAR (operational) | AU3: Project | AV3: Training | AW3: Fire | AX3: Total
B4: Total Cost | C4: =SUM(I4,O4,U4,AA4,AG4,AM4,AS4) -> 424899.2857 | I4: =N5 -> 92850 | J4: =J9+J10+J11+J12+J13 ->  | K4: =K9+K10+K11+K12+K13 -> 0 | L4: =L9+L10+L11+L12+L13 ->  | M4: =M9+M10+M11+M12+M13 -> 0 | N4: =SUM(I4:M4) ->  | O4: =T5 -> 87544.28571 | P4: =P9+P10+P11+P12+P13 ->  | Q4: =Q9+Q10+Q11+Q12+Q13 ->  | R4: =R9+R10+R11+R12+R13 ->  | S4: =S9+S10+S11+S12+S13 -> 0 | T4: =SUM(O4:S4) ->  | U4: =Z5 -> 95945 | V4: =V9+V10+V11+V12+V13 ->  | W4: =W9+W10+W11+W12+W13 ->  | X4: =X9+X10+X11+X12+X13 ->  | Y4: =Y9+Y10+Y11+Y12+Y13 ->  | Z4: =SUM(U4:Y4) ->  | AA4: =AF5 -> 95945 | AB4: =AB9+AB10+AB11+AB12+AB13 ->  | AC4: =AC9+AC10+AC11+AC12+AC13 ->  | AD4: =AD9+AD10+AD11+AD12+AD13 ->  | AE4: =AE9+AE10+AE11+AE12+AE13 ->  | AF4: =SUM(AA4:AE4) ->  | AG4: =AL5 -> 52615 | AH4: =AH9+AH10+AH11+AH12+AH13 ->  | AI4: =AI9+AI10+AI11+AI12+AI13 ->  | AJ4: =AJ9+AJ10+AJ11+AJ12+AJ13 ->  | AK4: =AK9+AK10+AK11+AK12+AK13 ->  | AL4: =SUM(AG4:AK4) ->  | AM4: =AR5 -> 0 | AN4: =AN9+AN10+AN11+AN12+AN13 -> 0 | AO4: =AO9+AO10+AO11+AO12+AO13 -> 0 | AP4: =AP9+AP10+AP11+AP12+AP13 -> 0 | AQ4: =AQ9+AQ10+AQ11+AQ12+AQ13 -> 0 | AR4: =SUM(AM4:AQ4) -> 0 | AS4: =AX5 -> 0 | AT4: =AT9+AT10+AT11+AT12+AT13 -> 0 | AU4: =AU9+AU10+AU11+AU12+AU13 -> 0 | AV4: =AV9+AV10+AV11+AV12+AV13 -> 0 | AW4: =AW9+AW10+AW11+AW12+AW13 -> 0 | AX4: =SUM(AS4:AW4) -> 0
B5: Availability Cost | C5: =SUM(N5,T5,Z5,AF5,AL5,AR5,AX5) -> 424899.2857 | D5: ='Contract Info'!$D$19*D6 -> 424899.2857 | E5: ='Contract Info'!$D$19*E6 -> 0 | F5: ='Contract Info'!$D$19*F6 -> 0 | G5: ='Contract Info'!$D$19*G6 -> 0 | H5: =SUM(D5:G5) -> 424899.2857 | J5: ='Contract Info'!$D$19*J6 -> 92850 | K5: ='Contract Info'!$D$19*K6 -> 0 | L5: ='Contract Info'!$D$19*L6 -> 0 | M5: ='Contract Info'!$D$19*M6 -> 0 | N5: =SUM(J5:M5) -> 92850 | P5: ='Contract Info'!$D$19*P6 -> 87544.28571 | Q5: ='Contract Info'!$D$19*Q6 -> 0 | S5: ='Contract Info'!$D$19*S6 -> 0 | T5: =SUM(P5:S5) -> 87544.28571 | V5: ='Contract Info'!$D$19*V6 -> 95945 | W5: ='Contract Info'!$D$19*W6 -> 0 | Y5: ='Contract Info'!$D$19*Y6 -> 0 | Z5: =SUM(V5:Y5) -> 95945 | AB5: ='Contract Info'!$D$19*AB6 -> 95945 | AC5: ='Contract Info'!$D$19*AC6 -> 0 | AE5: ='Contract Info'!$D$19*AE6 -> 0 | AF5: =SUM(AB5:AE5) -> 95945 | AH5: ='Contract Info'!$D$19*AH6 -> 52615 | AI5: ='Contract Info'!$D$19*AI6 -> 0 | AK5: ='Contract Info'!$D$19*AK6 -> 0 | AL5: =SUM(AH5:AK5) -> 52615 | AN5: ='Contract Info'!$D$19*AN6 -> 0 | AO5: ='Contract Info'!$D$19*AO6 -> 0 | AQ5: 0 | AR5: =SUM(AN5:AQ5) -> 0 | AT5: ='Contract Info'!$D$19*AT6 -> 0 | AU5: ='Contract Info'!$D$19*AU6 -> 0 | AW5: ='Contract Info'!$D$19*AW6 -> 0 | AX5: =SUM(AT5:AW5) -> 0
B6: Availability Days | D6: =SUM(J6,P6,V6,AB6,AH6,AN6,AT6) -> 137.2857143 | E6: 0 | F6: 0 | G6: 0 | H6: =SUM(D6:G6) -> 137.2857143 | J6: 30 | K6: =SUM(Q6,W6,AC6,AI6,AO6,AU6,BA6) -> 0 | L6: =SUM(R6,X6,AD6,AJ6,AP6,AV6,BB6) -> 0 | M6: 0 | N6: =SUM(J6:M6) -> 30 | P6: =28+4/14 -> 28.28571429 | Q6: =SUM(W6,AC6,AI6,AO6,AU6,BA6,BF6) -> 0 | S6: 0 | T6: =SUM(P6:S6) -> 28.28571429 | V6: 31 | W6: =SUM(AC6,AI6,AO6,AU6,BA6,BF6,BK6) -> 0 | Y6: 0 | Z6: =SUM(V6:Y6) -> 31 | AB6: 31 | AC6: =SUM(AI6,AO6,AU6,BA6,BF6,BK6,BP6) -> 0 | AE6: 0 | AF6: =SUM(AB6:AE6) -> 31 | AH6: 17 | AI6: =SUM(AO6,AU6,BA6,BF6,BK6,BP6,BU6) -> 0 | AK6: 0 | AL6: =SUM(AH6:AK6) -> 17 | AN6: 0 | AO6: =SUM(AU6,BA6,BF6,BK6,BP6,BU6,BZ6) -> 0 | AQ6: 0 | AR6: 0 | AT6: 0 | AU6: =SUM(BA6,BF6,BK6,BP6,BU6,BZ6,CE6) -> 0 | AX6: =SUM(AT6:AW6) -> 0 | BA6: Total Cost
B7: Flight Time Hours | H7: =SUM(D7:G7) ->  | I7: =H32+H52+H72+H92+H114 ->  | J7: =SUM(#REF!,#REF!,#REF!) ->  | K7: 0 | L7: =SUM(#REF!,#REF!,#REF!,#REF!,#REF!,#REF!,#REF!,#REF!,#REF!,#REF!,#REF!,#REF!,#REF!,#REF!) ->  | M7: 0 | P7: =SUM(#REF!,#REF!,#REF!,#REF!,#REF!,#REF!,#REF!) ->  | Q7: =SUM(#REF!,#REF!,#REF!,#REF!,#REF!,#REF!,#REF!,#REF!,#REF!) ->  | R7: =SUM(#REF!,#REF!,#REF!,#REF!,#REF!,#REF!,#REF!,#REF!,#REF!) ->  | S7: 0 | V7: =SUM(#REF!,#REF!,#REF!,#REF!,#REF!,#REF!,#REF!,#REF!) ->  | W7: =SUM(#REF!,#REF!,#REF!,#REF!,#REF!,#REF!,#REF!,#REF!,#REF!,#REF!,#REF!) ->  | X7: =SUM(#REF!,#REF!,#REF!,#REF!,#REF!) ->  | Y7: =SUM(#REF!,#REF!,#REF!,#REF!,#REF!) ->  | Z7: =SUM(V7:Y7) ->  | AB7: =SUM(#REF!,#REF!,#REF!,#REF!,#REF!,#REF!,#REF!,#REF!,#REF!) ->  | AC7: =SUM(#REF!,#REF!) ->  | AD7: =SUM(#REF!) ->  | AE7: =SUM(#REF!,#REF!,#REF!,#REF!,#REF!,#REF!,#REF!,#REF!,#REF!,#REF!,#REF!,#REF!,#REF!,#REF!,#REF!,#REF!,#REF!,#REF!,#REF!,#REF!,#REF!,#REF!,#REF!,#REF!,#REF!,#REF!,#REF!,#REF!,#REF!,#REF!,#REF!,#REF!,#REF!,#REF!,#REF!,#REF!,#REF!,#REF!,#REF!,#REF!,#REF!,#REF!,#REF!) ->  | AF7: =SUM(AB7:AE7) ->  | AH7: =SUM(#REF!) ->  | AI7: =SUM(#REF!,#REF!,#REF!,#REF!,#REF!,#REF!,#REF!,#REF!,#REF!,#REF!,#REF!,#REF!) ->  | AJ7: =SUM(#REF!) ->  | AK7: =SUM(#REF!,#REF!,#REF!,#REF!,#REF!) ->  | AL7: =SUM(AH7:AK7) ->  | AN7: 0 | AO7: 0 | AP7: 0 | AQ7: 0 | AR7: =SUM(AN7:AQ7) -> 0 | AT7: 0 | AU7: 0 | AW7: 0 | AX7: =SUM(AT7:AW7) -> 0 | AZ7: AH16:AL17 | BA7: Flight Time Hours
B8: Flight Time Percentage | D8: =IF(SUM(D7:G7)=0,0,D7/SUM(D7:G7)) ->  | E8: =IF(SUM(D7:G7)=0,0,E7/SUM(D7:G7)) ->  | F8: =IF(SUM(D7:G7)=0,0,F7/SUM(D7:G7)) ->  | G8: =IF(SUM(D7:G7)=0,0,G7/SUM(D7:G7)) ->  | H8: =SUM(D8:G8) ->  | J8: =IF(SUM(J7:M7)=0,0,J7/SUM(J7:M7)) ->  | K8: =IF(SUM(J7:M7)=0,0,K7/SUM(J7:M7)) ->  | L8: =IF(SUM(J7:M7)=0,0,L7/SUM(J7:M7)) ->  | M8: =IF(SUM(J7:M7)=0,0,M7/SUM(J7:M7)) ->  | N8: =SUM(J8:M8) ->  | P8: =IF(SUM(P7:S7)=0,0,P7/SUM(P7:S7)) ->  | Q8: =IF(SUM(P7:S7)=0,0,Q7/SUM(P7:S7)) ->  | R8: =IF(SUM(P7:S7)=0,0,R7/SUM(P7:S7)) ->  | S8: =IF(SUM(P7:S7)=0,0,S7/SUM(P7:S7)) ->  | T8: =SUM(P8:S8) ->  | V8: =IF(SUM(V7:Y7)=0,0,V7/SUM(V7:Y7)) ->  | W8: =IF(SUM(V7:Y7)=0,0,W7/SUM(V7:Y7)) ->  | X8: =IF(SUM(V7:Y7)=0,0,X7/SUM(V7:Y7)) ->  | Y8: =IF(SUM(V7:Y7)=0,0,Y7/SUM(V7:Y7)) ->  | Z8: =SUM(V8:Y8) ->  | AB8: =IF(SUM(AB7:AE7)=0,0,AB7/SUM(AB7:AE7)) ->  | AC8: =IF(SUM(AB7:AE7)=0,0,AC7/SUM(AB7:AE7)) ->  | AD8: =IF(SUM(AB7:AE7)=0,0,AD7/SUM(AB7:AE7)) ->  | AE8: =IF(SUM(AB7:AE7)=0,0,AE7/SUM(AB7:AE7)) ->  | AF8: =SUM(AB8:AE8) ->  | AH8: =IF(SUM(AH7:AK7)=0,0,AH7/SUM(AH7:AK7)) ->  | AI8: =IF(SUM(AH7:AK7)=0,0,AI7/SUM(AH7:AK7)) ->  | AJ8: =IF(SUM(AH7:AK7)=0,0,AJ7/SUM(AH7:AK7)) ->  | AK8: =IF(SUM(AH7:AK7)=0,0,AK7/SUM(AH7:AK7)) ->  | AL8: =SUM(AH8:AK8) ->  | AN8: =IF(SUM(AN7:AQ7)=0,0,AN7/SUM(AN7:AQ7)) -> 0 | AO8: =IF(SUM(AN7:AQ7)=0,0,AO7/SUM(AN7:AQ7)) -> 0 | AP8: =IF(SUM(AO7:AR7)=0,0,AP7/SUM(AO7:AR7)) -> 0 | AQ8: =IF(SUM(AN7:AQ7)=0,0,AQ7/SUM(AN7:AQ7)) -> 0 | AR8: =SUM(AN8:AQ8) -> 0 | AT8: =IF(SUM(AT7:AW7)=0,0,AT7/SUM(AT7:AW7)) -> 0 | AU8: =IF(SUM(AT7:AW7)=0,0,AU7/SUM(AT7:AW7)) -> 0 | AV8: =IF(SUM(AU7:AX7)=0,0,AV7/SUM(AU7:AX7)) -> 0 | AW8: =IF(SUM(AT7:AW7)=0,0,AW7/SUM(AT7:AW7)) -> 0 | AX8: =SUM(AT8:AW8) -> 0 | BA8: Flight Time Percentage
B9: Flight Time Cost | D9: =SUM(J9,P9,V9,AB9,AH9,AN9,AT9) ->  | H9: =SUM(D9:G9) ->  | I9: =H34+H54+H74+H94+H116 ->  | J9: =J7*'Contract Info'!$D$18 ->  | K9: =K7*'Contract Info'!$D$18 -> 0 | L9: =L7*'Contract Info'!$D$18 ->  | M9: =M7*'Contract Info'!E18 -> 0 | P9: =P7*'Contract Info'!$D$18 ->  | Q9: =Q7*'Contract Info'!$D$18 ->  | R9: =R7*'Contract Info'!$D$18 ->  | S9: =S7*'Contract Info'!$D$18 -> 0 | V9: =V7*'Contract Info'!$D$18 ->  | W9: =W7*'Contract Info'!$D$18 ->  | X9: =X7*'Contract Info'!$D$18 ->  | Y9: =Y7*'Contract Info'!$D$18 ->  | Z9: =SUM(V9:Y9) ->  | AB9: =AB7*'Contract Info'!$D$18 ->  | AC9: =AC7*'Contract Info'!$D$18 ->  | AD9: =AD7*'Contract Info'!$D$18 ->  | AE9: =AE7*'Contract Info'!$D$18 ->  | AF9: =SUM(AB9:AE9) ->  | AH9: =AH7*'Contract Info'!$D$18 ->  | AI9: =AI7*'Contract Info'!$D$18 ->  | AJ9: =AJ7*'Contract Info'!$D$18 ->  | AK9: =AK7*'Contract Info'!$D$18 ->  | AN9: =AN7*'Contract Info'!$D$18 -> 0 | AO9: =AO7*'Contract Info'!$D$18 -> 0 | AP9: =AP7*'Contract Info'!$D$18 -> 0 | AQ9: =AQ7*'Contract Info'!$D$18 -> 0 | AR9: 0 | AT9: =AT7*'Contract Info'!$D$18 -> 0 | AU9: =AU7*'Contract Info'!$D$18 -> 0 | AV9: =AV7*'Contract Info'!$D$18 -> 0 | AW9: =AW7*'Contract Info'!$D$18 -> 0 | AX9: 0 | BA9: Flight Time Cost
B10: Extended Standby Cost | J10: =SUM(#REF!,#REF!,#REF!) ->  | K10: 0 | L10: =SUM(#REF!,#REF!,#REF!,#REF!,#REF!,#REF!,#REF!,#REF!,#REF!,#REF!,#REF!,#REF!,#REF!,#REF!) ->  | M10: 0 | P10: =SUM(#REF!,#REF!,#REF!,#REF!,#REF!,#REF!,#REF!) ->  | Q10: =SUM(#REF!,#REF!,#REF!,#REF!,#REF!,#REF!,#REF!,#REF!,#REF!) ->  | R10: =SUM(#REF!,#REF!,#REF!,#REF!,#REF!,#REF!,#REF!,#REF!,#REF!) ->  | S10: 0 | V10: =SUM(#REF!,#REF!,#REF!,#REF!,#REF!,#REF!,#REF!,#REF!) ->  | W10: =SUM(#REF!,#REF!,#REF!,#REF!,#REF!,#REF!,#REF!,#REF!,#REF!,#REF!,#REF!) ->  | X10: =SUM(#REF!,#REF!,#REF!,#REF!,#REF!) ->  | Y10: =SUM(#REF!,#REF!,#REF!,#REF!,#REF!) ->  | AB10: =SUM(#REF!,#REF!,#REF!,#REF!,#REF!,#REF!,#REF!,#REF!,#REF!) ->  | AC10: =SUM(#REF!,#REF!) ->  | AD10: =SUM(#REF!) ->  | AE10: =SUM(#REF!,#REF!,#REF!,#REF!,#REF!,#REF!,#REF!,#REF!,#REF!,#REF!,#REF!,#REF!,#REF!,#REF!,#REF!,#REF!,#REF!,#REF!,#REF!,#REF!,#REF!,#REF!,#REF!,#REF!,#REF!,#REF!,#REF!,#REF!,#REF!,#REF!,#REF!,#REF!,#REF!,#REF!,#REF!,#REF!,#REF!,#REF!,#REF!,#REF!,#REF!,#REF!,#REF!) ->  | AH10: =SUM(#REF!) ->  | AI10: =SUM(#REF!,#REF!,#REF!,#REF!,#REF!,#REF!,#REF!,#REF!,#REF!,#REF!,#REF!,#REF!) ->  | AJ10: =SUM(#REF!) ->  | AK10: =SUM(#REF!,#REF!,#REF!,#REF!,#REF!) ->  | AN10: 0 | AO10: 0 | AP10: 0 | AQ10: 0 | AR10: 0 | AT10: 0 | AU10: 0 | AV10: 0 | AW10: 0 | AX10: 0 | AZ10: AS20:AX25 | BA10: Extended Standby Cost
B11: Per Diem Cost | J11: =SUM(#REF!,#REF!,#REF!) ->  | K11: 0 | L11: =SUM(#REF!,#REF!,#REF!,#REF!,#REF!,#REF!,#REF!,#REF!,#REF!,#REF!,#REF!,#REF!,#REF!,#REF!) ->  | M11: 0 | P11: =SUM(#REF!,#REF!,#REF!,#REF!,#REF!,#REF!,#REF!) ->  | Q11: =SUM(#REF!,#REF!,#REF!,#REF!,#REF!,#REF!,#REF!,#REF!,#REF!) ->  | R11: =SUM(#REF!,#REF!,#REF!,#REF!,#REF!,#REF!,#REF!,#REF!,#REF!) ->  | S11: 0 | V11: =SUM(#REF!,#REF!,#REF!,#REF!,#REF!,#REF!,#REF!,#REF!) ->  | W11: =SUM(#REF!,#REF!,#REF!,#REF!,#REF!,#REF!,#REF!,#REF!,#REF!,#REF!,#REF!) ->  | X11: =SUM(#REF!,#REF!,#REF!,#REF!,#REF!) ->  | Y11: =SUM(#REF!,#REF!,#REF!,#REF!,#REF!) ->  | AB11: =SUM(#REF!,#REF!,#REF!,#REF!,#REF!,#REF!,#REF!,#REF!,#REF!) ->  | AC11: =SUM(#REF!,#REF!) ->  | AD11: =SUM(#REF!) ->  | AE11: =SUM(#REF!,#REF!,#REF!,#REF!,#REF!,#REF!,#REF!,#REF!,#REF!,#REF!,#REF!,#REF!,#REF!,#REF!,#REF!,#REF!,#REF!,#REF!,#REF!,#REF!,#REF!,#REF!,#REF!,#REF!,#REF!,#REF!,#REF!,#REF!,#REF!,#REF!,#REF!,#REF!,#REF!,#REF!,#REF!,#REF!,#REF!,#REF!,#REF!,#REF!,#REF!,#REF!,#REF!) ->  | AH11: =SUM(#REF!) ->  | AI11: =SUM(#REF!,#REF!,#REF!,#REF!,#REF!,#REF!,#REF!,#REF!,#REF!,#REF!,#REF!,#REF!) ->  | AJ11: =SUM(#REF!) ->  | AK11: =SUM(#REF!,#REF!,#REF!,#REF!,#REF!) ->  | AN11: 0 | AO11: 0 | AP11: 0 | AQ11: 0 | AR11: 0 | AT11: 0 | AU11: 0 | AV11: 0 | AW11: 0 | AX11: 0 | AZ11: AS26:AX27 | BA11: Per Diem Cost
B12: Service Truck Mileage Cost | J12: =SUM(#REF!,#REF!,#REF!) ->  | K12: 0 | L12: =SUM(#REF!,#REF!,#REF!,#REF!,#REF!,#REF!,#REF!,#REF!,#REF!,#REF!,#REF!,#REF!,#REF!,#REF!) ->  | M12: 0 | P12: =SUM(#REF!,#REF!,#REF!,#REF!,#REF!,#REF!,#REF!) ->  | Q12: =SUM(#REF!,#REF!,#REF!,#REF!,#REF!,#REF!,#REF!,#REF!,#REF!) ->  | R12: =SUM(#REF!,#REF!,#REF!,#REF!,#REF!,#REF!,#REF!,#REF!,#REF!) ->  | S12: 0 | V12: =SUM(#REF!,#REF!,#REF!,#REF!,#REF!,#REF!,#REF!,#REF!) ->  | W12: =SUM(#REF!,#REF!,#REF!,#REF!,#REF!,#REF!,#REF!,#REF!,#REF!,#REF!,#REF!) ->  | X12: =SUM(#REF!,#REF!,#REF!,#REF!,#REF!) ->  | Y12: =SUM(#REF!,#REF!,#REF!,#REF!,#REF!) ->  | AB12: =SUM(#REF!,#REF!,#REF!,#REF!,#REF!,#REF!,#REF!,#REF!,#REF!) ->  | AC12: =SUM(#REF!,#REF!) ->  | AD12: =SUM(#REF!) ->  | AE12: =SUM(#REF!,#REF!,#REF!,#REF!,#REF!,#REF!,#REF!,#REF!,#REF!,#REF!,#REF!,#REF!,#REF!,#REF!,#REF!,#REF!,#REF!,#REF!,#REF!,#REF!,#REF!,#REF!,#REF!,#REF!,#REF!,#REF!,#REF!,#REF!,#REF!,#REF!,#REF!,#REF!,#REF!,#REF!,#REF!,#REF!,#REF!,#REF!,#REF!,#REF!,#REF!,#REF!,#REF!) ->  | AH12: =SUM(#REF!) ->  | AI12: =SUM(#REF!,#REF!,#REF!,#REF!,#REF!,#REF!,#REF!,#REF!,#REF!,#REF!,#REF!,#REF!) ->  | AJ12: =SUM(#REF!) ->  | AK12: =SUM(#REF!,#REF!,#REF!,#REF!,#REF!) ->  | AN12: 0 | AO12: 0 | AP12: 0 | AQ12: 0 | AR12: 0 | AT12: 0 | AU12: 0 | AV12: 0 | AW12: 0 | AX12: 0 | AZ12: AS28:AX29 | BA12: Service Truck Mileage Cost
B13: Relief Travel Cost & Other Special Charges | I13: 0 | J13: =SUM(#REF!,#REF!,#REF!) ->  | K13: 0 | L13: =SUM(#REF!,#REF!,#REF!,#REF!,#REF!,#REF!,#REF!,#REF!,#REF!,#REF!,#REF!,#REF!,#REF!,#REF!) ->  | M13: 0 | P13: =SUM(#REF!,#REF!,#REF!,#REF!,#REF!,#REF!,#REF!) ->  | Q13: =SUM(#REF!,#REF!,#REF!,#REF!,#REF!,#REF!,#REF!,#REF!,#REF!) ->  | R13: =SUM(#REF!,#REF!,#REF!,#REF!,#REF!,#REF!,#REF!,#REF!,#REF!) ->  | S13: 0 | V13: =SUM(#REF!,#REF!,#REF!,#REF!,#REF!,#REF!,#REF!,#REF!) ->  | W13: =SUM(#REF!,#REF!,#REF!,#REF!,#REF!,#REF!,#REF!,#REF!,#REF!,#REF!,#REF!) ->  | X13: =SUM(#REF!,#REF!,#REF!,#REF!,#REF!) ->  | Y13: =SUM(#REF!,#REF!,#REF!,#REF!,#REF!) ->  | AB13: =SUM(#REF!,#REF!,#REF!,#REF!,#REF!,#REF!,#REF!,#REF!,#REF!) ->  | AC13: =SUM(#REF!,#REF!) ->  | AD13: =SUM(#REF!) ->  | AE13: =SUM(#REF!,#REF!,#REF!,#REF!,#REF!,#REF!,#REF!,#REF!,#REF!,#REF!,#REF!,#REF!,#REF!,#REF!,#REF!,#REF!,#REF!,#REF!,#REF!,#REF!,#REF!,#REF!,#REF!,#REF!,#REF!,#REF!,#REF!,#REF!,#REF!,#REF!,#REF!,#REF!,#REF!,#REF!,#REF!,#REF!,#REF!,#REF!,#REF!,#REF!,#REF!,#REF!,#REF!) ->  | AH13: =SUM(#REF!) ->  | AI13: =SUM(#REF!,#REF!,#REF!,#REF!,#REF!,#REF!,#REF!,#REF!,#REF!,#REF!,#REF!,#REF!) ->  | AJ13: =SUM(#REF!) ->  | AK13: =SUM(#REF!,#REF!,#REF!,#REF!,#REF!) ->  | AN13: 0 | AO13: 0 | AP13: 0 | AQ13: 0 | AR13: 0 | AT13: 0 | AU13: 0 | AV13: 0 | AW13: 0 | AX13: 0 | AZ13: AS32:AX37 | BA13: Relief Travel Cost & Other Special Charges
B14: Passengers transported | J14: =SUM(#REF!,#REF!,#REF!) ->  | K14: 0 | L14: =SUM(#REF!,#REF!,#REF!,#REF!,#REF!,#REF!,#REF!,#REF!,#REF!,#REF!,#REF!,#REF!,#REF!,#REF!) ->  | M14: 0 | P14: =SUM(#REF!,#REF!,#REF!,#REF!,#REF!,#REF!,#REF!) ->  | Q14: =SUM(#REF!,#REF!,#REF!,#REF!,#REF!,#REF!,#REF!,#REF!,#REF!) ->  | R14: =SUM(#REF!,#REF!,#REF!,#REF!,#REF!,#REF!,#REF!,#REF!,#REF!) ->  | S14: 0 | V14: =SUM(#REF!,#REF!,#REF!,#REF!,#REF!,#REF!,#REF!,#REF!) ->  | W14: =SUM(#REF!,#REF!,#REF!,#REF!,#REF!,#REF!,#REF!,#REF!,#REF!,#REF!,#REF!) ->  | X14: =SUM(#REF!,#REF!,#REF!,#REF!,#REF!) ->  | Y14: =SUM(#REF!,#REF!,#REF!,#REF!,#REF!) ->  | AB14: =SUM(#REF!,#REF!,#REF!,#REF!,#REF!,#REF!,#REF!,#REF!,#REF!) ->  | AC14: =SUM(#REF!,#REF!) ->  | AD14: =SUM(#REF!) ->  | AE14: =SUM(#REF!,#REF!,#REF!,#REF!,#REF!,#REF!,#REF!,#REF!,#REF!,#REF!,#REF!,#REF!,#REF!,#REF!,#REF!,#REF!,#REF!,#REF!,#REF!,#REF!,#REF!,#REF!,#REF!,#REF!,#REF!,#REF!,#REF!,#REF!,#REF!,#REF!,#REF!,#REF!,#REF!,#REF!,#REF!,#REF!,#REF!,#REF!,#REF!,#REF!,#REF!,#REF!,#REF!) ->  | AH14: =SUM(#REF!) ->  | AI14: =SUM(#REF!,#REF!,#REF!,#REF!,#REF!,#REF!,#REF!,#REF!,#REF!,#REF!,#REF!,#REF!) ->  | AJ14: =SUM(#REF!) ->  | AK14: =SUM(#REF!,#REF!,#REF!,#REF!,#REF!) ->  | AN14: 0 | AO14: 0 | AP14: 0 | AQ14: 0 | AR14: 0 | AT14: 0 | AU14: 0 | AV14: 0 | AW14: 0 | AX14: 0 | AZ14: V43:Z44 | BA14: Passengers Transported
B15: Cargo transported (lbs.) | J15: =SUM(#REF!,#REF!,#REF!) ->  | K15: 0 | L15: =SUM(#REF!,#REF!,#REF!,#REF!,#REF!,#REF!,#REF!,#REF!,#REF!,#REF!,#REF!,#REF!,#REF!,#REF!) ->  | M15: 0 | P15: =SUM(#REF!,#REF!,#REF!,#REF!,#REF!,#REF!,#REF!) ->  | Q15: =SUM(#REF!,#REF!,#REF!,#REF!,#REF!,#REF!,#REF!,#REF!,#REF!) ->  | R15: =SUM(#REF!,#REF!,#REF!,#REF!,#REF!,#REF!,#REF!,#REF!,#REF!) ->  | S15: 0 | V15: =SUM(#REF!,#REF!,#REF!,#REF!,#REF!,#REF!,#REF!,#REF!) ->  | W15: =SUM(#REF!,#REF!,#REF!,#REF!,#REF!,#REF!,#REF!,#REF!,#REF!,#REF!,#REF!) ->  | X15: =SUM(#REF!,#REF!,#REF!,#REF!,#REF!) ->  | Y15: =SUM(#REF!,#REF!,#REF!,#REF!,#REF!) ->  | AB15: =SUM(#REF!,#REF!,#REF!,#REF!,#REF!,#REF!,#REF!,#REF!,#REF!) ->  | AC15: =SUM(#REF!,#REF!) ->  | AD15: =SUM(#REF!) ->  | AE15: =SUM(#REF!,#REF!,#REF!,#REF!,#REF!,#REF!,#REF!,#REF!,#REF!,#REF!,#REF!,#REF!,#REF!,#REF!,#REF!,#REF!,#REF!,#REF!,#REF!,#REF!,#REF!,#REF!,#REF!,#REF!,#REF!,#REF!,#REF!,#REF!,#REF!,#REF!,#REF!,#REF!,#REF!,#REF!,#REF!,#REF!,#REF!,#REF!,#REF!,#REF!,#REF!,#REF!,#REF!) ->  | AH15: =SUM(#REF!) ->  | AI15: =SUM(#REF!,#REF!,#REF!,#REF!,#REF!,#REF!,#REF!,#REF!,#REF!,#REF!,#REF!,#REF!) ->  | AJ15: =SUM(#REF!) ->  | AK15: =SUM(#REF!,#REF!,#REF!,#REF!,#REF!) ->  | AN15: 0 | AO15: 0 | AP15: 0 | AQ15: 0 | AR15: 0 | AT15: 0 | AU15: 0 | AV15: 0 | AW15: 0 | AX15: 0 | AZ15: AA43:AF44 | BA15: Cargo Transported (lbs.)
B16: Water dropped (gal.) | G16: =SUM(M16,S16,Y16,AE16,AK16,AQ16,AW16) ->  | M16: 0 | N16: 0 | S16: 0 | T16: 0 | Y16: =SUM(#REF!,#REF!,#REF!,#REF!,#REF!) ->  | AE16: =SUM(#REF!,#REF!,#REF!,#REF!,#REF!,#REF!,#REF!,#REF!,#REF!,#REF!,#REF!,#REF!,#REF!,#REF!,#REF!,#REF!,#REF!,#REF!,#REF!,#REF!,#REF!,#REF!,#REF!,#REF!,#REF!,#REF!,#REF!,#REF!,#REF!,#REF!,#REF!,#REF!,#REF!,#REF!,#REF!,#REF!,#REF!,#REF!,#REF!,#REF!,#REF!,#REF!,#REF!) ->  | AK16: =SUM(#REF!,#REF!,#REF!,#REF!,#REF!) ->  | AQ16: 0 | AR16: 0 | AW16: 0 | AX16: 0 | AZ16: AG43:AL44 | BA16: Water Dropped (gal.)
B17: Initial Attacks | G17: =SUM(M17,S17,Y17,AE17,AK17,AQ17,AW17) -> 1 | H17: 1 | I17: 1 | M17: 0 | N17: =M17 -> 0 | S17: 0 | T17: 0 | Y17: 1 | Z17: 1 | AE17: 0 | AF17: 0 | AK17: 0 | AL17: 0 | AQ17: 0 | AR17: 0 | AW17: 0 | AX17: 0 | BA17: Initial Attacks
B18: SARs, Projects, Training & Fires Supported | D18: =SUM(J18,P18,V18,AB18,AH18,AN18,AT18)-2 -> 23 | E18: =SUM(K18,Q18,W18,AC18,AI18,AO18,AU18) -> 13 | F18: =SUM(L18,R18,X18,AD18,AJ18,AP18,AV18) -> 28 | G18: =SUM(M18,S18,Y18,AE18,AK18,) -> 10 | I18: 0 | J18: =J43+J63+J83+J103+J125 -> 3 | K18: =K43+K63+K83+K103+K125 -> 0 | L18: =L43+L63+L83+L103+L125 -> 14 | M18: =M43+M63+M83+M103+M125 -> 0 | P18: =P43+P63+P83+P103+P125 -> 5 | Q18: =Q43+Q63+Q83+Q103+Q125 -> 3 | R18: =R43+R63+R83+R103+R125 -> 7 | S18: =S43+S63+S83+S103+S125 -> 0 | V18: =V43+V63+V83+V103+V125 -> 7 | W18: =W43+W63+W83+W103+W125 -> 4 | X18: =X43+X63+X83+X103+X125 -> 5 | Y18: =Y43+Y63+Y83+Y103+Y125 -> 2 | AB18: =AB43+AB63+AB83+AB103+AB125 -> 9 | AC18: =AC43+AC63+AC83+AC103+AC125 -> 1 | AD18: =AD43+AD63+AD83+AD103+AD125 -> 1 | AE18: =AE43+AE63+AE83+AE103+AE125 -> 5 | AH18: =AH43+AH63+AH83+AH103+AH125 -> 1 | AI18: =AI43+AI63+AI83+AI103+AI125 -> 5 | AJ18: =AJ43+AJ63+AJ83+AJ103+AJ125 -> 1 | AK18: =AK43+AK63+AK83+AK103+AK125 -> 3 | AN18: =AN43+AN63+AN83+AN103+AN125 -> 0 | AO18: =AO43+AO63+AO83+AO103+AO125 -> 0 | AP18: =AP43+AP63+AP83+AP103+AP125 -> 0 | AQ18: =AQ43+AQ63+AQ83+AQ103+AQ125 -> 0 | AT18: =AT43+AT63+AT83+AT103+AT125 -> 0 | AU18: =AU43+AU63+AU83+AU103+AU125 -> 0 | AV18: =AV43+AV63+AV83+AV103+AV125 -> 0 | AW18: =AW43+AW63+AW83+AW103+AW125 -> 0 | BA18: SARs, Projects, Training & Fires Supported
B19: Wilderness Fight Time Hours | D19: =SUM(J19,P19,V19,AB19,AH19,AN19,AT19) ->  | H19: =SUM(D19:G19) ->  | J19: =SUM(#REF!,#REF!,#REF!) ->  | K19: 0 | L19: =SUM(#REF!,#REF!,#REF!,#REF!,#REF!,#REF!,#REF!,#REF!,#REF!,#REF!,#REF!,#REF!,#REF!,#REF!) ->  | M19: 0 | N19: =SUM(J19:M19) ->  | P19: =SUM(#REF!,#REF!,#REF!,#REF!,#REF!,#REF!,#REF!) ->  | Q19: =SUM(#REF!,#REF!,#REF!,#REF!,#REF!,#REF!,#REF!,#REF!,#REF!) ->  | R19: =SUM(#REF!,#REF!,#REF!,#REF!,#REF!,#REF!,#REF!,#REF!,#REF!) ->  | S19: 0 | T19: =SUM(P19:S19) ->  | V19: =SUM(#REF!,#REF!,#REF!,#REF!,#REF!,#REF!,#REF!,#REF!) ->  | W19: =SUM(#REF!,#REF!,#REF!,#REF!,#REF!,#REF!,#REF!,#REF!,#REF!,#REF!,#REF!) ->  | X19: =SUM(#REF!,#REF!,#REF!,#REF!,#REF!) ->  | Y19: =SUM(#REF!,#REF!,#REF!,#REF!,#REF!) ->  | Z19: =SUM(V19:Y19) ->  | AB19: =SUM(#REF!,#REF!,#REF!,#REF!,#REF!,#REF!,#REF!,#REF!,#REF!) ->  | AC19: =SUM(#REF!,#REF!) ->  | AD19: =SUM(#REF!) ->  | AE19: =SUM(#REF!,#REF!,#REF!,#REF!,#REF!,#REF!,#REF!,#REF!,#REF!,#REF!,#REF!,#REF!,#REF!,#REF!,#REF!,#REF!,#REF!,#REF!,#REF!,#REF!,#REF!,#REF!,#REF!,#REF!,#REF!,#REF!,#REF!,#REF!,#REF!,#REF!,#REF!,#REF!,#REF!,#REF!,#REF!,#REF!,#REF!,#REF!,#REF!,#REF!,#REF!,#REF!,#REF!) ->  | AF19: =SUM(AB19:AE19) ->  | AH19: =SUM(#REF!) ->  | AI19: =SUM(#REF!,#REF!,#REF!,#REF!,#REF!,#REF!,#REF!,#REF!,#REF!,#REF!,#REF!,#REF!) ->  | AJ19: =SUM(#REF!) ->  | AK19: =SUM(#REF!,#REF!,#REF!,#REF!,#REF!) ->  | AL19: =SUM(AH19:AK19) ->  | AN19: 0 | AO19: 0 | AP19: 0 | AQ19: 0 | AR19: =SUM(AN19:AQ19) -> 0 | AT19: 0 | AU19: 0 | AV19: 0 | AW19: 0 | AX19: =SUM(AT19:AW19) -> 0 | AZ19: BN18:BP19 | BA19: Wilderness Fight Time Hours
B20: Wilderness Landings | H20: =SUM(D20:G20) ->  | J20: =SUM(#REF!,#REF!,#REF!) ->  | K20: 0 | L20: =SUM(#REF!,#REF!,#REF!,#REF!,#REF!,#REF!,#REF!,#REF!,#REF!,#REF!,#REF!,#REF!,#REF!,#REF!) ->  | M20: 0 | N20: =SUM(J20:M20) ->  | P20: =SUM(#REF!,#REF!,#REF!,#REF!,#REF!,#REF!,#REF!) ->  | Q20: =SUM(#REF!,#REF!,#REF!,#REF!,#REF!,#REF!,#REF!,#REF!,#REF!) ->  | R20: =SUM(#REF!,#REF!,#REF!,#REF!,#REF!,#REF!,#REF!,#REF!,#REF!) ->  | S20: 0 | T20: =SUM(P20:S20) ->  | V20: =SUM(#REF!,#REF!,#REF!,#REF!,#REF!,#REF!,#REF!,#REF!) ->  | W20: =SUM(#REF!,#REF!,#REF!,#REF!,#REF!,#REF!,#REF!,#REF!,#REF!,#REF!,#REF!) ->  | X20: =SUM(#REF!,#REF!,#REF!,#REF!,#REF!) ->  | Y20: =SUM(#REF!,#REF!,#REF!,#REF!,#REF!) ->  | Z20: =SUM(V20:Y20) ->  | AB20: =SUM(#REF!,#REF!,#REF!,#REF!,#REF!,#REF!,#REF!,#REF!,#REF!) ->  | AC20: =SUM(#REF!,#REF!) ->  | AD20: =SUM(#REF!) ->  | AE20: =SUM(#REF!,#REF!,#REF!,#REF!,#REF!,#REF!,#REF!,#REF!,#REF!,#REF!,#REF!,#REF!,#REF!,#REF!,#REF!,#REF!,#REF!,#REF!,#REF!,#REF!,#REF!,#REF!,#REF!,#REF!,#REF!,#REF!,#REF!,#REF!,#REF!,#REF!,#REF!,#REF!,#REF!,#REF!,#REF!,#REF!,#REF!,#REF!,#REF!,#REF!,#REF!,#REF!,#REF!) ->  | AF20: =SUM(AB20:AE20) ->  | AH20: =SUM(#REF!) ->  | AI20: =SUM(#REF!,#REF!,#REF!,#REF!,#REF!,#REF!,#REF!,#REF!,#REF!,#REF!,#REF!,#REF!) ->  | AJ20: =SUM(#REF!) ->  | AK20: =SUM(#REF!,#REF!,#REF!,#REF!,#REF!) ->  | AL20: =SUM(AH20:AK20) ->  | AN20: 0 | AO20: 0 | AP20: 0 | AQ20: 0 | AR20: =SUM(AN20:AQ20) -> 0 | AT20: 0 | AU20: 0 | AV20: 0 | AW20: 0 | AX20: =SUM(AT20:AW20) -> 0 | AZ20: BN20:BP21 | BA20: Wilderness Landings
B21: Wilderness Deliveries | H21: =SUM(D21:G21) ->  | J21: =SUM(#REF!,#REF!,#REF!) ->  | K21: 0 | L21: =SUM(#REF!,#REF!,#REF!,#REF!,#REF!,#REF!,#REF!,#REF!,#REF!,#REF!,#REF!,#REF!,#REF!,#REF!) ->  | M21: 0 | N21: =SUM(J21:M21) ->  | P21: =SUM(#REF!,#REF!,#REF!,#REF!,#REF!,#REF!,#REF!) ->  | Q21: =SUM(#REF!,#REF!,#REF!,#REF!,#REF!,#REF!,#REF!,#REF!,#REF!) ->  | R21: =SUM(#REF!,#REF!,#REF!,#REF!,#REF!,#REF!,#REF!,#REF!,#REF!) ->  | S21: 0 | T21: =SUM(P21:S21) ->  | V21: =SUM(#REF!,#REF!,#REF!,#REF!,#REF!,#REF!,#REF!,#REF!) ->  | W21: =SUM(#REF!,#REF!,#REF!,#REF!,#REF!,#REF!,#REF!,#REF!,#REF!,#REF!,#REF!) ->  | X21: =SUM(#REF!,#REF!,#REF!,#REF!,#REF!) ->  | Y21: =SUM(#REF!,#REF!,#REF!,#REF!,#REF!) ->  | Z21: =SUM(V21:Y21) ->  | AB21: =SUM(#REF!,#REF!,#REF!,#REF!,#REF!,#REF!,#REF!,#REF!,#REF!) ->  | AC21: =SUM(#REF!,#REF!) ->  | AD21: =SUM(#REF!) ->  | AE21: =SUM(#REF!,#REF!,#REF!,#REF!,#REF!,#REF!,#REF!,#REF!,#REF!,#REF!,#REF!,#REF!,#REF!,#REF!,#REF!,#REF!,#REF!,#REF!,#REF!,#REF!,#REF!,#REF!,#REF!,#REF!,#REF!,#REF!,#REF!,#REF!,#REF!,#REF!,#REF!,#REF!,#REF!,#REF!,#REF!,#REF!,#REF!,#REF!,#REF!,#REF!,#REF!,#REF!,#REF!) ->  | AF21: =SUM(AB21:AE21) ->  | AH21: =SUM(#REF!) ->  | AI21: =SUM(#REF!,#REF!,#REF!,#REF!,#REF!,#REF!,#REF!,#REF!,#REF!,#REF!,#REF!,#REF!) ->  | AJ21: =SUM(#REF!) ->  | AK21: =SUM(#REF!,#REF!,#REF!,#REF!,#REF!) ->  | AL21: =SUM(AH21:AK21) ->  | AN21: 0 | AO21: 0 | AP21: 0 | AQ21: 0 | AR21: =SUM(AN21:AQ21) -> 0 | AT21: 0 | AU21: 0 | AV21: 0 | AW21: 0 | AX21: =SUM(AT21:AW21) -> 0 | AZ21: BN22:BP23 | BA21: Wilderness Ext. Load Deliveries & Pickups
B23: Totals by unit | C23: All Units | D23: MORA | E23: NOCA | F23: OLYM | G23: USFS/OWF | H23: Other
B24: Days (or partial days) at each unit | D24: =SUM('Task Order Totals'!AL5) -> 99 | E24: =SUM('Task Order Totals'!AM5) -> 55 | F24: =SUM('Task Order Totals'!AN5) -> 8 | G24: =SUM('Task Order Totals'!AO5) -> 9 | H24: =SUM('Task Order Totals'!AP5) -> 0
B25: SARs involving short-haul at each Unit | C25: =SUM(D25:H25) -> 12 | D25: 4 | E25: 5 | F25: 3 | G25: 0 | H25: 0
B26: check figures
C28: =$B29 -> MOUNT RAINIER NP | I28: =$B29 -> MOUNT RAINIER NP | O28: =$B29 -> MOUNT RAINIER NP | U28: =$B29 -> MOUNT RAINIER NP | AA28: =$B29 -> MOUNT RAINIER NP | AG28: =$B29 -> MOUNT RAINIER NP | AM28: =$B29 -> MOUNT RAINIER NP | AS28: =$B29 -> MOUNT RAINIER NP
B29: MOUNT RAINIER NP | C29: =C2 -> 139-day Contract TOTALS | I29: May | O29: June | U29: July | AA29: August | AG29: September | AM29: October | AS29: November
D30: SAR | E30: Project | F30: Training | G30: Fire | H30: Total | I30: Availability | J30: SAR | K30: Project | L30: Training | M30: Fire | N30: Total | O30: Availability | P30: SAR (operational) | Q30: Project | R30: Training | S30: Fire | T30: Total | U30: Availability | V30: SAR (operational) | W30: Project | X30: Training | Y30: Fire | Z30: Total | AA30: Availability | AB30: SAR (operational) | AC30: Project | AD30: Training | AE30: Fire | AF30: Total | AG30: Availability | AH30: SAR (operational) | AI30: Project | AJ30: Training | AK30: Fire | AL30: Total | AM30: Availability | AN30: SAR (operational) | AO30: Project | AP30: Training | AQ30: Fire | AR30: Total | AS30: Availability | AT30: SAR (operational) | AU30: Project | AV30: Training | AW30: Fire | AX30: Total
B31: Total Cost | D31: =SUM(J31,P31,V31,AB31,AH31,AN31,AT31) ->  | E31: =SUM(K31,Q31,W31,AC31,AI31,AO31,AU31) ->  | F31: =SUM(L31,R31,X31,AD31,AJ31,AP31,AV31) ->  | G31: =SUM(M31,S31,Y31,AE31,AK31,AQ31,AW31) -> 0 | H31: =SUM(N31,T31,Z31,AF31,AL31,AR31,AX31) ->  | J31: =J34+J35+J36+J37+J38 ->  | K31: =K34+K35+K36+K37+K38 -> 0 | L31: =L34+L35+L36+L37+L38 ->  | M31: =M34+M35+M36+M37+M38 -> 0 | N31: =SUM(I31:M31) ->  | P31: =P34+P35+P36+P37+P38 ->  | Q31: =Q34+Q35+Q36+Q37+Q38 ->  | R31: =R34+R35+R36+R37+R38 ->  | S31: =S34+S35+S36+S37+S38 -> 0 | T31: =SUM(O31:S31) ->  | V31: =V34+V35+V36+V37+V38 ->  | W31: =W34+W35+W36+W37+W38 ->  | X31: =X34+X35+X36+X37+X38 ->  | Y31: =Y34+Y35+Y36+Y37+Y38 -> 0 | Z31: =SUM(U31:Y31) ->  | AB31: =AB34+AB35+AB36+AB37+AB38 ->  | AC31: =AC34+AC35+AC36+AC37+AC38 -> 0 | AD31: =AD34+AD35+AD36+AD37+AD38 ->  | AE31: =AE34+AE35+AE36+AE37+AE38 -> 0 | AF31: =SUM(AA31:AE31) ->  | AH31: =AH34+AH35+AH36+AH37+AH38 ->  | AI31: =AI34+AI35+AI36+AI37+AI38 ->  | AJ31: =AJ34+AJ35+AJ36+AJ37+AJ38 ->  | AK31: =AK34+AK35+AK36+AK37+AK38 -> 0 | AL31: =SUM(AG31:AK31) ->  | AN31: =AN34+AN35+AN36+AN37+AN38 -> 0 | AO31: =AO34+AO35+AO36+AO37+AO38 -> 0 | AP31: =AP34+AP35+AP36+AP37+AP38 -> 0 | AQ31: =AQ34+AQ35+AQ36+AQ37+AQ38 -> 0 | AR31: =SUM(AM31:AQ31) -> 0 | AT31: =AT34+AT35+AT36+AT37+AT38 -> 0 | AU31: =AU34+AU35+AU36+AU37+AU38 -> 0 | AV31: =AV34+AV35+AV36+AV37+AV38 -> 0 | AW31: =AW34+AW35+AW36+AW37+AW38 -> 0 | AX31: =SUM(AS31:AW31) -> 0 | BA31: Total Cost
B32: Flight Time Hours | D32: =SUM(J32,P32,V32,AB32,AH32,AN32,AT32) ->  | E32: =SUM(K32,Q32,W32,AC32,AI32,AO32,AU32) ->  | F32: =SUM(L32,R32,X32,AD32,AJ32,AP32,AV32) ->  | G32: =SUM(M32,S32,Y32,AE32,AK32,AQ32,AW32) -> 0 | H32: =SUM(D32:G32) ->  | J32: =SUM(#REF!,#REF!) ->  | K32: 0 | L32: =SUM(#REF!,#REF!,#REF!,#REF!,#REF!,#REF!,#REF!,#REF!,#REF!,#REF!,#REF!) ->  | M32: 0 | N32: =SUM(J32:M32) ->  | P32: =SUM(#REF!,#REF!) ->  | Q32: =SUM(#REF!,#REF!,#REF!,#REF!) ->  | R32: =SUM(#REF!,#REF!,#REF!,#REF!) ->  | S32: 0 | T32: =SUM(P32:S32) ->  | V32: =SUM(#REF!,#REF!,#REF!,#REF!) ->  | W32: =SUM(#REF!,#REF!,#REF!,#REF!,#REF!,#REF!,#REF!,#REF!,#REF!,#REF!,#REF!) ->  | X32: =SUM(#REF!,#REF!,#REF!,#REF!,#REF!) ->  | Y32: 0 | Z32: =SUM(V32:Y32) ->  | AB32: =SUM(#REF!,#REF!,#REF!,#REF!) ->  | AC32: 0 | AD32: =SUM(#REF!) ->  | AE32: 0 | AF32: =SUM(AB32:AE32) ->  | AH32: =SUM(#REF!) ->  | AI32: =SUM(#REF!,#REF!,#REF!,#REF!,#REF!,#REF!,#REF!,#REF!) ->  | AJ32: =SUM(#REF!) ->  | AK32: 0 | AL32: =SUM(AH32:AK32) ->  | AN32: 0 | AO32: 0 | AP32: 0 | AQ32: 0 | AR32: =SUM(AN32:AQ32) -> 0 | AT32: 0 | AU32: 0 | AV32: 0 | AW32: 0 | AX32: =SUM(AT32:AW32) -> 0 | AZ32: AH16:AL17 | BA32: Flight Time Hours
B33: Flight Time Percentage | D33: =IF(SUM(D32:G32)=0,0,D32/SUM(D32:G32)) ->  | E33: =IF(SUM(D32:G32)=0,0,E32/SUM(D32:G32)) ->  | F33: =IF(SUM(D32:G32)=0,0,F32/SUM(D32:G32)) ->  | G33: =IF(SUM(D32:G32)=0,0,G32/SUM(D32:G32)) ->  | H33: =SUM(D33:G33) ->  | J33: =IF(SUM(J32:M32)=0,0,J32/SUM(J32:M32)) ->  | K33: =IF(SUM(J32:M32)=0,0,K32/SUM(J32:M32)) ->  | L33: =IF(SUM(J32:M32)=0,0,L32/SUM(J32:M32)) ->  | M33: =IF(SUM(J32:M32)=0,0,M32/SUM(J32:M32)) ->  | N33: =SUM(J33:M33) ->  | P33: =IF(SUM(P32:S32)=0,0,P32/SUM(P32:S32)) ->  | Q33: =IF(SUM(P32:S32)=0,0,Q32/SUM(P32:S32)) ->  | R33: =IF(SUM(P32:S32)=0,0,R32/SUM(P32:S32)) ->  | S33: =IF(SUM(P32:S32)=0,0,S32/SUM(P32:S32)) ->  | T33: =SUM(P33:S33) ->  | V33: =IF(SUM(V32:Y32)=0,0,V32/SUM(V32:Y32)) ->  | W33: =IF(SUM(V32:Y32)=0,0,W32/SUM(V32:Y32)) ->  | X33: =IF(SUM(V32:Y32)=0,0,X32/SUM(V32:Y32)) ->  | Y33: =IF(SUM(V32:Y32)=0,0,Y32/SUM(V32:Y32)) ->  | Z33: =SUM(V33:Y33) ->  | AB33: =IF(SUM(AB32:AE32)=0,0,AB32/SUM(AB32:AE32)) ->  | AC33: =IF(SUM(AB32:AE32)=0,0,AC32/SUM(AB32:AE32)) ->  | AD33: =IF(SUM(AB32:AE32)=0,0,AD32/SUM(AB32:AE32)) ->  | AE33: =IF(SUM(AB32:AE32)=0,0,AE32/SUM(AB32:AE32)) ->  | AF33: =SUM(AB33:AE33) ->  | AH33: =IF(SUM(AH32:AK32)=0,0,AH32/SUM(AH32:AK32)) ->  | AI33: =IF(SUM(AH32:AK32)=0,0,AI32/SUM(AH32:AK32)) ->  | AJ33: =IF(SUM(AH32:AK32)=0,0,AJ32/SUM(AH32:AK32)) ->  | AK33: =IF(SUM(AH32:AK32)=0,0,AK32/SUM(AH32:AK32)) ->  | AL33: =SUM(AH33:AK33) ->  | AN33: =IF(SUM(AN32:AQ32)=0,0,AN32/SUM(AN32:AQ32)) -> 0 | AO33: =IF(SUM(AN32:AQ32)=0,0,AO32/SUM(AN32:AQ32)) -> 0 | AP33: =IF(SUM(AN32:AQ32)=0,0,AP32/SUM(AN32:AQ32)) -> 0 | AQ33: =IF(SUM(AN32:AQ32)=0,0,AQ32/SUM(AN32:AQ32)) -> 0 | AR33: 0 | AT33: =IF(SUM(AT32:AW32)=0,0,AT32/SUM(AT32:AW32)) -> 0 | AU33: =IF(SUM(AT32:AW32)=0,0,AU32/SUM(AT32:AW32)) -> 0 | AV33: =IF(SUM(AT32:AW32)=0,0,AV32/SUM(AT32:AW32)) -> 0 | AW33: =IF(SUM(AT32:AW32)=0,0,AW32/SUM(AT32:AW32)) -> 0 | AX33: 0 | BA33: Flight Time Percentage
B34: Flight Time Cost | D34: =SUM(J34,P34,V34,AB34,AH34,AN34,AT34) ->  | G34: 0 | H34: =SUM(D34:G34) ->  | J34: =J32*'Contract Info'!$D$18 ->  | K34: =K32*'Contract Info'!$D$18 -> 0 | L34: =L32*'Contract Info'!$D$18 ->  | M34: =M32*'Contract Info'!$D$18 -> 0 | P34: =P32*'Contract Info'!$D$18 ->  | Q34: =Q32*'Contract Info'!$D$18 ->  | R34: =R32*'Contract Info'!$D$18 ->  | S34: =S32*'Contract Info'!$D$18 -> 0 | T34: =SUM(P34:S34) ->  | V34: =V32*'Contract Info'!$D$18 ->  | W34: =W32*'Contract Info'!$D$18 ->  | X34: =X32*'Contract Info'!$D$18 ->  | Y34: =Y32*'Contract Info'!$D$18 -> 0 | Z34: =SUM(V34:Y34) ->  | AB34: =AB32*'Contract Info'!$D$18 ->  | AC34: =AC32*'Contract Info'!$D$18 -> 0 | AD34: =AD32*'Contract Info'!$D$18 ->  | AE34: =AE32*'Contract Info'!$D$18 -> 0 | AF34: =SUM(AB34:AE34) ->  | AH34: =AH32*'Contract Info'!$D$18 ->  | AI34: =AI32*'Contract Info'!$D$18 ->  | AJ34: =AJ32*'Contract Info'!$D$18 ->  | AK34: =AK32*'Contract Info'!$D$18 -> 0 | AL34: =SUM(AH34:AK34) ->  | AN34: =AN32*'Contract Info'!$D$18 -> 0 | AO34: =AO32*'Contract Info'!$D$18 -> 0 | AP34: =AP32*'Contract Info'!$D$18 -> 0 | AQ34: =AQ32*'Contract Info'!$D$18 -> 0 | AR34: =SUM(AN34:AQ34) -> 0 | AT34: =AT32*'Contract Info'!$D$18 -> 0 | AU34: =AU32*'Contract Info'!$D$18 -> 0 | AV34: =AV32*'Contract Info'!$D$18 -> 0 | AW34: =AW32*'Contract Info'!$D$18 -> 0 | AX34: 0 | BA34: Flight Time Cost
B35: Extended Standby Cost | G35: 0 | J35: =SUM(#REF!,#REF!) ->  | K35: 0 | L35: =SUM(#REF!,#REF!,#REF!,#REF!,#REF!,#REF!,#REF!,#REF!,#REF!,#REF!,#REF!) ->  | M35: 0 | P35: =SUM(#REF!,#REF!) ->  | Q35: =SUM(#REF!,#REF!,#REF!,#REF!) ->  | R35: =SUM(#REF!,#REF!,#REF!,#REF!) ->  | S35: 0 | V35: =SUM(#REF!,#REF!,#REF!,#REF!) ->  | W35: =SUM(#REF!,#REF!,#REF!,#REF!,#REF!,#REF!,#REF!,#REF!,#REF!,#REF!,#REF!) ->  | X35: =SUM(#REF!,#REF!,#REF!,#REF!,#REF!) ->  | Y35: 0 | AB35: =SUM(#REF!,#REF!,#REF!,#REF!) ->  | AC35: 0 | AD35: =SUM(#REF!) ->  | AE35: 0 | AH35: =SUM(#REF!) ->  | AI35: =SUM(#REF!,#REF!,#REF!,#REF!,#REF!,#REF!,#REF!,#REF!) ->  | AJ35: =SUM(#REF!) ->  | AK35: 0 | AN35: 0 | AO35: 0 | AP35: 0 | AQ35: 0 | AR35: 0 | AT35: 0 | AU35: 0 | AV35: 0 | AW35: 0 | AX35: 0 | AZ35: AS20:AX25 | BA35: Extended Standby Cost
B36: Per Diem Cost | G36: 0 | J36: =SUM(#REF!,#REF!) ->  | K36: 0 | L36: =SUM(#REF!,#REF!,#REF!,#REF!,#REF!,#REF!,#REF!,#REF!,#REF!,#REF!,#REF!) ->  | M36: 0 | P36: =SUM(#REF!,#REF!) ->  | Q36: =SUM(#REF!,#REF!,#REF!,#REF!) ->  | R36: =SUM(#REF!,#REF!,#REF!,#REF!) ->  | S36: 0 | V36: =SUM(#REF!,#REF!,#REF!,#REF!) ->  | W36: =SUM(#REF!,#REF!,#REF!,#REF!,#REF!,#REF!,#REF!,#REF!,#REF!,#REF!,#REF!) ->  | X36: =SUM(#REF!,#REF!,#REF!,#REF!,#REF!) ->  | Y36: 0 | AB36: =SUM(#REF!,#REF!,#REF!,#REF!) ->  | AC36: 0 | AD36: =SUM(#REF!) ->  | AE36: 0 | AH36: =SUM(#REF!) ->  | AI36: =SUM(#REF!,#REF!,#REF!,#REF!,#REF!,#REF!,#REF!,#REF!) ->  | AJ36: =SUM(#REF!) ->  | AK36: 0 | AN36: 0 | AO36: 0 | AP36: 0 | AQ36: 0 | AR36: 0 | AT36: 0 | AU36: 0 | AV36: 0 | AW36: 0 | AX36: 0 | AZ36: AS26:AX27 | BA36: Per Diem Cost
B37: Service Truck Mileage Cost | G37: 0 | J37: =SUM(#REF!,#REF!) ->  | K37: 0 | L37: =SUM(#REF!,#REF!,#REF!,#REF!,#REF!,#REF!,#REF!,#REF!,#REF!,#REF!,#REF!) ->  | M37: 0 | P37: =SUM(#REF!,#REF!) ->  | Q37: =SUM(#REF!,#REF!,#REF!,#REF!) ->  | R37: =SUM(#REF!,#REF!,#REF!,#REF!) ->  | S37: 0 | V37: =SUM(#REF!,#REF!,#REF!,#REF!) ->  | W37: =SUM(#REF!,#REF!,#REF!,#REF!,#REF!,#REF!,#REF!,#REF!,#REF!,#REF!,#REF!) ->  | X37: =SUM(#REF!,#REF!,#REF!,#REF!,#REF!) ->  | Y37: 0 | AB37: =SUM(#REF!,#REF!,#REF!,#REF!) ->  | AC37: 0 | AD37: =SUM(#REF!) ->  | AE37: 0 | AH37: =SUM(#REF!) ->  | AI37: =SUM(#REF!,#REF!,#REF!,#REF!,#REF!,#REF!,#REF!,#REF!) ->  | AJ37: =SUM(#REF!) ->  | AK37: 0 | AN37: 0 | AO37: 0 | AP37: 0 | AQ37: 0 | AR37: 0 | AT37: 0 | AU37: 0 | AV37: 0 | AW37: 0 | AX37: 0 | AZ37: AS28:AX29 | BA37: Service Truck Mileage Cost
B38: Relief Travel Cost & Other Special Charges | H38: =SUM(D38:G38) -> 0 | N38: =SUM(J38:M38) -> 0 | T38: =SUM(P38:S38) -> 0 | Z38: =SUM(V38:Y38) -> 0 | AF38: =SUM(AB38:AE38) -> 0 | AL38: =SUM(AH38:AK38) -> 0 | AR38: =SUM(AN38:AQ38) -> 0 | AX38: =SUM(AT38:AW38) -> 0 | AZ38: AS32:AX37 | BA38: Relief Travel Cost & Other Special Charges
B39: Passengers Transported | G39: 0 | J39: =SUM(#REF!,#REF!) ->  | K39: 0 | L39: =SUM(#REF!,#REF!,#REF!,#REF!,#REF!,#REF!,#REF!,#REF!,#REF!,#REF!,#REF!) ->  | M39: 0 | P39: =SUM(#REF!,#REF!) ->  | Q39: =SUM(#REF!,#REF!,#REF!,#REF!) ->  | R39: =SUM(#REF!,#REF!,#REF!,#REF!) ->  | S39: 0 | V39: =SUM(#REF!,#REF!,#REF!,#REF!) ->  | W39: =SUM(#REF!,#REF!,#REF!,#REF!,#REF!,#REF!,#REF!,#REF!,#REF!,#REF!,#REF!) ->  | X39: =SUM(#REF!,#REF!,#REF!,#REF!,#REF!) ->  | Y39: 0 | AB39: =SUM(#REF!,#REF!,#REF!,#REF!) ->  | AC39: 0 | AD39: =SUM(#REF!) ->  | AE39: 0 | AH39: =SUM(#REF!) ->  | AI39: =SUM(#REF!,#REF!,#REF!,#REF!,#REF!,#REF!,#REF!,#REF!) ->  | AJ39: =SUM(#REF!) ->  | AK39: 0 | AN39: 0 | AO39: 0 | AP39: 0 | AQ39: 0 | AR39: 0 | AT39: 0 | AU39: 0 | AV39: 0 | AW39: 0 | AX39: 0 | AZ39: V43:Z44 | BA39: Passengers Transported
B40: Cargo Transported (lbs.) | G40: 0 | J40: =SUM(#REF!,#REF!) ->  | K40: 0 | L40: =SUM(#REF!,#REF!,#REF!,#REF!,#REF!,#REF!,#REF!,#REF!,#REF!,#REF!,#REF!) ->  | M40: 0 | P40: =SUM(#REF!,#REF!) ->  | Q40: =SUM(#REF!,#REF!,#REF!,#REF!) ->  | R40: =SUM(#REF!,#REF!,#REF!,#REF!) ->  | S40: 0 | V40: =SUM(#REF!,#REF!,#REF!,#REF!) ->  | W40: =SUM(#REF!,#REF!,#REF!,#REF!,#REF!,#REF!,#REF!,#REF!,#REF!,#REF!,#REF!) ->  | X40: =SUM(#REF!,#REF!,#REF!,#REF!,#REF!) ->  | Y40: 0 | AB40: =SUM(#REF!,#REF!,#REF!,#REF!) ->  | AC40: 0 | AD40: =SUM(#REF!) ->  | AE40: 0 | AH40: =SUM(#REF!) ->  | AI40: =SUM(#REF!,#REF!,#REF!,#REF!,#REF!,#REF!,#REF!,#REF!) ->  | AJ40: =SUM(#REF!) ->  | AK40: 0 | AN40: 0 | AO40: 0 | AP40: 0 | AQ40: 0 | AR40: 0 | AT40: 0 | AU40: 0 | AV40: 0 | AW40: 0 | AX40: 0 | AZ40: AA43:AF44 | BA40: Cargo Transported (lbs.)
B41: Water Dropped (gal.) | G41: =SUM(M41,S41,Y41,AE41,AK41,AQ41,AW41) -> 0 | H41: 0 | M41: 0 | N41: 0 | S41: 0 | T41: 0 | Y41: 0 | Z41: 0 | AE41: 0 | AF41: 0 | AK41: 0 | AL41: 0 | AQ41: 0 | AR41: 0 | AW41: 0 | AX41: 0 | AZ41: AG43:AL44 | BA41: Water Dropped (gal.)
B42: Initial Attacks | G42: =SUM(M42,S42,Y42,AE42,AK42,AQ42,AW42) -> 0 | H42: 0 | M42: 0 | N42: =M42 -> 0 | S42: 0 | T42: 0 | Y42: 0 | Z42: 0 | AE42: 0 | AF42: 0 | AK42: 0 | AL42: 0 | AQ42: 0 | AR42: 0 | AW42: 0 | AX42: 0 | BA42: Initial Attacks
B43: SARs, Projects, Training & Fires Supported | D43: =SUM(J43,P43,V43,AB43,AH43,AN43,AT43) -> 13 | E43: 10 | F43: 22 | G43: =SUM(M43,S43,Y43,AE43,AK43,) -> 0 | J43: 2 | K43: 0 | L43: 11 | M43: 0 | N43: =M43 -> 0 | P43: 2 | Q43: 2 | R43: 4 | S43: 0 | V43: 4 | W43: 4 | X43: 5 | Y43: 0 | AB43: 4 | AC43: 0 | AD43: 1 | AE43: 0 | AH43: 1 | AI43: 4 | AJ43: 1 | AK43: 0 | AN43: 0 | AO43: 0 | AP43: 0 | AQ43: 0 | AT43: 0 | AU43: 0 | AV43: 0 | AW43: 0 | BA43: SARs, Projects, Training & Fires Supported
B44: Wilderness Fight Time Hours | G44: =SUM(M44,S44,Y44,AE44,AK44,AQ44,AW44) -> 0 | H44: =SUM(D44:G44) ->  | J44: =SUM(#REF!,#REF!) ->  | K44: 0 | L44: =SUM(#REF!,#REF!,#REF!,#REF!,#REF!,#REF!,#REF!,#REF!,#REF!,#REF!,#REF!) ->  | M44: 0 | N44: =SUM(J44:M44) ->  | P44: =SUM(#REF!,#REF!) ->  | Q44: =SUM(#REF!,#REF!,#REF!,#REF!) ->  | R44: =SUM(#REF!,#REF!,#REF!,#REF!) ->  | S44: 0 | T44: =SUM(P44:S44) ->  | V44: =SUM(#REF!,#REF!,#REF!,#REF!) ->  | W44: =SUM(#REF!,#REF!,#REF!,#REF!,#REF!,#REF!,#REF!,#REF!,#REF!,#REF!,#REF!) ->  | X44: =SUM(#REF!,#REF!,#REF!,#REF!,#REF!) ->  | Y44: 0 | Z44: =SUM(V44:Y44) ->  | AB44: =SUM(#REF!,#REF!,#REF!,#REF!) ->  | AC44: 0 | AD44: =SUM(#REF!) ->  | AE44: 0 | AF44: =SUM(AB44:AE44) ->  | AH44: =SUM(#REF!) ->  | AI44: =SUM(#REF!,#REF!,#REF!,#REF!,#REF!,#REF!,#REF!,#REF!) ->  | AJ44: =SUM(#REF!) ->  | AK44: 0 | AL44: =SUM(AH44:AK44) ->  | AN44: 0 | AO44: 0 | AP44: 0 | AQ44: 0 | AR44: =SUM(AN44:AQ44) -> 0 | AT44: 0 | AU44: 0 | AV44: 0 | AW44: 0 | AX44: =SUM(AT44:AW44) -> 0 | AZ44: BN18:BP19 | BA44: Wilderness Fight Time Hours
B45: Wilderness Landings | G45: =SUM(M45,S45,Y45,AE45,AK45,AQ45,AW45) -> 0 | H45: =SUM(D45:G45) ->  | J45: =SUM(#REF!,#REF!) ->  | K45: 0 | L45: =SUM(#REF!,#REF!,#REF!,#REF!,#REF!,#REF!,#REF!,#REF!,#REF!,#REF!,#REF!) ->  | M45: 0 | N45: =SUM(J45:M45) ->  | P45: =SUM(#REF!,#REF!) ->  | Q45: =SUM(#REF!,#REF!,#REF!,#REF!) ->  | R45: =SUM(#REF!,#REF!,#REF!,#REF!) ->  | S45: 0 | T45: =SUM(P45:S45) ->  | V45: =SUM(#REF!,#REF!,#REF!,#REF!) ->  | W45: =SUM(#REF!,#REF!,#REF!,#REF!,#REF!,#REF!,#REF!,#REF!,#REF!,#REF!,#REF!) ->  | X45: =SUM(#REF!,#REF!,#REF!,#REF!,#REF!) ->  | Y45: 0 | Z45: =SUM(V45:Y45) ->  | AB45: =SUM(#REF!,#REF!,#REF!,#REF!) ->  | AC45: 0 | AD45: =SUM(#REF!) ->  | AE45: 0 | AF45: =SUM(AB45:AE45) ->  | AH45: =SUM(#REF!) ->  | AI45: =SUM(#REF!,#REF!,#REF!,#REF!,#REF!,#REF!,#REF!,#REF!) ->  | AJ45: =SUM(#REF!) ->  | AK45: 0 | AL45: =SUM(AH45:AK45) ->  | AN45: 0 | AO45: 0 | AP45: 0 | AQ45: 0 | AR45: =SUM(AN45:AQ45) -> 0 | AT45: 0 | AU45: 0 | AV45: 0 | AW45: 0 | AX45: =SUM(AT45:AW45) -> 0 | AZ45: BN20:BP21 | BA45: Wilderness Landings
B46: Wilderness Ext. Load Deliveries & Pickups | G46: =SUM(M46,S46,Y46,AE46,AK46,AQ46,AW46) -> 0 | H46: =SUM(D46:G46) ->  | J46: =SUM(#REF!,#REF!) ->  | K46: 0 | L46: =SUM(#REF!,#REF!,#REF!,#REF!,#REF!,#REF!,#REF!,#REF!,#REF!,#REF!,#REF!) ->  | M46: 0 | N46: =SUM(J46:M46) ->  | P46: =SUM(#REF!,#REF!) ->  | Q46: =SUM(#REF!,#REF!,#REF!,#REF!) ->  | R46: =SUM(#REF!,#REF!,#REF!,#REF!) ->  | S46: 0 | T46: =SUM(P46:S46) ->  | V46: =SUM(#REF!,#REF!,#REF!,#REF!) ->  | W46: =SUM(#REF!,#REF!,#REF!,#REF!,#REF!,#REF!,#REF!,#REF!,#REF!,#REF!,#REF!) ->  | X46: =SUM(#REF!,#REF!,#REF!,#REF!,#REF!) ->  | Y46: 0 | Z46: =SUM(V46:Y46) ->  | AB46: =SUM(#REF!,#REF!,#REF!,#REF!) ->  | AC46: 0 | AD46: =SUM(#REF!) ->  | AE46: 0 | AF46: =SUM(AB46:AE46) ->  | AH46: =SUM(#REF!) ->  | AI46: =SUM(#REF!,#REF!,#REF!,#REF!,#REF!,#REF!,#REF!,#REF!) ->  | AJ46: =SUM(#REF!) ->  | AK46: 0 | AL46: =SUM(AH46:AK46) ->  | AN46: 0 | AO46: 0 | AP46: 0 | AQ46: 0 | AR46: =SUM(AN46:AQ46) -> 0 | AT46: 0 | AU46: 0 | AV46: 0 | AW46: 0 | AX46: =SUM(AT46:AW46) -> 0 | AZ46: BN22:BP23 | BA46: Wilderness Ext. Load Deliveries & Pickups
D47: =D51+D71+D91+D116+D137 -> 
C48: =B49 -> NORTH CASCADES NP | I48: =B49 -> NORTH CASCADES NP | O48: NORTH CASCADES NP | U48: NORTH CASCADES NP | AA48: NORTH CASCADES NP | AG48: NORTH CASCADES NP | AM48: NORTH CASCADES NP | AS48: NORTH CASCADES NP
B49: NORTH CASCADES NP | C49: =C2 -> 139-day Contract TOTALS | I49: May | O49: June | U49: July | AA49: August | AG49: September | AM49: October | AS49: November
D50: SAR | E50: Project | F50: Training | G50: Fire | H50: Total | J50: SAR (operational) | K50: Project | L50: Training | M50: Fire | N50: Total | P50: SAR (operational) | Q50: Project | R50: Training | S50: Fire | T50: Total | V50: SAR (operational) | W50: Project | X50: Training | Y50: Fire | Z50: Total | AB50: SAR (operational) | AC50: Project | AD50: Training | AE50: Fire | AF50: Total | AH50: SAR (operational) | AI50: Project | AJ50: Training | AK50: Fire | AL50: Total | AN50: SAR (operational) | AO50: Project & Training | AQ50: Fire | AR50: Total | AT50: SAR (operational) | AU50: Project & Training | AW50: Fire | AX50: Total
B51: Total Cost | D51: =SUM(J51,P51,V51,AB51,AH51,AN51,AT51) ->  | E51: =SUM(K51,Q51,W51,AC51,AI51,AO51,AU51) ->  | F51: =SUM(L51,R51,X51,AD51,AJ51,AP51,AV51) ->  | G51: =SUM(M51,S51,Y51,AE51,AK51,AQ51,AW51) ->  | H51: =SUM(N51,T51,Z51,AF51,AL51,AR51,AX51) ->  | J51: =J54+J55+J56+J57+J58 ->  | K51: =K54+K55+K56+K57+K58 -> 0 | L51: =L54+L55+L56+L57+L58 -> 0 | M51: =M54+M55+M56+M57+M58 -> 0 | N51: =SUM(I51:M51) ->  | P51: =P54+P55+P56+P57+P58 ->  | Q51: =Q54+Q55+Q56+Q57+Q58 ->  | R51: =R54+R55+R56+R57+R58 ->  | S51: =S54+S55+S56+S57+S58 -> 0 | T51: =SUM(O51:S51) ->  | V51: =V54+V55+V56+V57+V58 ->  | W51: =W54+W55+W56+W57+W58 -> 0 | X51: =X54+X55+X56+X57+X58 -> 0 | Y51: =Y54+Y55+Y56+Y57+Y58 ->  | Z51: =SUM(U51:Y51) ->  | AB51: =AB54+AB55+AB56+AB57+AB58 ->  | AC51: =AC54+AC55+AC56+AC57+AC58 ->  | AD51: =AD54+AD55+AD56+AD57+AD58 -> 0 | AE51: =AE54+AE55+AE56+AE57+AE58 ->  | AF51: =SUM(AA51:AE51) ->  | AH51: =AH54+AH55+AH56+AH57+AH58 -> 0 | AI51: =AI54+AI55+AI56+AI57+AI58 ->  | AJ51: =AJ54+AJ55+AJ56+AJ57+AJ58 -> 0 | AK51: =AK54+AK55+AK56+AK57+AK58 ->  | AL51: =SUM(AG51:AK51) ->  | AN51: =AN54+AN55+AN56+AN57+AN58 -> 0 | AO51: =AO54+AO55+AO56+AO57+AO58 -> 0 | AQ51: =AQ54+AQ55+AQ56+AQ57+AQ58 -> 0 | AR51: =SUM(AM51:AQ51) -> 0 | AT51: =AT54+AT55+AT56+AT57+AT58 -> 0 | AU51: =AU54+AU55+AU56+AU57+AU58 -> 0 | AW51: =AW54+AW55+AW56+AW57+AW58 -> 0 | AX51: =SUM(AS51:AW51) -> 0 | BA51: Total Cost
B52: Flight Time Hours | D52: =SUM(J52,P52,V52,AB52,AH52,AN52,AT52) ->  | E52: =SUM(K52,Q52,W52,AC52,AI52,AO52,AU52) ->  | F52: =SUM(L52,R52,X52,AD52,AJ52,AP52,AV52) ->  | G52: =SUM(M52,S52,Y52,AE52,AK52,AQ52,AW52) ->  | H52: =SUM(D52:G52) ->  | J52: =SUM(#REF!) ->  | K52: 0 | L52: 0 | M52: 0 | N52: =SUM(J52:M52) ->  | P52: =SUM(#REF!,#REF!,#REF!,#REF!) ->  | Q52: =SUM(#REF!,#REF!,#REF!,#REF!,#REF!) ->  | R52: =SUM(#REF!,#REF!,#REF!,#REF!,#REF!) ->  | S52: 0 | T52: =SUM(P52:S52) ->  | V52: =SUM(#REF!,#REF!) ->  | W52: 0 | X52: 0 | Y52: =SUM(#REF!,#REF!,#REF!,#REF!,#REF!) ->  | Z52: =SUM(V52:Y52) ->  | AB52: =SUM(#REF!,#REF!) ->  | AC52: =SUM(#REF!,#REF!) ->  | AD52: 0 | AE52: =SUM(#REF!,#REF!,#REF!,#REF!,#REF!,#REF!,#REF!,#REF!,#REF!,#REF!,#REF!,#REF!,#REF!,#REF!,#REF!,#REF!,#REF!,#REF!,#REF!,#REF!,#REF!,#REF!,#REF!,#REF!,#REF!,#REF!,#REF!,#REF!,#REF!,#REF!,#REF!,#REF!,#REF!,#REF!,#REF!) ->  | AF52: =SUM(AB52:AE52) ->  | AH52: 0 | AI52: =SUM(#REF!,#REF!,#REF!,#REF!) ->  | AJ52: 0 | AK52: =SUM(#REF!,#REF!,#REF!,#REF!) ->  | AL52: =SUM(AH52:AK52) ->  | AN52: 0 | AO52: 0 | AQ52: 0 | AR52: =SUM(AN52:AQ52) -> 0 | AT52: 0 | AU52: 0 | AW52: 0 | AX52: =SUM(AT52:AW52) -> 0 | AZ52: AH16:AL17 | BA52: Flight Time Hours
B53: Flight Time Percentage | D53: =IF(SUM(D52:G52)=0,0,D52/SUM(D52:G52)) ->  | E53: =IF(SUM(D52:G52)=0,0,E52/SUM(D52:G52)) ->  | F53: =IF(SUM(D52:G52)=0,0,F52/SUM(D52:G52)) ->  | G53: =IF(SUM(D52:G52)=0,0,G52/SUM(D52:G52)) ->  | J53: =IF(SUM(J52:M52)=0,0,J52/SUM(J52:M52)) ->  | K53: =IF(SUM(J52:M52)=0,0,K52/SUM(J52:M52)) ->  | L53: =IF(SUM(J52:M52)=0,0,L52/SUM(J52:M52)) ->  | M53: =IF(SUM(J52:M52)=0,0,M52/SUM(J52:M52)) ->  | N53: =SUM(J53:M53) ->  | P53: =IF(SUM(P52:S52)=0,0,P52/SUM(P52:S52)) ->  | Q53: =IF(SUM(P52:S52)=0,0,Q52/SUM(P52:S52)) ->  | R53: =IF(SUM(P52:S52)=0,0,R52/SUM(P52:S52)) ->  | S53: =IF(SUM(P52:S52)=0,0,S52/SUM(P52:S52)) ->  | V53: =IF(SUM(V52:Y52)=0,0,V52/SUM(V52:Y52)) ->  | W53: =IF(SUM(V52:Y52)=0,0,W52/SUM(V52:Y52)) ->  | X53: =IF(SUM(V52:Y52)=0,0,X52/SUM(V52:Y52)) ->  | Y53: =IF(SUM(V52:Y52)=0,0,Y52/SUM(V52:Y52)) ->  | AB53: =IF(SUM(AB52:AE52)=0,0,AB52/SUM(AB52:AE52)) ->  | AC53: =IF(SUM(AB52:AE52)=0,0,AC52/SUM(AB52:AE52)) ->  | AD53: =IF(SUM(AB52:AE52)=0,0,AD52/SUM(AB52:AE52)) ->  | AE53: =IF(SUM(AB52:AE52)=0,0,AE52/SUM(AB52:AE52)) ->  | AH53: =IF(SUM(AH52:AK52)=0,0,AH52/SUM(AH52:AK52)) ->  | AI53: =IF(SUM(AH52:AK52)=0,0,AI52/SUM(AH52:AK52)) ->  | AJ53: =IF(SUM(AH52:AK52)=0,0,AJ52/SUM(AH52:AK52)) ->  | AK53: =IF(SUM(AH52:AK52)=0,0,AK52/SUM(AH52:AK52)) ->  | AN53: =IF(SUM(AN52:AQ52)=0,0,AN52/SUM(AN52:AQ52)) -> 0 | AO53: =IF(SUM(AN52:AQ52)=0,0,AO52/SUM(AN52:AQ52)) -> 0 | AP53: =IF(SUM(AN52:AQ52)=0,0,AP52/SUM(AN52:AQ52)) -> 0 | AQ53: =IF(SUM(AN52:AQ52)=0,0,AQ52/SUM(AN52:AQ52)) -> 0 | AR53: 0 | AT53: =IF(SUM(AT52:AW52)=0,0,AT52/SUM(AT52:AW52)) -> 0 | AU53: =IF(SUM(AT52:AW52)=0,0,AU52/SUM(AT52:AW52)) -> 0 | AV53: =IF(SUM(AT52:AW52)=0,0,AV52/SUM(AT52:AW52)) -> 0 | AW53: =IF(SUM(AT52:AW52)=0,0,AW52/SUM(AT52:AW52)) -> 0 | AX53: 0 | BA53: Flight Time Percentage
B54: Flight Time Cost | D54: =SUM(J54,P54,V54,AB54,AH54,AN54,AT54) ->  | J54: =J52*'Contract Info'!$D$18 ->  | K54: =K52*'Contract Info'!$D$18 -> 0 | L54: =L52*'Contract Info'!$D$18 -> 0 | M54: =M52*'Contract Info'!$D$18 -> 0 | P54: =P52*'Contract Info'!$D$18 ->  | Q54: =Q52*'Contract Info'!$D$18 ->  | R54: =R52*'Contract Info'!$D$18 ->  | S54: =S52*'Contract Info'!$D$18 -> 0 | V54: =V52*'Contract Info'!$D$18 ->  | W54: =W52*'Contract Info'!$D$18 -> 0 | X54: =X52*'Contract Info'!$D$18 -> 0 | Y54: =Y52*'Contract Info'!$D$18 ->  | AB54: =AB52*'Contract Info'!$D$18 ->  | AC54: =AC52*'Contract Info'!$D$18 ->  | AD54: =AD52*'Contract Info'!$D$18 -> 0 | AE54: =AE52*'Contract Info'!$D$18 ->  | AH54: =AH52*'Contract Info'!$D$18 -> 0 | AI54: =AI52*'Contract Info'!$D$18 ->  | AJ54: =AJ52*'Contract Info'!$D$18 -> 0 | AK54: =AK52*'Contract Info'!$D$18 ->  | AN54: =AN52*'Contract Info'!$D$18 -> 0 | AO54: =AO52*'Contract Info'!$D$18 -> 0 | AP54: =AP52*'Contract Info'!$D$18 -> 0 | AQ54: =AQ52*'Contract Info'!$D$18 -> 0 | AR54: 0 | AT54: =AT52*'Contract Info'!$D$18 -> 0 | AU54: =AU52*'Contract Info'!$D$18 -> 0 | AV54: =AV52*'Contract Info'!$D$18 -> 0 | AW54: =AW52*'Contract Info'!$D$18 -> 0 | AX54: 0 | BA54: Flight Time Cost
B55: Extended Standby Cost | J55: =SUM(#REF!) ->  | K55: 0 | L55: 0 | M55: 0 | P55: =SUM(#REF!,#REF!,#REF!,#REF!) ->  | Q55: =SUM(#REF!,#REF!,#REF!,#REF!,#REF!) ->  | R55: =SUM(#REF!,#REF!,#REF!,#REF!,#REF!) ->  | S55: 0 | V55: =SUM(#REF!,#REF!) ->  | W55: 0 | X55: 0 | Y55: =SUM(#REF!,#REF!,#REF!,#REF!,#REF!) ->  | AB55: =SUM(#REF!,#REF!) ->  | AC55: =SUM(#REF!,#REF!) ->  | AD55: 0 | AE55: =SUM(#REF!,#REF!,#REF!,#REF!,#REF!,#REF!,#REF!,#REF!,#REF!,#REF!,#REF!,#REF!,#REF!,#REF!,#REF!,#REF!,#REF!,#REF!,#REF!,#REF!,#REF!,#REF!,#REF!,#REF!,#REF!,#REF!,#REF!,#REF!,#REF!,#REF!,#REF!,#REF!,#REF!,#REF!,#REF!) ->  | AH55: 0 | AI55: =SUM(#REF!,#REF!,#REF!,#REF!) ->  | AJ55: 0 | AK55: =SUM(#REF!,#REF!,#REF!,#REF!) ->  | AN55: 0 | AO55: 0 | AQ55: 0 | AR55: 0 | AT55: 0 | AU55: 0 | AW55: 0 | AX55: 0 | AZ55: AS20:AX25 | BA55: Extended Standby Cost
B56: Per Diem Cost | J56: =SUM(#REF!) ->  | K56: 0 | L56: 0 | M56: 0 | P56: =SUM(#REF!,#REF!,#REF!,#REF!) ->  | Q56: =SUM(#REF!,#REF!,#REF!,#REF!,#REF!) ->  | R56: =SUM(#REF!,#REF!,#REF!,#REF!,#REF!) ->  | S56: 0 | V56: =SUM(#REF!,#REF!) ->  | W56: 0 | X56: 0 | Y56: =SUM(#REF!,#REF!,#REF!,#REF!,#REF!) ->  | AB56: =SUM(#REF!,#REF!) ->  | AC56: =SUM(#REF!,#REF!) ->  | AD56: 0 | AE56: =SUM(#REF!,#REF!,#REF!,#REF!,#REF!,#REF!,#REF!,#REF!,#REF!,#REF!,#REF!,#REF!,#REF!,#REF!,#REF!,#REF!,#REF!,#REF!,#REF!,#REF!,#REF!,#REF!,#REF!,#REF!,#REF!,#REF!,#REF!,#REF!,#REF!,#REF!,#REF!,#REF!,#REF!,#REF!,#REF!) ->  | AH56: 0 | AI56: =SUM(#REF!,#REF!,#REF!,#REF!) ->  | AJ56: 0 | AK56: =SUM(#REF!,#REF!,#REF!,#REF!) ->  | AN56: 0 | AO56: 0 | AQ56: 0 | AR56: 0 | AT56: 0 | AU56: 0 | AW56: 0 | AX56: 0 | AZ56: AS26:AX27 | BA56: Per Diem Cost
B57: Service Truck Mileage Cost | J57: =SUM(#REF!) ->  | K57: 0 | L57: 0 | M57: 0 | P57: =SUM(#REF!,#REF!,#REF!,#REF!) ->  | Q57: =SUM(#REF!,#REF!,#REF!,#REF!,#REF!) ->  | R57: =SUM(#REF!,#REF!,#REF!,#REF!,#REF!) ->  | S57: 0 | V57: =SUM(#REF!,#REF!) ->  | W57: 0 | X57: 0 | Y57: =SUM(#REF!,#REF!,#REF!,#REF!,#REF!) ->  | AB57: =SUM(#REF!,#REF!) ->  | AC57: =SUM(#REF!,#REF!) ->  | AD57: 0 | AE57: =SUM(#REF!,#REF!,#REF!,#REF!,#REF!,#REF!,#REF!,#REF!,#REF!,#REF!,#REF!,#REF!,#REF!,#REF!,#REF!,#REF!,#REF!,#REF!,#REF!,#REF!,#REF!,#REF!,#REF!,#REF!,#REF!,#REF!,#REF!,#REF!,#REF!,#REF!,#REF!,#REF!,#REF!,#REF!,#REF!) ->  | AH57: 0 | AI57: =SUM(#REF!,#REF!,#REF!,#REF!) ->  | AJ57: 0 | AK57: =SUM(#REF!,#REF!,#REF!,#REF!) ->  | AN57: 0 | AO57: 0 | AQ57: 0 | AR57: 0 | AT57: 0 | AU57: 0 | AW57: 0 | AX57: 0 | AZ57: AS28:AX29 | BA57: Service Truck Mileage Cost
B58: Relief Travel Cost & Other Special Charges | H58: =SUM(D58:G58) -> 0 | N58: =SUM(J58:M58) -> 0 | T58: =SUM(P58:S58) -> 0 | Z58: =SUM(V58:Y58) -> 0 | AF58: =SUM(AB58:AE58) -> 0 | AL58: =SUM(AH58:AK58) -> 0 | AR58: 0 | AX58: 0 | AZ58: AS32:AX37 | BA58: Relief Travel Cost & Other Special Charges
B59: Passengers Transported | J59: =SUM(#REF!) ->  | K59: 0 | L59: 0 | M59: 0 | P59: =SUM(#REF!,#REF!,#REF!,#REF!) ->  | Q59: =SUM(#REF!,#REF!,#REF!,#REF!,#REF!) ->  | R59: =SUM(#REF!,#REF!,#REF!,#REF!,#REF!) ->  | S59: 0 | V59: =SUM(#REF!,#REF!) ->  | W59: 0 | X59: 0 | Y59: =SUM(#REF!,#REF!,#REF!,#REF!,#REF!) ->  | AB59: =SUM(#REF!,#REF!) ->  | AC59: =SUM(#REF!,#REF!) ->  | AD59: 0 | AE59: =SUM(#REF!,#REF!,#REF!,#REF!,#REF!,#REF!,#REF!,#REF!,#REF!,#REF!,#REF!,#REF!,#REF!,#REF!,#REF!,#REF!,#REF!,#REF!,#REF!,#REF!,#REF!,#REF!,#REF!,#REF!,#REF!,#REF!,#REF!,#REF!,#REF!,#REF!,#REF!,#REF!,#REF!,#REF!,#REF!) ->  | AH59: 0 | AI59: =SUM(#REF!,#REF!,#REF!,#REF!) ->  | AJ59: 0 | AK59: =SUM(#REF!,#REF!,#REF!,#REF!) ->  | AN59: 0 | AO59: 0 | AQ59: 0 | AR59: 0 | AT59: 0 | AU59: 0 | AW59: 0 | AX59: 0 | AZ59: V43:Z44 | BA59: Passengers Transported
B60: Cargo Transported (lbs.) | J60: =SUM(#REF!) ->  | K60: 0 | L60: 0 | M60: 0 | P60: =SUM(#REF!,#REF!,#REF!,#REF!) ->  | Q60: =SUM(#REF!,#REF!,#REF!,#REF!,#REF!) ->  | R60: =SUM(#REF!,#REF!,#REF!,#REF!,#REF!) ->  | S60: 0 | V60: =SUM(#REF!,#REF!) ->  | W60: 0 | X60: 0 | Y60: =SUM(#REF!,#REF!,#REF!,#REF!,#REF!) ->  | AB60: =SUM(#REF!,#REF!) ->  | AC60: =SUM(#REF!,#REF!) ->  | AD60: 0 | AE60: =SUM(#REF!,#REF!,#REF!,#REF!,#REF!,#REF!,#REF!,#REF!,#REF!,#REF!,#REF!,#REF!,#REF!,#REF!,#REF!,#REF!,#REF!,#REF!,#REF!,#REF!,#REF!,#REF!,#REF!,#REF!,#REF!,#REF!,#REF!,#REF!,#REF!,#REF!,#REF!,#REF!,#REF!,#REF!,#REF!) ->  | AH60: 0 | AI60: =SUM(#REF!,#REF!,#REF!,#REF!) ->  | AJ60: 0 | AK60: =SUM(#REF!,#REF!,#REF!,#REF!) ->  | AN60: 0 | AO60: 0 | AQ60: 0 | AR60: 0 | AT60: 0 | AU60: 0 | AW60: 0 | AX60: 0 | AZ60: AA43:AF44 | BA60: Cargo Transported (lbs.)
B61: Water Dropped (gal.) | G61: =SUM(M61,S61,Y61,AE61,AK61,AQ61,AW61) ->  | M61: 0 | N61: 0 | S61: 0 | T61: 0 | Y61: =SUM(#REF!,#REF!,#REF!,#REF!,#REF!) ->  | AE61: =SUM(#REF!,#REF!,#REF!,#REF!,#REF!,#REF!,#REF!,#REF!,#REF!,#REF!,#REF!,#REF!,#REF!,#REF!,#REF!,#REF!,#REF!,#REF!,#REF!,#REF!,#REF!,#REF!,#REF!,#REF!,#REF!,#REF!,#REF!,#REF!,#REF!,#REF!,#REF!,#REF!,#REF!,#REF!,#REF!) ->  | AK61: =SUM(#REF!,#REF!,#REF!,#REF!) ->  | AQ61: 0 | AR61: 0 | AW61: 0 | AX61: 0 | AZ61: AG43:AL44 | BA61: Water Dropped (gal.)
B62: Initial Attacks | G62: 1 | H62: 1 | M62: 0 | N62: =M62 -> 0 | S62: 0 | T62: 0 | Y62: 1 | Z62: 1 | AE62: 0 | AF62: 0 | AL62: 0 | AQ62: 0 | AR62: 0 | AW62: 0 | AX62: 0 | BA62: Initial Attacks
B63: SARs, Projects, Training & Fires Supported | D63: =SUM(J63,P63,V63,AB63,AH63,AN63,AT63) -> 6 | E63: 3 | F63: 3 | G63: 7 | J63: 1 | K63: 0 | L63: 0 | M63: 0 | P63: 2 | Q63: 1 | R63: 3 | S63: 0 | V63: 1 | W63: 0 | X63: 0 | Y63: 2 | AB63: 2 | AC63: 1 | AD63: 0 | AE63: 3 | AH63: 0 | AI63: 1 | AJ63: 0 | AK63: 2 | AN63: 0 | AO63: 0 | AQ63: 0 | AT63: 0 | AU63: 0 | AW63: 0 | BA63: SARs, Projects, Training & Fires Supported
B64: Wilderness Fight Time Hours | H64: =SUM(D64:G64) ->  | J64: =SUM(#REF!) ->  | K64: 0 | L64: 0 | M64: 0 | N64: =SUM(J64:M64) ->  | P64: =SUM(#REF!,#REF!,#REF!,#REF!) ->  | Q64: =SUM(#REF!,#REF!,#REF!,#REF!,#REF!) ->  | R64: =SUM(#REF!,#REF!,#REF!,#REF!,#REF!) ->  | S64: 0 | T64: =SUM(P64:S64) ->  | V64: =SUM(#REF!,#REF!) ->  | W64: 0 | X64: 0 | Y64: =SUM(#REF!,#REF!,#REF!,#REF!,#REF!) ->  | Z64: =SUM(V64:Y64) ->  | AB64: =SUM(#REF!,#REF!) ->  | AC64: =SUM(#REF!,#REF!) ->  | AD64: 0 | AE64: =SUM(#REF!,#REF!,#REF!,#REF!,#REF!,#REF!,#REF!,#REF!,#REF!,#REF!,#REF!,#REF!,#REF!,#REF!,#REF!,#REF!,#REF!,#REF!,#REF!,#REF!,#REF!,#REF!,#REF!,#REF!,#REF!,#REF!,#REF!,#REF!,#REF!,#REF!,#REF!,#REF!,#REF!,#REF!,#REF!) ->  | AF64: =SUM(AB64:AE64) ->  | AH64: 0 | AI64: =SUM(#REF!,#REF!,#REF!,#REF!) ->  | AJ64: 0 | AK64: =SUM(#REF!,#REF!,#REF!,#REF!) ->  | AL64: =SUM(AH64:AK64) ->  | AN64: 0 | AO64: 0 | AQ64: 0 | AR64: =SUM(AN64:AQ64) -> 0 | AT64: 0 | AU64: 0 | AW64: 0 | AX64: =SUM(AT64:AW64) -> 0 | AZ64: BN18:BP19 | BA64: Wilderness Fight Time Hours
B65: Wilderness Landings | H65: =SUM(D65:G65) ->  | J65: =SUM(#REF!) ->  | K65: 0 | L65: 0 | M65: 0 | N65: =SUM(J65:M65) ->  | P65: =SUM(#REF!,#REF!,#REF!,#REF!) ->  | Q65: =SUM(#REF!,#REF!,#REF!,#REF!,#REF!) ->  | R65: =SUM(#REF!,#REF!,#REF!,#REF!,#REF!) ->  | S65: 0 | T65: =SUM(P65:S65) ->  | V65: =SUM(#REF!,#REF!) ->  | W65: 0 | X65: 0 | Y65: =SUM(#REF!,#REF!,#REF!,#REF!,#REF!) ->  | Z65: =SUM(V65:Y65) ->  | AB65: =SUM(#REF!,#REF!) ->  | AC65: =SUM(#REF!,#REF!) ->  | AD65: 0 | AE65: =SUM(#REF!,#REF!,#REF!,#REF!,#REF!,#REF!,#REF!,#REF!,#REF!,#REF!,#REF!,#REF!,#REF!,#REF!,#REF!,#REF!,#REF!,#REF!,#REF!,#REF!,#REF!,#REF!,#REF!,#REF!,#REF!,#REF!,#REF!,#REF!,#REF!,#REF!,#REF!,#REF!,#REF!,#REF!,#REF!) ->  | AF65: =SUM(AB65:AE65) ->  | AH65: 0 | AI65: =SUM(#REF!,#REF!,#REF!,#REF!) ->  | AJ65: 0 | AK65: =SUM(#REF!,#REF!,#REF!,#REF!) ->  | AL65: =SUM(AH65:AK65) ->  | AN65: 0 | AO65: 0 | AQ65: 0 | AR65: =SUM(AN65:AQ65) -> 0 | AT65: 0 | AU65: 0 | AW65: 0 | AX65: =SUM(AT65:AW65) -> 0 | AZ65: BN20:BP21 | BA65: Wilderness Landings
B66: Wilderness Ext. Load Deliveries & Pickups | H66: =SUM(D66:G66) ->  | J66: =SUM(#REF!) ->  | K66: 0 | L66: 0 | M66: 0 | N66: =SUM(J66:M66) ->  | P66: =SUM(#REF!,#REF!,#REF!,#REF!) ->  | Q66: =SUM(#REF!,#REF!,#REF!,#REF!,#REF!) ->  | R66: =SUM(#REF!,#REF!,#REF!,#REF!,#REF!) ->  | S66: 0 | T66: =SUM(P66:S66) ->  | V66: =SUM(#REF!,#REF!) ->  | W66: 0 | X66: 0 | Y66: =SUM(#REF!,#REF!,#REF!,#REF!,#REF!) ->  | Z66: =SUM(V66:Y66) ->  | AB66: =SUM(#REF!,#REF!) ->  | AC66: =SUM(#REF!,#REF!) ->  | AD66: 0 | AE66: =SUM(#REF!,#REF!,#REF!,#REF!,#REF!,#REF!,#REF!,#REF!,#REF!,#REF!,#REF!,#REF!,#REF!,#REF!,#REF!,#REF!,#REF!,#REF!,#REF!,#REF!,#REF!,#REF!,#REF!,#REF!,#REF!,#REF!,#REF!,#REF!,#REF!,#REF!,#REF!,#REF!,#REF!,#REF!,#REF!) ->  | AF66: =SUM(AB66:AE66) ->  | AH66: 0 | AI66: =SUM(#REF!,#REF!,#REF!,#REF!) ->  | AJ66: 0 | AK66: =SUM(#REF!,#REF!,#REF!,#REF!) ->  | AL66: =SUM(AH66:AK66) ->  | AN66: 0 | AO66: 0 | AQ66: 0 | AR66: =SUM(AN66:AQ66) -> 0 | AT66: 0 | AU66: 0 | AW66: 0 | AX66: =SUM(AT66:AW66) -> 0 | AZ66: BN22:BP23 | BA66: Wilderness Ext. Load Deliveries & Pickups
C68: =$B69 -> OLYMPIC NP | I68: =$B69 -> OLYMPIC NP | O68: =$B69 -> OLYMPIC NP | U68: =$B69 -> OLYMPIC NP | AA68: =$B69 -> OLYMPIC NP | AG68: =$B69 -> OLYMPIC NP | AM68: =$B69 -> OLYMPIC NP | AS68: =$B69 -> OLYMPIC NP
B69: OLYMPIC NP | C69: =C2 -> 139-day Contract TOTALS | I69: May | O69: June | U69: July | AA69: August | AG69: September | AM69: October | AS69: November
D70: SAR | E70: Project | F70: Training | G70: Fire | H70: Total | J70: SAR (operational) | K70: Project | L70: Training | M70: Fire | N70: Total | P70: SAR (operational) | Q70: Project | R70: Training | S70: Fire | T70: Total | V70: SAR (operational) | W70: Project | X70: Training | Y70: Fire | Z70: Total | AB70: SAR (operational) | AC70: Project & Training | AE70: Fire | AF70: Total | AH70: SAR (operational) | AI70: Project | AJ70: Training | AK70: Fire | AL70: Total | AN70: SAR (operational) | AO70: Project & Training | AQ70: Fire | AR70: Total | AT70: SAR (operational) | AU70: Project & Training | AW70: Fire | AX70: Total
B71: Total Cost | D71: =SUM(J71,P71,V71,AB71,AH71,AN71,AT71) ->  | E71: =SUM(K71,Q71,W71,AC71,AI71,AO71,AU71) -> 0 | F71: =SUM(L71,R71,X71,AD71,AJ71,AP71,AV71) ->  | G71: =SUM(M71,S71,Y71,AE71,AK71,AQ71,AW71) -> 0 | H71: =SUM(N71,T71,Z71,AF71,AL71,AR71,AX71) ->  | J71: =J74+J75+J76+J77+J78 -> 0 | K71: =K74+K75+K76+K77+K78 -> 0 | L71: =L74+L75+L76+L77+L78 ->  | M71: =M74+M75+M76+M77+M78 -> 0 | N71: =SUM(I71:M71) ->  | P71: =P74+P75+P76+P77+P78 ->  | Q71: =Q74+Q75+Q76+Q77+Q78 -> 0 | R71: =R74+R75+R76+R77+R78 -> 0 | S71: =S74+S75+S76+S77+S78 -> 0 | T71: =SUM(O71:S71) ->  | V71: =V74+V75+V76+V77+V78 ->  | W71: =W74+W75+W76+W77+W78 -> 0 | X71: =X74+X75+X76+X77+X78 -> 0 | Y71: =Y74+Y75+Y76+Y77+Y78 -> 0 | Z71: =SUM(U71:Y71) ->  | AB71: =AB74+AB75+AB76+AB77+AB78 ->  | AC71: =AC74+AC75+AC76+AC77+AC78 -> 0 | AD71: =AD74+AD75+AD76+AD77+AD78 -> 0 | AE71: =AE74+AE75+AE76+AE77+AE78 -> 0 | AF71: =SUM(AA71:AE71) ->  | AH71: =AH74+AH75+AH76+AH77+AH78 -> 0 | AI71: =AI74+AI75+AI76+AI77+AI78 -> 0 | AJ71: =AJ74+AJ75+AJ76+AJ77+AJ78 -> 0 | AK71: =AK74+AK75+AK76+AK77+AK78 -> 0 | AL71: =SUM(AG71:AK71) -> 0 | AN71: =AN74+AN75+AN76+AN77+AN78 -> 0 | AO71: =AO74+AO75+AO76+AO77+AO78 -> 0 | AP71: =AP74+AP75+AP76+AP77+AP78 -> 0 | AQ71: =AQ74+AQ75+AQ76+AQ77+AQ78 -> 0 | AR71: =SUM(AM71:AQ71) -> 0 | AT71: =AT74+AT75+AT76+AT77+AT78 -> 0 | AU71: =AU74+AU75+AU76+AU77+AU78 -> 0 | AV71: =AV74+AV75+AV76+AV77+AV78 -> 0 | AW71: =AW74+AW75+AW76+AW77+AW78 -> 0 | AX71: =SUM(AS71:AW71) -> 0 | BA71: Total Cost
B72: Flight Time Hours | D72: =SUM(J72,P72,V72,AB72,AH72,AN72,AT72) ->  | E72: =SUM(K72,Q72,W72,AC72,AI72,AO72,AU72) -> 0 | F72: =SUM(L72,R72,X72,AD72,AJ72,AP72,AV72) ->  | G72: =SUM(M72,S72,Y72,AE72,AK72,AQ72,AW72) -> 0 | H72: =SUM(D72:G72) ->  | J72: 0 | K72: 0 | L72: =SUM(#REF!,#REF!,#REF!) ->  | M72: 0 | N72: =SUM(J72:M72) ->  | P72: =SUM(#REF!) ->  | Q72: 0 | R72: 0 | S72: 0 | T72: =SUM(P72:S72) ->  | V72: =SUM(#REF!,#REF!) ->  | W72: 0 | X72: 0 | Y72: 0 | Z72: =SUM(V72:Y72) ->  | AB72: =SUM(#REF!,#REF!,#REF!) ->  | AC72: 0 | AD72: 0 | AE72: 0 | AF72: =SUM(AB72:AE72) ->  | AH72: 0 | AI72: 0 | AJ72: 0 | AK72: 0 | AL72: =SUM(AH72:AK72) -> 0 | AN72: 0 | AO72: 0 | AQ72: 0 | AR72: =SUM(AN72:AQ72) -> 0 | AT72: 0 | AU72: 0 | AW72: 0 | AX72: =SUM(AT72:AW72) -> 0 | AZ72: AH16:AL17 | BA72: Flight Time Hours
B73: Flight Time Percentage | D73: =IF(SUM(D72:G72)=0,0,D72/SUM(D72:G72)) ->  | E73: =IF(SUM(D72:G72)=0,0,E72/SUM(D72:G72)) ->  | F73: =IF(SUM(D72:G72)=0,0,F72/SUM(D72:G72)) ->  | G73: =IF(SUM(D72:G72)=0,0,G72/SUM(D72:G72)) ->  | J73: =IF(SUM(J72:M72)=0,0,J72/SUM(J72:M72)) ->  | K73: =IF(SUM(J72:M72)=0,0,K72/SUM(J72:M72)) ->  | L73: =IF(SUM(J72:M72)=0,0,L72/SUM(J72:M72)) ->  | M73: =IF(SUM(J72:M72)=0,0,M72/SUM(J72:M72)) ->  | N73: =SUM(J73:M73) ->  | P73: =IF(SUM(P72:S72)=0,0,P72/SUM(P72:S72)) ->  | Q73: =IF(SUM(P72:S72)=0,0,Q72/SUM(P72:S72)) ->  | R73: =IF(SUM(P72:S72)=0,0,R72/SUM(P72:S72)) ->  | S73: =IF(SUM(P72:S72)=0,0,S72/SUM(P72:S72)) ->  | T73: =SUM(P73:S73) ->  | V73: =IF(SUM(V72:Y72)=0,0,V72/SUM(V72:Y72)) ->  | W73: =IF(SUM(V72:Y72)=0,0,W72/SUM(V72:Y72)) ->  | X73: =IF(SUM(V72:Y72)=0,0,X72/SUM(V72:Y72)) ->  | Y73: =IF(SUM(V72:Y72)=0,0,Y72/SUM(V72:Y72)) ->  | AB73: =IF(SUM(AB72:AE72)=0,0,AB72/SUM(AB72:AE72)) ->  | AC73: =IF(SUM(AB72:AE72)=0,0,AC72/SUM(AB72:AE72)) ->  | AD73: =IF(SUM(AB72:AE72)=0,0,AD72/SUM(AB72:AE72)) ->  | AE73: =IF(SUM(AB72:AE72)=0,0,AE72/SUM(AB72:AE72)) ->  | AH73: =IF(SUM(AH72:AK72)=0,0,AH72/SUM(AH72:AK72)) -> 0 | AI73: =IF(SUM(AH72:AK72)=0,0,AI72/SUM(AH72:AK72)) -> 0 | AJ73: =IF(SUM(AH72:AK72)=0,0,AJ72/SUM(AH72:AK72)) -> 0 | AK73: =IF(SUM(AH72:AK72)=0,0,AK72/SUM(AH72:AK72)) -> 0 | AL73: =SUM(AH73:AK73) -> 0 | AN73: =IF(SUM(AN72:AQ72)=0,0,AN72/SUM(AN72:AQ72)) -> 0 | AO73: =IF(SUM(AN72:AQ72)=0,0,AO72/SUM(AN72:AQ72)) -> 0 | AP73: =IF(SUM(AN72:AQ72)=0,0,AP72/SUM(AN72:AQ72)) -> 0 | AQ73: =IF(SUM(AN72:AQ72)=0,0,AQ72/SUM(AN72:AQ72)) -> 0 | AR73: =SUM(AN73:AQ73) -> 0 | AT73: =IF(SUM(AT72:AW72)=0,0,AT72/SUM(AT72:AW72)) -> 0 | AU73: =IF(SUM(AT72:AW72)=0,0,AU72/SUM(AT72:AW72)) -> 0 | AV73: =IF(SUM(AT72:AW72)=0,0,AV72/SUM(AT72:AW72)) -> 0 | AW73: =IF(SUM(AT72:AW72)=0,0,AW72/SUM(AT72:AW72)) -> 0 | AX73: =SUM(AT73:AW73) -> 0 | BA73: Flight Time Percentage
B74: Flight Time Cost | D74: =SUM(J74,P74,V74,AB74,AH74,AN74,AT74) ->  | E74: 0 | G74: 0 | J74: =J72*'Contract Info'!$D$18 -> 0 | K74: =K72*'Contract Info'!$D$18 -> 0 | L74: =L72*'Contract Info'!$D$18 ->  | M74: =M72*'Contract Info'!$D$18 -> 0 | P74: =P72*'Contract Info'!$D$18 ->  | Q74: =Q72*'Contract Info'!$D$18 -> 0 | R74: 0 | S74: =S72*'Contract Info'!$D$18 -> 0 | V74: =V72*'Contract Info'!$D$18 ->  | W74: =W72*'Contract Info'!$D$18 -> 0 | X74: 0 | Y74: =Y72*'Contract Info'!$D$18 -> 0 | AB74: =AB72*'Contract Info'!$D$18 ->  | AC74: =AC72*'Contract Info'!$D$18 -> 0 | AD74: 0 | AE74: =AE72*'Contract Info'!$D$18 -> 0 | AH74: =AH72*'Contract Info'!$D$18 -> 0 | AI74: =AI72*'Contract Info'!$D$18 -> 0 | AJ74: 0 | AK74: =AK72*'Contract Info'!$D$18 -> 0 | AL74: 0 | AN74: =AN72*'Contract Info'!$D$18 -> 0 | AO74: =AO72*'Contract Info'!$D$18 -> 0 | AQ74: =AQ72*'Contract Info'!$D$18 -> 0 | AR74: 0 | AT74: =AT72*'Contract Info'!$D$18 -> 0 | AU74: =AU72*'Contract Info'!$D$18 -> 0 | AW74: =AW72*'Contract Info'!$D$18 -> 0 | AX74: 0 | BA74: Flight Time Cost
B75: Extended Standby Cost | E75: 0 | G75: 0 | J75: 0 | K75: 0 | L75: =SUM(#REF!,#REF!,#REF!) ->  | M75: 0 | P75: =SUM(#REF!) ->  | Q75: 0 | R75: 0 | S75: 0 | V75: =SUM(#REF!,#REF!) ->  | W75: 0 | X75: 0 | Y75: 0 | AB75: =SUM(#REF!,#REF!,#REF!) ->  | AC75: 0 | AD75: 0 | AE75: 0 | AH75: 0 | AI75: 0 | AJ75: 0 | AK75: 0 | AL75: 0 | AN75: 0 | AO75: 0 | AQ75: 0 | AR75: 0 | AT75: 0 | AU75: 0 | AW75: 0 | AX75: 0 | AZ75: AS20:AX25 | BA75: Extended Standby Cost
B76: Per Diem Cost | E76: 0 | G76: 0 | J76: 0 | K76: 0 | L76: =SUM(#REF!,#REF!,#REF!) ->  | M76: 0 | P76: =SUM(#REF!) ->  | Q76: 0 | R76: 0 | S76: 0 | V76: =SUM(#REF!,#REF!) ->  | W76: 0 | X76: 0 | Y76: 0 | AB76: =SUM(#REF!,#REF!,#REF!) ->  | AC76: 0 | AD76: 0 | AE76: 0 | AH76: 0 | AI76: 0 | AJ76: 0 | AK76: 0 | AL76: 0 | AN76: 0 | AO76: 0 | AQ76: 0 | AR76: 0 | AT76: 0 | AU76: 0 | AW76: 0 | AX76: 0 | AZ76: AS26:AX27 | BA76: Per Diem Cost
B77: Service Truck Mileage Cost | E77: 0 | G77: 0 | J77: 0 | K77: 0 | L77: =SUM(#REF!,#REF!,#REF!) ->  | M77: 0 | P77: =SUM(#REF!) ->  | Q77: 0 | R77: 0 | S77: 0 | V77: =SUM(#REF!,#REF!) ->  | W77: 0 | X77: 0 | Y77: 0 | AB77: =SUM(#REF!,#REF!,#REF!) ->  | AC77: 0 | AD77: 0 | AE77: 0 | AH77: 0 | AI77: 0 | AJ77: 0 | AK77: 0 | AL77: 0 | AN77: 0 | AO77: 0 | AQ77: 0 | AR77: 0 | AT77: 0 | AU77: 0 | AW77: 0 | AX77: 0 | AZ77: AS28:AX29 | BA77: Service Truck Mileage Cost
B78: Relief Travel Cost & Other Special Charges | H78: =SUM(D78:G78) -> 0 | N78: =SUM(J78:M78) -> 0 | T78: =SUM(P78:S78) -> 0 | Z78: =SUM(V78:Y78) -> 0 | AF78: =SUM(AB78:AE78) -> 0 | AL78: 0 | AR78: 0 | AX78: 0 | AZ78: AS32:AX37 | BA78: Relief Travel Cost & Other Special Charges
B79: Passengers Transported | E79: 0 | G79: 0 | J79: 0 | K79: 0 | L79: =SUM(#REF!,#REF!,#REF!) ->  | M79: 0 | P79: =SUM(#REF!) ->  | Q79: 0 | R79: 0 | S79: 0 | V79: =SUM(#REF!,#REF!) ->  | W79: 0 | X79: 0 | Y79: 0 | AB79: =SUM(#REF!,#REF!,#REF!) ->  | AC79: 0 | AD79: 0 | AE79: 0 | AH79: 0 | AI79: 0 | AJ79: 0 | AK79: 0 | AL79: 0 | AN79: 0 | AO79: 0 | AQ79: 0 | AR79: 0 | AT79: 0 | AU79: 0 | AW79: 0 | AX79: 0 | AZ79: V43:Z44 | BA79: Passengers Transported
B80: Cargo Transported (lbs.) | E80: 0 | G80: 0 | J80: 0 | K80: 0 | L80: =SUM(#REF!,#REF!,#REF!) ->  | M80: 0 | P80: =SUM(#REF!) ->  | Q80: 0 | R80: 0 | S80: 0 | V80: =SUM(#REF!,#REF!) ->  | W80: 0 | X80: 0 | Y80: 0 | AB80: =SUM(#REF!,#REF!,#REF!) ->  | AC80: 0 | AD80: 0 | AE80: 0 | AH80: 0 | AI80: 0 | AJ80: 0 | AK80: 0 | AL80: 0 | AN80: 0 | AO80: 0 | AQ80: 0 | AR80: 0 | AT80: 0 | AU80: 0 | AW80: 0 | AX80: 0 | AZ80: AA43:AF44 | BA80: Cargo Transported (lbs.)
B81: Water Dropped (gal.) | G81: =SUM(M81,S81,Y81,AE81,AK81,AQ81,AW81) -> 0 | H81: 0 | M81: 0 | N81: 0 | S81: 0 | T81: 0 | Y81: 0 | Z81: 0 | AE81: 0 | AF81: 0 | AK81: 0 | AL81: 0 | AQ81: 0 | AR81: 0 | AW81: 0 | AX81: 0 | AZ81: AG43:AL44 | BA81: Water Dropped (gal.)
B82: Initial Attacks | G82: 0 | H82: 0 | M82: 0 | N82: =M82 -> 0 | S82: 0 | T82: 0 | Y82: 0 | Z82: 0 | AE82: 0 | AF82: 0 | AK82: 0 | AL82: 0 | AQ82: 0 | AR82: 0 | AW82: 0 | AX82: 0 | BA82: Initial Attacks
B83: SARs, Projects, Training & Fires Supported | D83: =SUM(J83,P83,V83,AB83,AH83,AN83,AT83) -> 6 | E83: 0 | F83: 3 | G83: 0 | J83: 0 | K83: 0 | L83: 3 | M83: 0 | P83: 1 | Q83: 0 | R83: 0 | S83: 0 | V83: 2 | W83: 0 | X83: 0 | Y83: 0 | AB83: 3 | AC83: 0 | AD83: 0 | AE83: 0 | AH83: 0 | AI83: 0 | AJ83: 0 | AK83: 0 | AN83: 0 | AO83: 0 | AQ83: 0 | AT83: 0 | AU83: 0 | AW83: 0 | BA83: SARs, Projects, Training & Fires Supported
B84: Wilderness Fight Time Hours | E84: 0 | G84: 0 | H84: =SUM(D84:G84) ->  | J84: 0 | K84: 0 | L84: =SUM(#REF!,#REF!,#REF!) ->  | M84: 0 | N84: =SUM(J84:M84) ->  | P84: =SUM(#REF!) ->  | Q84: 0 | R84: 0 | S84: 0 | T84: =SUM(P84:S84) ->  | V84: =SUM(#REF!,#REF!) ->  | W84: 0 | X84: 0 | Y84: 0 | Z84: =SUM(V84:Y84) ->  | AB84: =SUM(#REF!,#REF!,#REF!) ->  | AC84: 0 | AD84: 0 | AE84: 0 | AF84: =SUM(AB84:AE84) ->  | AH84: 0 | AI84: 0 | AJ84: 0 | AK84: 0 | AL84: =SUM(AH84:AK84) -> 0 | AN84: 0 | AO84: 0 | AQ84: 0 | AR84: =SUM(AN84:AQ84) -> 0 | AT84: 0 | AU84: 0 | AW84: 0 | AX84: =SUM(AT84:AW84) -> 0 | AZ84: BN18:BP19 | BA84: Wilderness Fight Time Hours
B85: Wilderness Landings | E85: 0 | G85: 0 | H85: =SUM(D85:G85) ->  | J85: 0 | K85: 0 | L85: =SUM(#REF!,#REF!,#REF!) ->  | M85: 0 | N85: =SUM(J85:M85) ->  | P85: =SUM(#REF!) ->  | Q85: 0 | R85: 0 | S85: 0 | T85: =SUM(P85:S85) ->  | V85: =SUM(#REF!,#REF!) ->  | W85: 0 | X85: 0 | Y85: 0 | Z85: =SUM(V85:Y85) ->  | AB85: =SUM(#REF!,#REF!,#REF!) ->  | AC85: 0 | AD85: 0 | AE85: 0 | AF85: =SUM(AB85:AE85) ->  | AH85: 0 | AI85: 0 | AJ85: 0 | AK85: 0 | AL85: =SUM(AH85:AK85) -> 0 | AN85: 0 | AO85: 0 | AQ85: 0 | AR85: =SUM(AN85:AQ85) -> 0 | AT85: 0 | AU85: 0 | AW85: 0 | AX85: =SUM(AT85:AW85) -> 0 | AZ85: BN20:BP21 | BA85: Wilderness Landings
B86: Wilderness Ext. Load Deliveries & Pickups | E86: 0 | G86: 0 | H86: =SUM(D86:G86) ->  | J86: 0 | K86: 0 | L86: =SUM(#REF!,#REF!,#REF!) ->  | M86: 0 | N86: =SUM(J86:M86) ->  | P86: =SUM(#REF!) ->  | Q86: 0 | R86: 0 | S86: 0 | T86: =SUM(P86:S86) ->  | V86: =SUM(#REF!,#REF!) ->  | W86: 0 | X86: 0 | Y86: 0 | Z86: =SUM(V86:Y86) ->  | AB86: =SUM(#REF!,#REF!,#REF!) ->  | AC86: 0 | AD86: 0 | AE86: 0 | AF86: =SUM(AB86:AE86) ->  | AH86: 0 | AI86: 0 | AJ86: 0 | AK86: 0 | AL86: =SUM(AH86:AK86) -> 0 | AN86: 0 | AO86: 0 | AQ86: 0 | AR86: =SUM(AN86:AQ86) -> 0 | AT86: 0 | AU86: 0 | AW86: 0 | AX86: =SUM(AT86:AW86) -> 0 | AZ86: BN22:BP23 | BA86: Wilderness Ext. Load Deliveries & Pickups
C88: =$B89 -> USFS: Mount Baker Snoqualmie NF | I88: =$B89 -> USFS: Mount Baker Snoqualmie NF | O88: =$B89 -> USFS: Mount Baker Snoqualmie NF | U88: =$B89 -> USFS: Mount Baker Snoqualmie NF | AA88: =$B89 -> USFS: Mount Baker Snoqualmie NF | AG88: =$B89 -> USFS: Mount Baker Snoqualmie NF | AM88: =$B89 -> USFS: Mount Baker Snoqualmie NF | AS88: =$B89 -> USFS: Mount Baker Snoqualmie NF
B89: USFS: Mount Baker Snoqualmie NF | C89: =C2 -> 139-day Contract TOTALS | I89: May | O89: June | U89: July | AA89: August | AG89: September | AM89: October | AS89: November
D90: SAR | E90: Project | F90: Training | G90: Fire | H90: Total | J90: SAR (operational) | M90: Fire | N90: Total | P90: SAR (operational) | S90: Fire | T90: Total | V90: SAR (operational) | Y90: Fire | Z90: Total | AB90: SAR (operational) | AE90: Fire | AF90: Total | AH90: SAR (operational) | AK90: Fire | AL90: Total | AN90: SAR (operational) | AQ90: Fire | AR90: Total | AT90: SAR (operational) | AW90: Fire | AX90: Total
B91: Total Cost | D91: =SUM(J91,P91,V91,AB91,AH91,AN91,AT91) -> 0 | E91: =SUM(K91,Q91,W91,AC91,AI91,AO91,AU91) -> 0 | F91: =SUM(L91,R91,X91,AD91,AJ91,AP91,AV91) -> 0 | G91: =SUM(M91,S91,Y91,AE91,AK91,AQ91,AW91) ->  | H91: =SUM(N91,T91,Z91,AF91,AL91,AR91,AX91) ->  | J91: =J94+J95+J96+J97+J98 -> 0 | K91: =K94+K95+K96+K97+K98 -> 0 | L91: =L94+L95+L96+L97+L98 -> 0 | M91: =M94+M95+M96+M97+M98 -> 0 | N91: =SUM(I91:M91) -> 0 | P91: =P94+P95+P96+P97+P98 -> 0 | Q91: =Q94+Q95+Q96+Q97+Q98 -> 0 | R91: =R94+R95+R96+R97+R98 -> 0 | S91: =S94+S95+S96+S97+S98 -> 0 | T91: =SUM(O91:S91) -> 0 | V91: =V94+V95+V96+V97+V98 -> 0 | W91: =W94+W95+W96+W97+W98 -> 0 | X91: =X94+X95+X96+X97+X98 -> 0 | Y91: =Y94+Y95+Y96+Y97+Y98 -> 0 | Z91: =SUM(U91:Y91) -> 0 | AB91: =AB94+AB95+AB96+AB97+AB98 -> 0 | AC91: =AC94+AC95+AC96+AC97+AC98 -> 0 | AD91: =AD94+AD95+AD96+AD97+AD98 -> 0 | AE91: =AE94+AE95+AE96+AE97+AE98 ->  | AF91: =SUM(AA91:AE91) ->  | AH91: =AH94+AH95+AH96+AH97+AH98 -> 0 | AI91: =AI94+AI95+AI96+AI97+AI98 -> 0 | AJ91: =AJ94+AJ95+AJ96+AJ97+AJ98 -> 0 | AK91: =AK94+AK95+AK96+AK97+AK98 ->  | AL91: =SUM(AG91:AK91) ->  | AN91: =AN94+AN95+AN96+AN97+AN98 -> 0 | AO91: =AO94+AO95+AO96+AO97+AO98 -> 0 | AP91: =AP94+AP95+AP96+AP97+AP98 -> 0 | AQ91: =AQ94+AQ95+AQ96+AQ97+AQ98 -> 0 | AR91: =SUM(AM91:AQ91) -> 0 | AT91: =AT94+AT95+AT96+AT97+AT98 -> 0 | AU91: =AU94+AU95+AU96+AU97+AU98 -> 0 | AV91: =AV94+AV95+AV96+AV97+AV98 -> 0 | AW91: =AW94+AW95+AW96+AW97+AW98 -> 0 | AX91: =SUM(AS91:AW91) -> 0 | BA91: Total Cost
B92: Flight Time Hours | D92: =SUM(J92,P92,V92,AB92,AH92,AN92,AT92) -> 0 | E92: =SUM(K92,Q92,W92,AC92,AI92,AO92,AU92) -> 0 | F92: =SUM(L92,R92,X92,AD92,AJ92,AP92,AV92) -> 0 | G92: =SUM(M92,S92,Y92,AE92,AK92,AQ92,AW92) ->  | H92: =SUM(D92:G92) ->  | J92: 0 | M92: 0 | N92: =SUM(J92:M92) -> 0 | P92: 0 | S92: 0 | T92: =SUM(P92:S92) -> 0 | V92: 0 | Y92: 0 | Z92: =SUM(V92:Y92) -> 0 | AB92: 0 | AC92: 0 | AE92: =SUM(#REF!,#REF!,#REF!,#REF!,#REF!,#REF!,#REF!,#REF!) ->  | AF92: =SUM(AB92:AE92) ->  | AH92: 0 | AK92: =SUM(#REF!) ->  | AL92: =SUM(AH92:AK92) ->  | AN92: 0 | AQ92: 0 | AR92: =SUM(AN92:AQ92) -> 0 | AT92: 0 | AW92: 0 | AX92: =SUM(AT92:AW92) -> 0 | AZ92: AH16:AL17 | BA92: Flight Time Hours
B93: Flight Time Percentage | D93: =IF(SUM(D92:G92)=0,0,D92/SUM(D92:G92)) ->  | E93: =IF(SUM(D92:G92)=0,0,E92/SUM(D92:G92)) ->  | F93: =IF(SUM(D92:G92)=0,0,F92/SUM(D92:G92)) ->  | G93: =IF(SUM(D92:G92)=0,0,G92/SUM(D92:G92)) ->  | J93: =IF(SUM(J92,K92,M92)=0,0,J92/SUM(J92,K92,M92)) -> 0 | M93: =IF(SUM(J92,K92,M92)=0,0,M92/SUM(J92,K92,M92)) -> 0 | N93: 0 | P93: =IF(SUM(P92,Q92,S92)=0,0,P92/SUM(P92,Q92,S92)) -> 0 | S93: =IF(SUM(P92,Q92,S92)=0,0,S92/SUM(P92,Q92,S92)) -> 0 | T93: 0 | V93: =IF(SUM(V92,W92,Y92)=0,0,V92/SUM(V92,W92,Y92)) -> 0 | Y93: =IF(SUM(V92,W92,Y92)=0,0,Y92/SUM(V92,W92,Y92)) -> 0 | Z93: 0 | AB93: =IF(SUM(AB92,AC92,AE92)=0,0,AB92/SUM(AB92,AC92,AE92)) ->  | AE93: =IF(SUM(AB92,AC92,AE92)=0,0,AE92/SUM(AB92,AC92,AE92)) ->  | AH93: =IF(SUM(AH92,AI92,AK92)=0,0,AH92/SUM(AH92,AI92,AK92)) ->  | AK93: =IF(SUM(AH92,AI92,AK92)=0,0,AK92/SUM(AH92,AI92,AK92)) ->  | AN93: =IF(SUM(AN92,AO92,AQ92)=0,0,AN92/SUM(AN92,AO92,AQ92)) -> 0 | AQ93: =IF(SUM(AN92,AO92,AQ92)=0,0,AQ92/SUM(AN92,AO92,AQ92)) -> 0 | AR93: 0 | AT93: =IF(SUM(AT92,AU92,AW92)=0,0,AT92/SUM(AT92,AU92,AW92)) -> 0 | AW93: =IF(SUM(AT92,AU92,AW92)=0,0,AW92/SUM(AT92,AU92,AW92)) -> 0 | AX93: 0 | BA93: Flight Time Percentage
B94: Flight Time Cost | D94: =SUM(J94,P94,V94,AB94,AH94,AN94,AT94) -> 0 | E94: 0 | F94: 0 | J94: =J92*'Contract Info'!$D$18 -> 0 | M94: =M92*'Contract Info'!$D$18 -> 0 | N94: 0 | P94: =P92*'Contract Info'!$D$18 -> 0 | S94: =S92*'Contract Info'!$D$18 -> 0 | T94: 0 | V94: =V92*'Contract Info'!$D$18 -> 0 | Y94: =Y92*'Contract Info'!$D$18 -> 0 | Z94: 0 | AB94: =AB92*'Contract Info'!$D$18 -> 0 | AE94: =AE92*'Contract Info'!$D$18 ->  | AH94: =AH92*'Contract Info'!$D$18 -> 0 | AK94: =AK92*'Contract Info'!$D$18 ->  | AN94: =AN92*'Contract Info'!$D$18 -> 0 | AQ94: =AQ92*'Contract Info'!$D$18 -> 0 | AR94: 0 | AT94: =AT92*'Contract Info'!$D$18 -> 0 | AW94: =AW92*'Contract Info'!$D$18 -> 0 | AX94: 0 | BA94: Flight Time Cost
B95: Extended Standby Cost | D95: 0 | E95: 0 | F95: 0 | J95: 0 | M95: 0 | N95: 0 | P95: 0 | S95: 0 | T95: 0 | V95: 0 | Y95: 0 | Z95: 0 | AB95: 0 | AE95: =SUM(#REF!,#REF!,#REF!,#REF!,#REF!,#REF!,#REF!,#REF!) ->  | AH95: 0 | AK95: =SUM(#REF!) ->  | AN95: 0 | AQ95: 0 | AR95: 0 | AT95: 0 | AW95: 0 | AX95: 0 | AZ95: AS20:AX25 | BA95: Extended Standby Cost
B96: Per Diem Cost | D96: 0 | E96: 0 | F96: 0 | J96: 0 | M96: 0 | N96: 0 | P96: 0 | S96: 0 | T96: 0 | V96: 0 | Y96: 0 | Z96: 0 | AB96: 0 | AE96: =SUM(#REF!,#REF!,#REF!,#REF!,#REF!,#REF!,#REF!,#REF!) ->  | AH96: 0 | AK96: =SUM(#REF!) ->  | AN96: 0 | AQ96: 0 | AR96: 0 | AT96: 0 | AW96: 0 | AX96: 0 | AZ96: AS26:AX27 | BA96: Per Diem Cost
B97: Service Truck Mileage Cost | D97: 0 | E97: 0 | F97: 0 | J97: 0 | M97: 0 | N97: 0 | P97: 0 | S97: 0 | T97: 0 | V97: 0 | Y97: 0 | Z97: 0 | AB97: 0 | AE97: =SUM(#REF!,#REF!,#REF!,#REF!,#REF!,#REF!,#REF!,#REF!) ->  | AH97: 0 | AK97: =SUM(#REF!) ->  | AN97: 0 | AQ97: 0 | AR97: 0 | AT97: 0 | AW97: 0 | AX97: 0 | AZ97: AS28:AX29 | BA97: Service Truck Mileage Cost
B98: Relief Travel Cost & Other Special Charges | H98: =SUM(D98:G98) -> 0 | N98: =SUM(J98:M98) -> 0 | T98: =SUM(P98:S98) -> 0 | Z98: =SUM(V98:Y98) -> 0 | AF98: =SUM(AB98:AE98) -> 0 | AL98: =SUM(AH98:AK98) -> 0 | AR98: =SUM(AN98:AQ98) -> 0 | AX98: =SUM(AT98:AW98) -> 0 | AZ98: AS32:AX37 | BA98: Relief Travel Cost & Other Special Charges
B99: Passengers Transported | D99: 0 | E99: 0 | F99: 0 | J99: 0 | K99: 0 | M99: 0 | N99: 0 | P99: 0 | Q99: 0 | S99: 0 | T99: 0 | V99: 0 | W99: 0 | Y99: 0 | Z99: 0 | AB99: 0 | AC99: 0 | AE99: =SUM(#REF!,#REF!,#REF!,#REF!,#REF!,#REF!,#REF!,#REF!) ->  | AH99: 0 | AI99: 0 | AK99: =SUM(#REF!) ->  | AN99: 0 | AO99: 0 | AQ99: 0 | AR99: 0 | AT99: 0 | AU99: 0 | AW99: 0 | AX99: 0 | AZ99: V43:Z44 | BA99: Passengers Transported
B100: Cargo Transported (lbs.) | D100: 0 | E100: 0 | F100: 0 | J100: 0 | M100: 0 | N100: 0 | P100: 0 | S100: 0 | T100: 0 | V100: 0 | Y100: 0 | Z100: 0 | AB100: 0 | AE100: =SUM(#REF!,#REF!,#REF!,#REF!,#REF!,#REF!,#REF!,#REF!) ->  | AH100: 0 | AK100: =SUM(#REF!) ->  | AN100: 0 | AQ100: 0 | AR100: 0 | AT100: 0 | AW100: 0 | AX100: 0 | AZ100: AA43:AF44 | BA100: Cargo Transported (lbs.)
B101: Water Dropped (gal.) | G101: =SUM(M101,S101,Y101,AE101,AK101,AQ101,AW101) ->  | M101: 0 | N101: 0 | S101: 0 | T101: 0 | Y101: 0 | Z101: 0 | AE101: =SUM(#REF!,#REF!,#REF!,#REF!,#REF!,#REF!,#REF!,#REF!) ->  | AK101: =SUM(#REF!) ->  | AQ101: 0 | AR101: 0 | AW101: 0 | AX101: 0 | AZ101: AG43:AL44 | BA101: Water Dropped (gal.)
B102: Initial Attacks | G102: =SUM(M102,S102,Y102,AE102,AK102,AQ102,AW102) -> 0 | H102: 0 | M102: 0 | N102: =M102 -> 0 | S102: 0 | Y102: 0 | AE102: 0 | AF102: 0 | AK102: 0 | AL102: 0 | AR102: 0 | AX102: 0 | BA102: Initial Attacks
B103: SARs, Projects, Training & Fires Supported | D103: =SUM(J103,P103,V103,AB103,AH103,AN103,AT103) -> 0 | E103: =SUM(K103,Q103,W103,AC103,AI103,AO103,AU103) -> 0 | F103: =SUM(L103,R103,X103,AD103,AJ103,AP103,AV103) -> 0 | G103: =SUM(M103,S103,Y103,AE103,AK103,AQ103,AW103) -> 3 | M103: 0 | S103: 0 | Y103: 0 | AB103: 0 | AE103: 2 | AH103: 0 | AK103: 1 | AN103: 0 | AT103: 0 | BA103: SARs, Projects, Training & Fires Supported
AZ104: BN18:BP19 | BA104: Wilderness Fight Time Hours
B105: Totals by unit | D105: MORA | E105: NOCA | F105: NOCA | G105: OLYM | H105: USFS / OWF
B106: Days at each NPS or USFS Unit | D106: =#REF! ->  | E106: =#REF! ->  | F106: =#REF! ->  | G106: =#REF! ->  | H106: =#REF! -> 
B107: SARs involving short-haul at each Unit | D107: 5 | E107: 2 | F107: 2 | G107: 1 | H107: 1
C110: =$B111 -> Other NPS | I110: =$B111 -> Other NPS | O110: =$I$88 -> USFS: Mount Baker Snoqualmie NF | U110: =$B111 -> Other NPS | AA110: =$B111 -> Other NPS | AG110: =$B111 -> Other NPS | AM110: =$B111 -> Other NPS | AS110: =$B111 -> Other NPS
B111: Other NPS | C111: 120-day Contract TOTALS | I111: May | O111: June | U111: July | AA111: August | AG111: September | AM111: October | AS111: November
D112: SAR | E112: Project | F112: Training | G112: Fire | H112: Total | J112: SAR (operational) | K112: Project | L112: Training | M112: Fire | N112: Total | P112: SAR (operational) | Q112: Project | R112: Training | S112: Fire | T112: Total | V112: SAR (operational) | W112: Project | X112: Training | Y112: Fire | Z112: Total | AB112: SAR (operational) | AC112: Project | AD112: Training | AE112: Fire | AF112: Total | AH112: SAR (operational) | AI112: Project | AJ112: Training | AK112: Fire | AL112: Total | AN112: SAR (operational) | AO112: Project | AQ112: Fire | AR112: Total | AT112: SAR (operational) | AU112: Project | AW112: Fire | AX112: Total
B113: Total Cost | D113: =SUM(J113,P113,V113,AB113,AH113,AN113,AT113) -> 0 | E113: =SUM(K113,Q113,W113,AC113,AI113,AO113,AU113) -> 0 | F113: =SUM(L113,R113,X113,AD113,AJ113,AP113,AV113) -> 0 | G113: =SUM(M113,S113,Y113,AE113,AK113,AQ113,AW113) -> 0 | H113: =SUM(N113,T113,Z113,AF113,AL113,AR113,AX113) -> 0 | J113: =J116+J117+J118+J119+J120 -> 0 | K113: =K116+K117+K118+K119+K120 -> 0 | M113: =M116+M117+M118+M119+M120 -> 0 | N113: =SUM(I113:M113) -> 0 | P113: =P116+P117+P118+P119+P120 -> 0 | Q113: =Q116+Q117+Q118+Q119+Q120 -> 0 | S113: =S116+S117+S118+S119+S120 -> 0 | T113: =SUM(O113:S113) -> 0 | V113: =V116+V117+V118+V119+V120 -> 0 | W113: =W116+W117+W118+W119+W120 -> 0 | Y113: =Y116+Y117+Y118+Y119+Y120 -> 0 | Z113: =SUM(U113:Y113) -> 0 | AB113: =AB116+AB117+AB118+AB119+AB120 -> 0 | AC113: =AC116+AC117+AC118+AC119+AC120 -> 0 | AE113: =AE116+AE117+AE118+AE119+AE120 -> 0 | AF113: =SUM(AA113:AE113) -> 0 | AH113: =AH116+AH117+AH118+AH119+AH120 -> 0 | AI113: =AI116+AI117+AI118+AI119+AI120 -> 0 | AK113: =AK116+AK117+AK118+AK119+AK120 -> 0 | AL113: =SUM(AG113:AK113) -> 0 | AN113: =AN116+AN117+AN118+AN119+AN120 -> 0 | AO113: =AO116+AO117+AO118+AO119+AO120 -> 0 | AQ113: =AQ116+AQ117+AQ118+AQ119+AQ120 -> 0 | AR113: =SUM(AM113:AQ113) -> 0 | AT113: =AT116+AT117+AT118+AT119+AT120 -> 0 | AU113: =AU116+AU117+AU118+AU119+AU120 -> 0 | AW113: =AW116+AW117+AW118+AW119+AW120 -> 0 | AX113: =SUM(AS113:AW113) -> 0 | BA113: Total Cost
B114: Flight Time Hours | D114: =SUM(J114,P114,V114,AB114,AH114,AN114,AT114) -> 0 | E114: =SUM(K114,Q114,W114,AC114,AI114,AO114,AU114) -> 0 | F114: =SUM(L114,R114,X114,AD114,AJ114,AP114,AV114) -> 0 | G114: =SUM(M114,S114,Y114,AE114,AK114,AQ114,AW114) -> 0 | H114: =SUM(D114:G114) -> 0 | J114: 0 | K114: 0 | M114: 0 | N114: =SUM(J114:M114) -> 0 | P114: 0 | Q114: 0 | S114: 0 | T114: =SUM(P114:S114) -> 0 | V114: 0 | W114: 0 | Y114: 0 | Z114: =SUM(V114:Y114) -> 0 | AB114: 0 | AC114: 0 | AE114: 0 | AF114: =SUM(AB114:AE114) -> 0 | AH114: 0 | AI114: 0 | AK114: 0 | AL114: =SUM(AH114:AK114) -> 0 | AN114: 0 | AO114: 0 | AQ114: 0 | AR114: =SUM(AN114:AQ114) -> 0 | AT114: 0 | AU114: 0 | AW114: 0 | AX114: =SUM(AT114:AW114) -> 0 | AZ114: AH16:AL17 | BA114: Flight Time Hours
B115: Flight Time Percentage | D115: =IF(SUM(D114:G114)=0,0,D114/SUM(D114:G114)) -> 0 | E115: =IF(SUM(D114:G114)=0,0,E114/SUM(D114:G114)) -> 0 | F115: =IF(SUM(D114:G114)=0,0,F114/SUM(D114:G114)) -> 0 | G115: =IF(SUM(D114:G114)=0,0,G114/SUM(D114:G114)) -> 0 | H115: =SUM(D115:G115) -> 0 | J115: =IF(SUM(J114:M114)=0,0,J114/SUM(J114:M114)) -> 0 | K115: =IF(SUM(J114:M114)=0,0,K114/SUM(J114:M114)) -> 0 | L115: =IF(SUM(J114:M114)=0,0,L114/SUM(J114:M114)) -> 0 | M115: =IF(SUM(J114:M114)=0,0,M114/SUM(J114:M114)) -> 0 | N115: =SUM(J115:M115) -> 0 | P115: =IF(SUM(P114:S114)=0,0,P114/SUM(P114:S114)) -> 0 | Q115: =IF(SUM(P114:S114)=0,0,Q114/SUM(P114:S114)) -> 0 | R115: =IF(SUM(P114:S114)=0,0,R114/SUM(P114:S114)) -> 0 | S115: =IF(SUM(P114:S114)=0,0,S114/SUM(P114:S114)) -> 0 | T115: 0 | V115: =IF(SUM(V114:Y114)=0,0,V114/SUM(V114:Y114)) -> 0 | W115: =IF(SUM(V114:Y114)=0,0,W114/SUM(V114:Y114)) -> 0 | X115: =IF(SUM(V114:Y114)=0,0,X114/SUM(V114:Y114)) -> 0 | Y115: =IF(SUM(V114:Y114)=0,0,Y114/SUM(V114:Y114)) -> 0 | Z115: 0 | AB115: =IF(SUM(AB114:AE114)=0,0,AB114/SUM(AB114:AE114)) -> 0 | AC115: =IF(SUM(AB114:AE114)=0,0,AC114/SUM(AB114:AE114)) -> 0 | AD115: =IF(SUM(AB114:AE114)=0,0,AD114/SUM(AB114:AE114)) -> 0 | AE115: =IF(SUM(AB114:AE114)=0,0,AE114/SUM(AB114:AE114)) -> 0 | AF115: 0 | AH115: =IF(SUM(AH114:AK114)=0,0,AH114/SUM(AH114:AK114)) -> 0 | AI115: =IF(SUM(AH114:AK114)=0,0,AI114/SUM(AH114:AK114)) -> 0 | AJ115: =IF(SUM(AH114:AK114)=0,0,AJ114/SUM(AH114:AK114)) -> 0 | AK115: =IF(SUM(AH114:AK114)=0,0,AK114/SUM(AH114:AK114)) -> 0 | AL115: =SUM(AH115:AK115) -> 0 | AN115: =IF(SUM(AN114:AQ114)=0,0,AN114/SUM(AN114:AQ114)) -> 0 | AO115: =IF(SUM(AN114:AQ114)=0,0,AO114/SUM(AN114:AQ114)) -> 0 | AP115: =IF(SUM(AN114:AQ114)=0,0,AP114/SUM(AN114:AQ114)) -> 0 | AQ115: =IF(SUM(AN114:AQ114)=0,0,AQ114/SUM(AN114:AQ114)) -> 0 | AR115: =SUM(AN115:AQ115) -> 0 | AT115: =IF(SUM(AT114:AW114)=0,0,AT114/SUM(AT114:AW114)) -> 0 | AU115: =IF(SUM(AT114:AW114)=0,0,AU114/SUM(AT114:AW114)) -> 0 | AV115: =IF(SUM(AT114:AW114)=0,0,AV114/SUM(AT114:AW114)) -> 0 | AW115: =IF(SUM(AT114:AW114)=0,0,AW114/SUM(AT114:AW114)) -> 0 | AX115: =SUM(AT115:AW115) -> 0 | BA115: Flight Time Percentage
B116: Flight Time Cost | D116: =SUM(J116,P116,V116,AB116,AH116,AN116,AT116) -> 0 | E116: 0 | F116: 0 | G116: 0 | H116: =SUM(D116:G116) -> 0 | J116: =J114*'Contract Info'!$D$18 -> 0 | K116: =K114*'Contract Info'!$D$18 -> 0 | M116: =M114*'Contract Info'!$D$18 -> 0 | N116: 0 | P116: =P114*'Contract Info'!$D$18 -> 0 | Q116: =Q114*'Contract Info'!$D$18 -> 0 | S116: =S114*'Contract Info'!$D$18 -> 0 | T116: 0 | V116: =V114*'Contract Info'!$D$18 -> 0 | W116: =W114*'Contract Info'!$D$18 -> 0 | Y116: =Y114*'Contract Info'!$D$18 -> 0 | Z116: 0 | AB116: =AB114*'Contract Info'!$D$18 -> 0 | AC116: =AC114*'Contract Info'!$D$18 -> 0 | AE116: =AE114*'Contract Info'!$D$18 -> 0 | AF116: 0 | AH116: =AH114*'Contract Info'!$D$18 -> 0 | AI116: =AI114*'Contract Info'!$D$18 -> 0 | AK116: =AK114*'Contract Info'!$D$18 -> 0 | AL116: 0 | AN116: =AN114*'Contract Info'!$D$18 -> 0 | AO116: =AO114*'Contract Info'!$D$18 -> 0 | AQ116: =AQ114*'Contract Info'!$D$18 -> 0 | AR116: 0 | AT116: =AT114*'Contract Info'!$D$18 -> 0 | AU116: =AU114*'Contract Info'!$D$18 -> 0 | AW116: =AW114*'Contract Info'!$D$18 -> 0 | AX116: 0 | BA116: Flight Time Cost
B117: Extended Standby Cost | D117: 0 | E117: 0 | F117: 0 | G117: 0 | H117: 0 | J117: 0 | K117: 0 | M117: 0 | N117: 0 | P117: 0 | Q117: 0 | S117: 0 | T117: 0 | V117: 0 | W117: 0 | Y117: 0 | Z117: 0 | AB117: 0 | AC117: 0 | AE117: 0 | AF117: 0 | AH117: 0 | AI117: 0 | AK117: 0 | AL117: 0 | AN117: 0 | AO117: 0 | AQ117: 0 | AR117: 0 | AT117: 0 | AU117: 0 | AW117: 0 | AX117: 0 | AZ117: AS20:AX25 | BA117: Extended Standby Cost
B118: Per Diem Cost | D118: 0 | E118: 0 | F118: 0 | G118: 0 | H118: 0 | J118: 0 | K118: 0 | M118: 0 | N118: 0 | P118: 0 | Q118: 0 | S118: 0 | T118: 0 | V118: 0 | W118: 0 | Y118: 0 | Z118: 0 | AB118: 0 | AC118: 0 | AE118: 0 | AF118: 0 | AH118: 0 | AI118: 0 | AK118: 0 | AL118: 0 | AN118: 0 | AO118: 0 | AQ118: 0 | AR118: 0 | AT118: 0 | AU118: 0 | AW118: 0 | AX118: 0 | AZ118: AS26:AX27 | BA118: Per Diem Cost
B119: Service Truck Mileage Cost | D119: 0 | E119: 0 | F119: 0 | G119: 0 | H119: 0 | J119: 0 | K119: 0 | M119: 0 | N119: 0 | P119: 0 | Q119: 0 | S119: 0 | T119: 0 | V119: 0 | W119: 0 | Y119: 0 | Z119: 0 | AB119: 0 | AC119: 0 | AE119: 0 | AF119: 0 | AH119: 0 | AI119: 0 | AK119: 0 | AL119: 0 | AN119: 0 | AO119: 0 | AQ119: 0 | AR119: 0 | AT119: 0 | AU119: 0 | AW119: 0 | AX119: 0 | AZ119: AS28:AX29 | BA119: Service Truck Mileage Cost
B120: Relief Travel Cost & Other Special Charges | H120: =SUM(D120:G120) -> 0 | N120: =SUM(J120:M120) -> 0 | T120: =SUM(P120:S120) -> 0 | Z120: =SUM(V120:Y120) -> 0 | AF120: =SUM(AB120:AE120) -> 0 | AL120: 0 | AR120: 0 | AX120: 0 | BA120: Relief Travel Cost
B121: Passengers transported | D121: 0 | E121: 0 | F121: 0 | G121: 0 | H121: 0 | J121: 0 | K121: 0 | M121: 0 | N121: 0 | P121: 0 | Q121: 0 | S121: 0 | T121: 0 | V121: 0 | W121: 0 | Y121: 0 | Z121: 0 | AB121: 0 | AC121: 0 | AE121: 0 | AF121: 0 | AH121: 0 | AI121: 0 | AK121: 0 | AL121: 0 | AN121: 0 | AO121: 0 | AQ121: 0 | AR121: 0 | AT121: 0 | AU121: 0 | AW121: 0 | AX121: 0 | AZ121: V43:Z44 | BA121: Passengers transported
B122: Cargo transported (lbs.) | D122: 0 | E122: 0 | F122: 0 | G122: 0 | H122: 0 | J122: 0 | K122: 0 | M122: 0 | N122: 0 | P122: 0 | Q122: 0 | S122: 0 | T122: 0 | V122: 0 | W122: 0 | Y122: 0 | Z122: 0 | AB122: 0 | AC122: 0 | AE122: 0 | AF122: 0 | AH122: 0 | AI122: 0 | AK122: 0 | AL122: 0 | AN122: 0 | AO122: 0 | AQ122: 0 | AR122: 0 | AT122: 0 | AU122: 0 | AW122: 0 | AX122: 0 | AZ122: AA43:AF44 | BA122: Cargo transported (lbs.)
B123: Water dropped (gal.) | G123: =SUM(M123,S123,Y123,AE123,AK123,AQ123,AW123) -> 0 | H123: 0 | M123: 0 | N123: 0 | S123: 0 | T123: 0 | Y123: 0 | Z123: 0 | AE123: 0 | AF123: 0 | AK123: 0 | AL123: 0 | AQ123: 0 | AR123: 0 | AW123: 0 | AX123: 0 | AZ123: AG43:AL44 | BA123: Water dropped (gal.)
B124: Initial Attacks | G124: =SUM(M124,S124,Y124,AE124,AK124,AQ124,AW124) -> 0 | H124: 0 | M124: 0 | N124: =M124 -> 0 | S124: 0 | Y124: 0 | AE124: 0 | AF124: 0 | AK124: 0 | AL124: 0 | AQ124: 0 | AR124: 0 | AW124: 0 | AX124: 0 | BA124: Initial Attacks
B125: SARs, Projects & Fires supported | D125: =SUM(J125,P125,V125,AB125,AH125,AN125,AT125) -> 0 | E125: =SUM(K125,Q125,W125,AC125,AI125,AO125,AU125) -> 0 | F125: =SUM(L125,R125,X125,AD125,AJ125,AP125,AV125) -> 0 | G125: =SUM(M125,S125,Y125,AE125,AK125,AQ125,AW125) -> 0 | J125: 0 | K125: 0 | M125: 0 | P125: 0 | Q125: 0 | S125: 0 | V125: 0 | W125: 0 | Y125: 0 | AB125: 0 | AC125: 0 | AE125: 0 | AH125: 0 | AI125: 0 | AK125: 0 | AN125: 0 | AO125: 0 | AQ125: 0 | AT125: 0 | AU125: 0 | AW125: 0 | BA125: SARs, Projects & Fires supported
AZ126: BN18:BP19 | BA126: Wilderness Fight Time Hours
B127: Totals by unit | C127: Total All Units | D127: MORA | E127: NOCA | F127: NOCA | G127: OLYM | H127: USFS / OWF | AZ127: BN20:BP21 | BA127: Wilderness Landings
B128: Days at each NPS or USFS Unit | C128: =SUM(D128:H128) ->  | D128: =#REF! ->  | E128: =#REF! ->  | F128: =#REF! ->  | G128: =#REF! ->  | H128: =#REF! ->  | AZ128: BN22:BP23 | BA128: Wilderness Deliveries
B129: SARs involving short-haul at each Unit | AZ129: BN20:BP21 | BA129: Wilderness Landings
AZ130: BN22:BP23 | BA130: Wilderness Deliveries
B131: Unit Statistics | C131: NPS or USFS Unit
C132: MORA | D132: NOCA | E132: OLYM | F132: FS MBS | G132: Other NPS | H132: Total
B133: Total Cost to Unit | C133: =H31 ->  | D133: =H51 ->  | E133: =H71 ->  | F133: =H91 ->  | G133: =H113 -> 0 | H133: =SUM(C133:G133) -> 
B134: Flight Time Hours | C134: =H32 ->  | D134: =H52 ->  | E134: =H72 ->  | F134: =H92 ->  | G134: =H114 -> 0 | H134: =SUM(C134:G134) -> 
B135: Flight Time Percentage | C135: =C134/$H$134 ->  | D135: =D134/$H$134 ->  | E135: =E134/$H$134 ->  | F135: =F134/$H$134 ->  | G135: =G134/$H$134 ->  | H135: =SUM(C135:G135) -> 

Sheet Contract Total Overview
A1: 2021 NW Exclusive Use Contract Totals (May 2 thru Sep 17)
B2: TOTALS FOR ALL LOCATIONS | C2: 139-day Contract TOTALS
B3: All Parks & other locations | C3: Availability | D3: SAR | E3: Project | F3: Training | G3: Fire | H3: Total
B4: Total Cost | C4: 466085 | D4: 51714.9 | E4: 51150.65 | F4: 30718.9 | G4: 76486.75 | H4: 676156.2
B5: Availability Cost | C5: 466085 | D5: 466085 | E5: 0 | F5: 0 | G5: 0 | H5: 466085
B6: Availability Days | D6: 137.2857143 | E6: 0 | F6: 0 | G6: 0 | H6: 137.2857143
B7: Flight Time Hours | D7: 42.9 | E7: 43 | F7: 25.4 | G7: 47.7 | H7: 159
B8: Flight Time Percentage | D8: 0.2698113208 | E8: 0.2704402516 | F8: 0.1597484277 | G8: 0.3 | H8: 1
B9: Flight Time Cost | D9: 48519.9 | E9: 48633 | F9: 28727.4 | G9: 53948.7 | H9: 179829
B10: Extended Standby Cost | D10: 2113 | E10: 104 | F10: 260 | G10: 9354 | H10: 11831
B11: Per Diem Cost | D11: 151 | E11: 755 | F11: 1266 | G11: 11790 | H11: 13962
B12: Service Truck Mileage Cost | D12: 931 | E12: 1658.65 | F12: 465.5 | G12: 1394.05 | H12: 4449.2
B13: Relief Travel Cost & Other Special Charges | D13: 0 | E13: 0 | F13: 0 | G13: 0 | H13: 0
B14: Passengers transported | D14: 228 | E14: 64 | F14: 162 | G14: 156 | H14: 610
B15: Cargo transported (lbs.) | D15: 17844 | E15: 88324 | F15: 17970 | G15: 21277 | H15: 145415
B16: Water dropped (gal.) | G16: 0 | H16: 0
B17: Initial Attacks | G17: 1 | H17: 1
B18: SARs, Projects, Training & Fires Supported | D18: 23 | E18: 13 | F18: 28 | G18: 10
B19: Wilderness Fight Time Hours | D19: 14.6 | E19: 31.4 | F19: 5.5 | G19: 41.9 | H19: 93.4
B20: Wilderness Landings | D20: 25 | E20: 6 | F20: 13 | G20: 44 | H20: 88
B21: Wilderness Deliveries | D21: 27 | E21: 32 | F21: 7 | G21: 29 | H21: 95
B23: Totals by unit | C23: All Units | D23: MORA | E23: NOCA | F23: OLYM | G23: USFS/OWF | H23: Other
B24: Days (or partial days) at each unit | D24: =SUM('Task Order Totals'!AL5) -> 99 | E24: =SUM('Task Order Totals'!AM5) -> 55 | F24: =SUM('Task Order Totals'!AN5) -> 8 | G24: =SUM('Task Order Totals'!AO5) -> 9 | H24: =SUM('Task Order Totals'!AP5) -> 0
B25: SARs involving short-haul at each Unit | C25: =SUM(D25:H25) -> 12 | D25: 4 | E25: 5 | F25: 3 | G25: 0 | H25: 0
B26: check figures
C28: =$B29 -> MOUNT RAINIER NP
B29: MOUNT RAINIER NP | C29: =C2 -> 139-day Contract TOTALS
D30: SAR | E30: Project | F30: Training | G30: Fire | H30: Total
B31: Total Cost | D31: 18351.3 | E31: 32276.55 | F31: 20131.8 | G31: 0 | H31: 70759.65
B32: Flight Time Hours | D32: 14.8 | E32: 28.1 | F32: 17.8 | G32: 0 | H32: 60.7
B33: Flight Time Percentage | D33: 0.2438220758 | E33: 0.4629324547 | F33: 0.2932454695 | G33: 0 | H33: 1
B34: Flight Time Cost | D34: 16738.8 | E34: 31781.1 | F34: 20131.8 | G34: 0 | H34: 68651.7
B35: Extended Standby Cost | D35: 1147 | E35: 52 | F35: 0 | G35: 0 | H35: 1199
B36: Per Diem Cost | D36: 0 | E36: 0 | F36: 0 | G36: 0 | H36: 0
B37: Service Truck Mileage Cost | D37: 465.5 | E37: 443.45 | F37: 0 | G37: 0 | H37: 908.95
B38: Relief Travel Cost & Other Special Charges | H38: 0
B39: Passengers Transported | D39: 86 | E39: 44 | F39: 144 | G39: 0 | H39: 274
B40: Cargo Transported (lbs.) | D40: 5392 | E40: 67724 | F40: 13263 | G40: 0 | H40: 86379
B41: Water Dropped (gal.) | G41: 0 | H41: 0
B42: Initial Attacks | G42: 0 | H42: 0
B43: SARs, Projects, Training & Fires Supported | D43: 13 | E43: 10 | F43: 22 | G43: 0
B44: Wilderness Fight Time Hours | D44: 5.7 | E44: 20.9 | F44: 5.5 | G44: 0 | H44: 32.1
B45: Wilderness Landings | D45: 11 | E45: 0 | F45: 13 | G45: 0 | H45: 24
B46: Wilderness Ext. Load Deliveries & Pickups | D46: 7 | E46: 17 | F46: 7 | G46: 0 | H46: 31
D47: =D51+D71+D91+D115+D136 -> 
C48: =B49 -> NORTH CASCADES NP
B49: NORTH CASCADES NP | C49: =C2 -> 139-day Contract TOTALS
D50: SAR | E50: Project | F50: Training | G50: Fire | H50: Total
B51: Total Cost | D51: 16297.8 | E51: 18874.1 | F51: 5372.9 | G51: 63932.65 | H51: 104477.45
B52: Flight Time Hours | D52: 13.3 | E52: 14.9 | F52: 3.4 | G52: 36.6 | H52: 68.2
B53: Flight Time Percentage | D53: 0.1950146628 | E53: 0.2184750733 | F53: 0.04985337243 | G53: 0.5366568915 | H53: 1
B54: Flight Time Cost | D54: 15042.3 | E54: 16851.9 | F54: 3845.4 | G54: 41394.6 | H54: 77134.2
B55: Extended Standby Cost | D55: 639 | E55: 52 | F55: 156 | G55: 9354 | H55: 10201
B56: Per Diem Cost | D56: 151 | E56: 755 | F56: 906 | G56: 11790 | H56: 13602
B57: Service Truck Mileage Cost | D57: 465.5 | E57: 1215.2 | F57: 465.5 | G57: 1394.05 | H57: 3540.25
B58: Relief Travel Cost & Other Special Charges | H58: 0
B59: Passengers Transported | D59: 75 | E59: 20 | F59: 12 | G59: 126 | H59: 233
B60: Cargo Transported (lbs.) | D60: 5950 | E60: 20600 | F60: 4017 | G60: 19308 | H60: 49875
B61: Water Dropped (gal.) | G61: 0 | H61: 0
B62: Initial Attacks | G62: 1 | H62: 1
B63: SARs, Projects, Training & Fires Supported | D63: 6 | E63: 3 | F63: 3 | G63: 7
B64: Wilderness Fight Time Hours | D64: 5.5 | E64: 10.5 | F64: 0 | G64: 31.6 | H64: 47.6
B65: Wilderness Landings | D65: 9 | E65: 6 | F65: 0 | G65: 38 | H65: 53
B66: Wilderness Ext. Load Deliveries & Pickups | D66: 15 | E66: 15 | F66: 0 | G66: 27 | H66: 57
C68: =$B69 -> OLYMPIC NP
B69: OLYMPIC NP | C69: =C2 -> 139-day Contract TOTALS
D70: SAR | E70: Project | F70: Training | G70: Fire | H70: Total
B71: Total Cost | D71: 17065.8 | E71: 0 | F71: 5214.2 | G71: 0 | H71: 22280
B72: Flight Time Hours | D72: 14.8 | E72: 0 | F72: 4.2 | G72: 0 | H72: 19
B73: Flight Time Percentage | D73: 0.7789473684 | E73: 0 | F73: 0.2210526316 | G73: 0 | H73: 1
B74: Flight Time Cost | D74: 16738.8 | E74: 0 | F74: 4750.2 | G74: 0 | H74: 21489
B75: Extended Standby Cost | D75: 327 | E75: 0 | F75: 104 | G75: 0 | H75: 431
B76: Per Diem Cost | D76: 0 | E76: 0 | F76: 360 | G76: 0 | H76: 360
B77: Service Truck Mileage Cost | D77: 0 | E77: 0 | F77: 0 | G77: 0 | H77: 0
B78: Relief Travel Cost & Other Special Charges | H78: 0
B79: Passengers Transported | D79: 67 | E79: 0 | F79: 6 | G79: 0 | H79: 73
B80: Cargo Transported (lbs.) | D80: 6502 | E80: 0 | F80: 690 | G80: 0 | H80: 7192
B81: Water Dropped (gal.) | G81: 0 | H81: 0
B82: Initial Attacks | G82: 0 | H82: 0
B83: SARs, Projects, Training & Fires Supported | D83: 6 | E83: 0 | F83: 3 | G83: 0
B84: Wilderness Fight Time Hours | D84: 3.4 | E84: 0 | F84: 0 | G84: 0 | H84: 3.4
B85: Wilderness Landings | D85: 5 | E85: 0 | F85: 0 | G85: 0 | H85: 5
B86: Wilderness Ext. Load Deliveries & Pickups | D86: 5 | E86: 0 | F86: 0 | G86: 0 | H86: 5
C88: =$B89 -> USFS: Mount Baker Snoqualmie NF
B89: USFS: Mount Baker Snoqualmie NF | C89: =C2 -> 139-day Contract TOTALS
D90: SAR | E90: Project | F90: Training | G90: Fire | H90: Total
B91: Total Cost | D91: 0 | E91: 0 | F91: 0 | G91: 12554.1 | H91: 12554.1
B92: Flight Time Hours | D92: 0 | E92: 0 | F92: 0 | G92: 11.1 | H92: 11.1
B93: Flight Time Percentage | D93: 0 | E93: 0 | F93: 0 | G93: 1 | H93: 1
B94: Flight Time Cost | D94: 0 | E94: 0 | F94: 0 | G94: 12554.1 | H94: 12554.1
B95: Extended Standby Cost | D95: 0 | E95: 0 | F95: 0 | G95: 0 | H95: 0
B96: Per Diem Cost | D96: 0 | E96: 0 | F96: 0 | G96: 0 | H96: 0
B97: Service Truck Mileage Cost | D97: 0 | E97: 0 | F97: 0 | G97: 0 | H97: 0
B98: Relief Travel Cost & Other Special Charges | H98: 0
B99: Passengers Transported | D99: 0 | E99: 0 | F99: 0 | G99: 30 | H99: 30
B100: Cargo Transported (lbs.) | D100: 0 | E100: 0 | F100: 0 | G100: 1969 | H100: 1969
B101: Water Dropped (gal.) | G101: 0 | H101: 0
B102: Initial Attacks | G102: 0 | H102: 0
B103: SARs, Projects, Training & Fires Supported | D103: 0 | E103: 0 | F103: 0 | G103: 3
B105: Totals by unit | C105: Total All Units | D105: MORA | E105: NOCA | F105: NOCA | G105: OLYM | H105: USFS / OWF
B106: Days at each NPS or USFS Unit | C106: =SUM(D106:H106) ->  | D106: =#REF! ->  | E106: =#REF! ->  | F106: =#REF! ->  | G106: =#REF! ->  | H106: =#REF! -> 
B107: SARs involving short-haul at each Unit | C107: =SUM(D107:H107) -> 11 | D107: 5 | E107: 2 | F107: 2 | G107: 1 | H107: 1
B110: Other NPS | C110: 120-day Contract TOTALS
D111: SAR | E111: Project | F111: Training | G111: Fire | H111: Total
B112: Total Cost | D112: =SUM(#REF!,#REF!,#REF!,#REF!,#REF!,#REF!,#REF!) ->  | E112: =SUM(#REF!,#REF!,#REF!,#REF!,#REF!,#REF!,#REF!) ->  | F112: =SUM(#REF!,#REF!,#REF!,#REF!,#REF!,#REF!,#REF!) ->  | G112: =SUM(#REF!,#REF!,#REF!,#REF!,#REF!,#REF!,#REF!) ->  | H112: =SUM(#REF!,#REF!,#REF!,#REF!,#REF!,#REF!,#REF!) -> 
B113: Flight Time Hours | D113: =SUM(#REF!,#REF!,#REF!,#REF!,#REF!,#REF!,#REF!) ->  | E113: =SUM(#REF!,#REF!,#REF!,#REF!,#REF!,#REF!,#REF!) ->  | F113: =SUM(#REF!,#REF!,#REF!,#REF!,#REF!,#REF!,#REF!) ->  | G113: =SUM(#REF!,#REF!,#REF!,#REF!,#REF!,#REF!,#REF!) ->  | H113: =SUM(D113:G113) -> 
B114: Flight Time Percentage | D114: =IF(SUM(D113:G113)=0,0,D113/SUM(D113:G113)) ->  | E114: =IF(SUM(D113:G113)=0,0,E113/SUM(D113:G113)) ->  | F114: =IF(SUM(D113:G113)=0,0,F113/SUM(D113:G113)) ->  | G114: =IF(SUM(D113:G113)=0,0,G113/SUM(D113:G113)) ->  | H114: =SUM(D114:G114) -> 
B115: Flight Time Cost | D115: =SUM(#REF!,#REF!,#REF!,#REF!,#REF!,#REF!,#REF!) ->  | E115: =SUM(#REF!,#REF!,#REF!,#REF!,#REF!,#REF!,#REF!) ->  | F115: =SUM(#REF!,#REF!,#REF!,#REF!,#REF!,#REF!,#REF!) ->  | G115: =SUM(#REF!,#REF!,#REF!,#REF!,#REF!,#REF!,#REF!) ->  | H115: =SUM(D115:G115) -> 
B116: Extended Standby Cost | D116: =SUM(#REF!,#REF!,#REF!,#REF!,#REF!,#REF!,#REF!) ->  | E116: =SUM(#REF!,#REF!,#REF!,#REF!,#REF!,#REF!,#REF!) ->  | F116: =SUM(#REF!,#REF!,#REF!,#REF!,#REF!,#REF!,#REF!) ->  | G116: =SUM(#REF!,#REF!,#REF!,#REF!,#REF!,#REF!,#REF!) -> 
B117: Per Diem Cost | D117: =SUM(#REF!,#REF!,#REF!,#REF!,#REF!,#REF!,#REF!) ->  | E117: =SUM(#REF!,#REF!,#REF!,#REF!,#REF!,#REF!,#REF!) ->  | F117: =SUM(#REF!,#REF!,#REF!,#REF!,#REF!,#REF!,#REF!) ->  | G117: =SUM(#REF!,#REF!,#REF!,#REF!,#REF!,#REF!,#REF!) -> 
B118: Service Truck Mileage Cost | D118: =SUM(#REF!,#REF!,#REF!,#REF!,#REF!,#REF!,#REF!) ->  | E118: =SUM(#REF!,#REF!,#REF!,#REF!,#REF!,#REF!,#REF!) ->  | F118: =SUM(#REF!,#REF!,#REF!,#REF!,#REF!,#REF!,#REF!) ->  | G118: =SUM(#REF!,#REF!,#REF!,#REF!,#REF!,#REF!,#REF!) -> 
B119: Relief Travel Cost & Other Special Charges | H119: =SUM(D119:G119) -> 0
B120: Passengers transported | D120: =SUM(#REF!,#REF!,#REF!,#REF!,#REF!,#REF!,#REF!) ->  | E120: =SUM(#REF!,#REF!,#REF!,#REF!,#REF!,#REF!,#REF!) ->  | F120: =SUM(#REF!,#REF!,#REF!,#REF!,#REF!,#REF!,#REF!) ->  | G120: =SUM(#REF!,#REF!,#REF!,#REF!,#REF!,#REF!,#REF!) -> 
B121: Cargo transported (lbs.) | D121: =SUM(#REF!,#REF!,#REF!,#REF!,#REF!,#REF!,#REF!) ->  | E121: =SUM(#REF!,#REF!,#REF!,#REF!,#REF!,#REF!,#REF!) ->  | F121: =SUM(#REF!,#REF!,#REF!,#REF!,#REF!,#REF!,#REF!) ->  | G121: =SUM(#REF!,#REF!,#REF!,#REF!,#REF!,#REF!,#REF!) -> 
B122: Water dropped (gal.) | G122: =SUM(#REF!,#REF!,#REF!,#REF!,#REF!,#REF!,#REF!) -> 
B123: Initial Attacks | G123: =SUM(#REF!,#REF!,#REF!,#REF!,#REF!,#REF!,#REF!) -> 
B124: SARs, Projects & Fires supported | D124: =SUM(#REF!,#REF!,#REF!,#REF!,#REF!,#REF!,#REF!) ->  | E124: =SUM(#REF!,#REF!,#REF!,#REF!,#REF!,#REF!,#REF!) ->  | F124: =SUM(#REF!,#REF!,#REF!,#REF!,#REF!,#REF!,#REF!) ->  | G124: =SUM(#REF!,#REF!,#REF!,#REF!,#REF!,#REF!,#REF!) -> 
B126: Totals by unit | C126: Total All Units | D126: MORA | E126: NOCA | F126: NOCA | G126: OLYM | H126: USFS / OWF
B127: Days at each NPS or USFS Unit | C127: =SUM(D127:H127) ->  | D127: =#REF! ->  | E127: =#REF! ->  | F127: =#REF! ->  | G127: =#REF! ->  | H127: =#REF! -> 
B128: SARs involving short-haul at each Unit
B130: Unit Statistics | C130: NPS or USFS Unit
C131: MORA | D131: NOCA | E131: OLYM | F131: USFS/BIA | G131: Other NPS | H131: Total
B132: Total Cost | C132: 70759.65 | D132: 104477.45 | E132: 22280 | F132: 12554.1 | G132: 0 | H132: 210071.2
B133: Flight Time Hours | C133: 60.7 | D133: 68.2 | E133: 19 | F133: 11.1 | G133: 0 | H133: 159
B134: Flight Time Percentage | C134: 0.3817610063 | D134: 0.4289308176 | E134: 0.1194968553 | F134: 0.06981132075 | G134: 0 | H134: 1

Sheet 1-May-23 sample day
A1: ='Contract Info'!A1:G1 -> SuperManager v3.23 SEKI | AZ1: =A1 -> SuperManager v3.23 SEKI | BT1: =A1 -> SuperManager v3.23 SEKI
E2: Aircraft Daily Detail | U2: HELICOPTER DAILY USE and COST SUMMARY | BA2: OAS-137 | BD2: Aircraft Contract Daily Diary | BT2: INTERAGENCY HELICOPTER LOAD CALCULATION Electronic Version 1.0 (3/04) | CA2: MODEL | CC2: ='Contract Info'!D4 -> Airbus H-125 | CI2: INTERAGENCY HELICOPTER LOAD CALCULATION Electronic Version 1.0 (3/04) | CP2: MODEL | CR2: ='Contract Info'!D4 -> Airbus H-125
B5: Incident: | D5: SEKI Test #2 | L5: Date: | N5: 2023-05-01 | V5: Activity Mission: | AC5: Fire | AG5: SAR | AK5: Project | AO5: Training | AS5: Date: | AU5: =N5 -> 2023-05-01 | BA5: Contract # | BC5: ='Contract Info'!D6 -> 140D8021D0666 | BF5: Item: | BG5: ='Contract Info'!F6 -> 0 | BH5: Page | BI5: 1 | BJ5: OF | BK5: 1 | BN5: DATE: | BP5: =N5 -> 2023-05-01 | CA5: N# | CC5: ='Contract Info'!D3 -> N836TJ | CP5: N# | CR5: ='Contract Info'!D3 -> N836TJ
B6: Contract #: | D6: ='Contract Info'!D6 -> 140D8021D0666 | H6: =('Contract Info'!F6)*(-1) -> 0 | L6: Contractor: | N6: ='Contract Info'!$D$8 -> Butterfly Airways, Inc. | BA6: 1. Contractor: | BD6: ='Contract Info'!$D$8 -> Butterfly Airways, Inc. | BH6: 7. Designated Base: | BM6: ='Contract Info'!$D$7 -> Asher Hill Helibase
Q7: Unavailablty | V7: Helibase: | Z7: Ash Mtn | AE7: Incident: | AI7: =D5 -> SEKI Test #2 | AP7: Agency: | AT7: NPS | BA7: 2. A/C Make/Model: | BD7: ='Contract Info'!$D$4 -> Airbus H-125 | BH7: 8. Current Aircraft Location: | BN7: AMH
B8: Power Check | F8: Resource | I8: Qty | J8: Name | O8: Begin | P8: End | Q8: Begin | R8: End | BA8: FAA #: | BD8: ='Contract Info'!$D$3 -> N836TJ | BT8: PILOT(S) | BV8: =J10 -> Frank Segovia | CA8: DATE | CC8: =N5 -> 2023-05-01 | CI8: PILOT(S) | CK8: =BV8 -> Frank Segovia | CP8: DATE | CR8: =N5 -> 2023-05-01
B9: Engine# | C9: 1 | D9: 2 | F9: Aircraft #: | J9: ='Contract Info'!$D$3 -> N836TJ | O9: 1200 | P9: 1800 | V9: N #: | X9: ='Contract Info'!$D$3 -> N836TJ | AB9: Make/Model: | AG9: ='Contract Info'!$D$4 -> Airbus H-125 | AM9: Manager's Name: | AS9: Tyler Maine | BA9: 3. Pilot(s) On Duty: | BH9: 9. Activity: | BJ9: ferry | BL9: Training | BO9: Project
B10: Hobbs | C10: 111 | F10: Pilot | I10: 1 | J10: Frank Segovia | O10: 2100 | P10: 2100 | BB10: =J10 -> Frank Segovia | BH10: Large Fire Support: | BL10: IA | BO10: SAR
B11: Altitude | C11: 7000 | F11: Driver | V11: Type: | X11: ='Contract Info'!D5 -> 3 | AC11: CWN | AF11: X | AG11: Exclusive Use | AN11: Other (specify): | BA11: 4. Mechanic(s) On Duty: | BH11: 10. Other Aircraft On Base | BT11: MISSION | BV11: IA/SAR Preparedness | CA11: TIME | CC11: 0815 | CI11: MISSION | CP11: TIME
B12: O.A.T. | C12: 30 | F12: Mechanic | I12: 1 | J12: Fernando Mechanda | O12: 1200 | P12: 2359 | BB12: =J12 -> Fernando Mechanda | BI12: none
B13: NG | C13: 0.94 | F13: Additionl | V13: Flight Invoice Reference Number(s): | BA13: 5. Driver(s) On Duty: | BH13: 11. Weather:
B14: N2 | C14: 391 | F14: Total Number of Vendor crewmembers | O14: =I10+I11+I12+I13 -> 2 | AE14: Persons | AH14: Quantity | AM14: Rate | AS14: Cost | BB14: =J11 -> 0 | BI14: Sunny and getting hotter!! | BT14: 1 | BU14: DEPARTURE | BW14: AMH | CA14: PA | CB14: 1650 | CD14: OAT | CE14: 35 | CI14: 1 | CJ14: DEPARTURE | CP14: PA | CS14: OAT
B15: E.G.T. | C15: 840 | F15: Service Truck Mileage | O15: 20202 | P15: 20222 | BA15: 6. Total # Of Contractor Personnel: | BG15: =O14 -> 2 | BH15: 12. Local Fuel Price | BN15: N/A
B16: T4 | V16: Revenue Flight Hours: | AH16: =J56 -> 2.7 | AM16: 1325 | AS16: =AH16*AM16 -> 3577.5 | BA16: 13. Pay Items | BD16: Begin | BE16: End | BF16: Total | BG16: EXT. | BH16: 14. SPECIAL EQUIPMENT & STATS | BN16: HR/DAYS | BQ16: COST
B17: Torque | C17: 0.92 | F17: Allowable Loads: | N17: Delivered | P17: buckets or tanks | Q17: gal. per bkt/tank | R17: total | BT17: 2 | BU17: DESTINATION | BW17: IA/SAR | CA17: PA | CB17: 7000 | CD17: OAT | CE17: 25 | CI17: 2 | CJ17: DESTINATION | CP17: PA | CS17: OAT
B18: Perform | C18: 16.4 | D18: 6.3 | F18: PA (feet) | H18: =CB17 -> 7000 | J18: =CQ17 -> 0 | V18: *Availabiliy (Hours or Day) | AH18: 1 | AM18: 3695 | AS18: =IF(AH18>1,(AH18*AM18/14),(AH18*AM18)) -> 3695 | BA18: Availability | BD18: =O9 -> 1200 | BE18: =P9 -> 1800 | BF18: =(BE18-BD18)/100 -> 6 | BH18: Wilderness Flight Time | BN18: 5
B19: Chart | C19: 0 | D19: =C19 -> 0 | F19: ºC | H19: =CE17 -> 25 | J19: =CT17 -> 0 | N19: Water | P19: =M56 -> 1 | Q19: 180 | R19: =Q19*P19 -> 180
B20: Margin | C20: =C18-C19 -> 16.4 | D20: =D18-D19 -> 6.3 | F20: # fuel | H20: =CA26 -> 499.8 | J20: =CP26 ->  | N20: Retardant | P20: =N56 -> 1 | R20: =Q20*P20 -> 0 | V20: Pilot Extended Standby | AE20: =I10 -> 1 | AH20: =IF(BF24<'Contract Info'!$D$23,"0",BF24-('Contract Info'!$D$23)) -> 0 | AM20: 52 | AS20: =AH20*AE20*AM20 -> 0 | BA20: Flight Time | BD20: =F29 -> 111 | BE20: =H56 -> 113.7 | BF20: =J56 -> 2.7 | BH20: Wilderness Landings | BN20: 4 | BT20: 3 | BU20: HELICOPTER EQUIPPED WEIGHT | CA20: 3268 | CI20: 3 | CJ20: HELICOPTER EQUIPPED WEIGHT
B21: Next Due | C21: =C10+10 -> 121 | F21: HIGE | H21: =BY55 -> 1277.2 | J21: =CN55 ->  | N21: Foam | P21: =O56 -> 1 | R21: =Q21*P21 -> 0
F22: HOGE | H22: =CA55 -> 1277.2 | J22: =CP55 ->  | V22: Driver Extended Standby | AE22: =I11 -> 0 | AH22: =IF(BF26<'Contract Info'!$D$23,"0",BF26-('Contract Info'!$D$23)) -> 0 | AM22: 39 | AS22: =AH22*AE22*AM22 -> 0 | BA22: Service Miles | BD22: =O15 -> 20202 | BE22: =P15 -> 20222 | BF22: =BE22-BD22 -> 20 | BH22: Wilderness Ext. Load Deliveries or Pickups (non-s-h) | BN22: 3
F23: HOGE-J | H23: =CD55 -> 1452.2 | J23: =CS55 ->  | BT23: 4 | BU23: FLIGHT CREW WEIGHT | CA23: 180 | CI23: 4 | CJ23: FLIGHT CREW WEIGHT
V24: Mechanic Extend Standby | AE24: =I12 -> 1 | AH24: =IF(BF28<'Contract Info'!$D$23,"0",BF28-('Contract Info'!$D$23)) -> 2.59 | AM24: 59.59 | AS24: =AH24*AE24*AM24 -> 154.3381 | BA24: Pilot Duty | BD24: =O10 -> 2100 | BE24: =P10 -> 2100 | BF24: =(BE24-BD24)/100 -> 0 | BG24: =IF(BF24<'Contract Info'!$D$23,0,BF24-('Contract Info'!$D$23)) -> 0 | BH24: Wilderness Short-hauls | BN24: 2
B25: Flight Log
D26: Depart | E26: Arrive | O26: Short- | R26: Flight | S26: Non- | V26: Per Diem or RON | AE26: =O14 -> 2 | AM26: 169 | AS26: =AE26*AM26 -> 338 | BA26: Driver Duty | BD26: =O11 -> 0 | BE26: =P11 -> 0 | BF26: =(BE26-BD26)/100 -> 0 | BG26: =IF(BF26<'Contract Info'!$D$23,0,BF26-('Contract Info'!$D$23)) -> 0 | BH26: Initial Attacks | BN26: 1 | BT26: 5 | BU26: FUEL WEIGHT | BW26: 71.4 | BX26: gals X | BY26: 7 | BZ26: lbs/gal | CA26: =IF(BY26="","",SUM(BW26*BY26)) -> 499.8 | CI26: 5 | CJ26: FUEL WEIGHT | CM26: gals X | CO26: lbs/gal | CP26: =IF(CN26="","",SUM(CL26*CN26)) -> 
B27: Depart | C27: Destin | D27: Clock | E27: Clock | F27: Depart | H27: Arrive | J27: Hobbs | L27: Lbs | M27: H2O | N27: Sling | O27: Haul | Q27: Use | R27: Time | S27: Revnue
B28: From | C28: To | D28: Time | E28: Time | F28: Hobbs | H28: Hobbs | J28: Total | K28: PAX | L28: Cargo | M28: Buckts | N28: Loads | O28: Evols | P28: Acct | Q28: Code | R28: Cost | S28: flight? | V28: Service Truck Miles | AH28: =P15-O15 -> 20 | AM28: 2.45 | AS28: =AH28*AM28 -> 49 | BA28: Mechanic Duty | BD28: =O12 -> 1200 | BE28: =P12 -> 2359 | BF28: =(BE28-BD28)/100 -> 11.59 | BG28: =IF(BF28<'Contract Info'!$D$23,"0",BF28-('Contract Info'!$D$23)) -> 2.59
B29: ASH | C29: KES | D29: 900 | E29: 1005 | F29: 111 | H29: 112 | J29: =IF(H29="","",IF(S29="",H29-F29,"")) -> 1 | K29: 2 | L29: 320 | P29: acct1 | R29: =IF(J29="","",J29*('Contract Info'!$D$18)) -> 1375 | BT29: 6 | BU29: OPERATING WEIGHT (3 + 4 + 5) | CA29: =IF(CA26="","",SUM(CA20:CG28)) -> 3947.8 | CI29: 6 | CJ29: OPERATING WEIGHT (3 + 4 + 5) | CP29: =IF(CP26="","",SUM(CP20:CV28)) -> 
B30: KES | C30: ASH | D30: 1200 | E30: 1301 | F30: =IF(H29="","",H29) -> 112 | H30: 113 | J30: =IF(H30="","",IF(S30="",H30-F30,"")) -> 1 | L30: 622 | N30: 1 | P30: acct2 | R30: =IF(J30="","",J30*('Contract Info'!$D$18)) -> 1375 | V30: Addnl Crew Extend Stnby: | AE30: =I13 -> 0 | AM30: 10 | AS30: =AH30*AE30*AM30 -> 0 | BA30: 15. Aircraft Status: (Maintenance performed, power trend analysis completed, reasons for any unavailability, etc.)
B31: ASH | C31: ASH | D31: 1350 | E31: 1409 | F31: =IF(H30="","",H30) -> 113 | H31: 113.3 | J31: =IF(H31="","",IF(S31="",H31-F31,"")) -> 0.3 | L31: 555 | O31: 1 | P31: acct3 | R31: =IF(J31="","",J31*('Contract Info'!$D$18)) -> 412.5 | BA31: Pre-flight maintenance performed.
B32: ASH | C32: FIR | D32: 1605 | E32: 1634 | F32: =IF(H31="","",H31) -> 113.3 | H32: 113.7 | J32: 0.4 | M32: 1 | R32: =IF(J32="","",J32*('Contract Info'!$D$18)) -> 550 | V32: Add'l Cost: | AS32: =AH32*AE32*AM32 -> 0 | BY32: Non-Jettisonable | CD32: Jettisonable | CN32: Non-Jettisonable | CS32: Jettisonable
F33: 113.7 | R33: =IF(J33="","",J33*('Contract Info'!$D$18)) ->  | BY33: HIGE | CA33: HOGE | CD33: HOGE- J | CN33: HIGE | CP33: HOGE | CS33: HOGE- J
R34: =IF(J34="","",J34*('Contract Info'!$D$18)) ->  | V34: Add'l Cost: | AS34: =AH34*AE34*AM34 -> 0 | BT34: 7a | BU34: PERFORMANCE REFERENCE (List chart/supplement from Flight Manual) | BY34: BLR Fig 1 or 2 | CA34: BLR Fig 1 or 2 | CD34: BLR Fig 1 or 2 | CI34: 7a | CJ34: PERFORMANCE REFERENCE (List chart/supplement from Flight Manual)
R35: =IF(J35="","",J35*('Contract Info'!$D$18)) -> 
R36: =IF(J36="","",J36*('Contract Info'!$D$18)) ->  | V36: Add'l Cost: | AS36: =AH36*AE36*AM36 -> 0 | BA36: 16. Narrative Report: (Include problems encountered, official visits or inspections, SAFECOMs submitted, etc.)
R37: =IF(J37="","",J37*('Contract Info'!$D$18)) ->  | BA37: Update helicopter and contract info on May 18th to be ready for the EU start date of May 19th. | BT37: 7b | BU37: COMPUTED GROSS WEIGHT (From Flight Manual Performance Section) | BY37: 5400 | CA37: 5400 | CD37: 5400 | CI37: 7b | CJ37: COMPUTED GROSS WEIGHT (From Flight Manual Performance Section)
R38: =IF(J38="","",J38*('Contract Info'!$D$18)) ->  | V38: * Do not calculate for exclusive use contracts where | AI38: Daily Grand Total Cost: | AS38: =AS16+AS18+AS20+AS22+AS24+AS26+AS28+AS30+AS32+AS34+AS36 -> 7813.8381
R39: =IF(J39="","",J39*('Contract Info'!$D$18)) ->  | W39: availability is paid from presuppression funds
R40: =IF(J40="","",J40*('Contract Info'!$D$18)) ->  | BT40: 8 | BU40: WEIGHT REDUCTION (Required for all Non-Jettisonable loads) | BY40: 175 | CA40: 175 | CD40: 0 | CI40: 8 | CJ40: WEIGHT REDUCTION (Required for all Non-Jettisonable loads)
R41: =IF(J41="","",J41*('Contract Info'!$D$18)) ->  | V41: Total PAX Transported | AA41: Total Pounds Cargo | AG41: Total Gallons Water | AM41: Sling Loads | AS41: Short-haul Evolutions
R42: =IF(J42="","",J42*('Contract Info'!$D$18)) -> 
R43: =IF(J43="","",J43*('Contract Info'!$D$18)) ->  | V43: =K166 -> 2 | AA43: =L166 -> 1497 | AG43: =Q19*M166 -> 180 | AM43: =N56 -> 1 | AS43: =O56 -> 1 | BT43: 9 | BU43: ADJUSTED WEIGHT (7b minus 8) | BY43: =IF(BY37="","",SUM(BY37-BY40)) -> 5225 | CA43: =IF(CA37="","",SUM(CA37-CA40)) -> 5225 | CD43: =IF(CD37="","",SUM(CD37-CD40)) -> 5400 | CI43: 9 | CJ43: ADJUSTED WEIGHT (7b minus 8) | CN43: =IF(CN37="","",SUM(CN37-CN40)) ->  | CP43: =IF(CP37="","",SUM(CP37-CP40)) ->  | CS43: =IF(CS37="","",SUM(CS37-CS40)) -> 
R44: =IF(J44="","",J44*('Contract Info'!$D$18)) -> 
R45: =IF(J45="","",J45*('Contract Info'!$D$18)) ->  | AG45: Aerial Ignition
R46: =IF(J46="","",J46*('Contract Info'!$D$18)) ->  | V46: Acres Treated | AE46: PSD Spheres Used | AO46: UAS Spheres Used | BT46: 10 | BU46: GROSS WEIGHT LIMITATION (From Flight Manual Limitations Section) | BY46: 5225 | CA46: 5225 | CD46: 6173 | CI46: 10 | CJ46: GROSS WEIGHT LIMITATION (From Flight Manual Limitations Section)
R47: =IF(J47="","",J47*('Contract Info'!$D$18)) ->  | V47: 0 | AE47: 0 | AO47: 0
R48: =IF(J48="","",J48*('Contract Info'!$D$18)) -> 
R49: =IF(J49="","",J49*('Contract Info'!$D$18)) ->  | BT49: 11 | BU49: SELECTED WEIGHT (Lowest of 9 of 10) | BY49: =IF(BY46="","",MIN(BY46,BY43)) -> 5225 | CA49: =IF(CA46="","",MIN(CA46,CA43)) -> 5225 | CD49: =IF(CD46="","",MIN(CD46,CD43)) -> 5400 | CI49: 11 | CJ49: SELECTED WEIGHT (Lowest of 9 of 10) | CN49: =IF(CN46="","",MIN(CN46,CN43)) ->  | CP49: =IF(CP46="","",MIN(CP46,CP43)) ->  | CS49: =IF(CS46="","",MIN(CS46,CS43)) -> 
R50: =IF(J50="","",J50*('Contract Info'!$D$18)) ->  | V50: Account Name | AE50: Account Code | AO50: Cost
R51: =IF(J51="","",J51*('Contract Info'!$D$18)) ->  | V51: Daily Availability | AE51: PF.FPAMD1022.00.1 | AO51: =SUM(AS18) -> 3695
R52: =IF(J52="","",J52*('Contract Info'!$D$18)) ->  | BA52: 17. Miscellaneous Costs: (Contractor purchased permits, fees, travel, etc; to be reimbursed by Govt.) | BT52: 12 | BU52: OPERATING WEIGHT (From Line 6) | BY52: =IF(CA29="","",SUM(CA29)) -> 3947.8 | CA52: =IF(CA29="","",SUM(CA29)) -> 3947.8 | CD52: =IF(CA29="","",SUM(CA29)) -> 3947.8 | CI52: 12 | CJ52: OPERATING WEIGHT (From Line 6) | CN52: =IF(CP29="","",SUM(CP29)) ->  | CP52: =IF(CP29="","",SUM(CP29)) ->  | CS52: =IF(CP29="","",SUM(CP29)) -> 
R53: =IF(J53="","",J53*('Contract Info'!$D$18)) -> 
R54: =IF(J54="","",J54*('Contract Info'!$D$18)) -> 
R55: =IF(J55="","",J55*('Contract Info'!$D$18)) ->  | BT55: 13 | BU55: ALLOWABLE PAYLOAD (11 minus 12) | BY55: =IF(BY46="","",SUM(BY49-BY52)) -> 1277.2 | CA55: =IF(CA46="","",SUM(CA49-CA52)) -> 1277.2 | CD55: =IF(CD46="","",SUM(CD49-CD52)) -> 1452.2 | CI55: 13 | CJ55: ALLOWABLE PAYLOAD (11 minus 12) | CN55: =IF(CN46="","",SUM(CN49-CN52)) ->  | CP55: =IF(CP46="","",SUM(CP49-CP52)) ->  | CS55: =IF(CS46="","",SUM(CS49-CS52)) -> 
B56: TOTALS | F56: =F29 -> 111 | H56: =IF(H29="",F29,LARGE(H29:H55,1)) -> 113.7 | J56: =SUM(J29:J55) -> 2.7 | K56: 2 | L56: 1497 | M56: =SUM(M29:M55) -> 1 | N56: 1 | O56: 1 | R56: =SUM(R29:R55) -> 3712.5 | BA56: 18. Govt. Representative Name/Title (Print): | BG56: Govt. Representative Signature: | BP56: Date:
B57: Depart | C57: Destin | D57: Depart | E57: Arrive | F57: Depart | H57: Arrive | J57: Hobbs | K57: PAX | L57: Lbs | M57: H2O | N57: Sling | O57: Short- | P57: Acct | Q57: Use | R57: Flight | S57: Non- | AE57: Grand Total for Daily Helicopter Cost = | AO57: =SUM(AO51:AX56) -> 3695 | BA57: =AS9 -> Tyler Maine | BP57: =N5 -> 2023-05-01
B58: From | C58: To | D58: Clock | E58: Clock | F58: Hobbs | H58: Hobbs | J58: Total | L58: Cargo | M58: Buckts | N58: Loads | O58: Haul | Q58: Code | R58: Time | S58: Revnue | BU58: Exceeds = Allowable Exceeded | BY58: =IF(CD68="","",IF(CD68>BY55,"Exceeds","OK")) ->  | CA58: =IF(CD68="","",IF(CD68>CA55,"Exceeds","OK")) ->  | CD58: =IF(CD68="","",IF(CD68>CD55,"Exceeds","OK")) ->  | CJ58: Exceeds = Allowable Exceeded | CN58: =IF(CS68="","",IF(CS68>CN55,"Exceeds","OK")) ->  | CP58: =IF(CS68="","",IF(CS68>CP55,"Exceeds","OK")) ->  | CS58: =IF(CS68="","",IF(CS68>CS55,"Exceeds","OK")) -> 
D59: Time | E59: Time | O59: Evols | R59: Cost | S59: flight? | V59: *For full availability enter 1, otherwise enter 14 minus # of hours unavailable | AK59: =A1 -> SuperManager v3.23 SEKI | AS59: HCM-15 (REQUIRED) | BD59: NFES #1088 | BG59: =A1 -> SuperManager v3.23 SEKI | BO59: HCM-1 (REQUIRED)
P60: =A1 -> SuperManager v3.23 SEKI | BT60: 14 | BU60: PASSENGERS/CARGO | CI60: 14 | CJ60: PASSENGERS/CARGO
S66: Aviation Personnel Daily Cost Summary
BT68: 15 | BU68: ACTUAL PAYLOAD (Total of all weights listed in Item 14) Line 15 must not exceed Line 13 for the intended mission (HIGE, HOGE or HOGE-J) | CD68: =IF(CD60+CD62+CD64+CD66=0,"",SUM(CD60:CG67)) ->  | CI68: 15 | CJ68: ACTUAL PAYLOAD (Total of all weights listed in Item 14) Line 15 must not exceed Line 13 for the intended mission (HIGE, HOGE or HOGE-J) | CS68: =IF(CS60+CS62+CS64+CS66=0,"",SUM(CS60:CV67)) -> 
Q69: Crew Name: | S69: SEKI Helitack | AC69: Date: | AE69: =N5 -> 2023-05-01 | AJ69: Incident/Project: | AP69: =AI7 -> SEKI Test #2 | AY69: Account: | BB69: PF.FPAMD1022.00.1
W71: Pay | Y71: Regular TIme (RT) | AK71: Overtime (OT) | AW71: Hazard (Haz) | BB71: Travel (Trv) | BT71: PILOT SIGNATURE | CD71: HazMat Onboard | CI71: PILOT SIGNATURE | CS71: HazMat Onboard
B72: Name | D72: Lieu Days | F72: Quals | Q72: Name | S72: Position | W72: Grade | Y72: Begin | AA72: End | AC72: Break | AE72: Hours | AG72: Rate | AI72: Cost | AK72: Begin | AM72: End | AO72: Break | AQ72: Hours | AS72: Rate | AU72: Cost | AW72: Hours | AY72: Prmum | BA72: Pay | BB72: Lodge | BC72: M&IE | BD72: Other | BE72: Total
B73: =Q73 -> Tyler Wayne | D73: Thurs/Fri | F73: HEBM, HMGB, ICT4, SHLS, FAL2, PLDO, FIRB | Q73: Tyler Wayne | S73: Assistant Manager | W73: GS-8/4 | Y73: 08:00:00 | AA73: 16:30:00 | AC73: 00:30:00 | AE73: =IF(AA73-Y73=0,"",AA73-Y73-AC73) -> 08:00:00 | AG73: 26.11 | AI73: =IF(AG73="","",IF(AE73="","",AE73*AG73*24)) -> 208.88 | AK73: 07:00:00 | AM73: 17:00:00 | AQ73: =IF(AM73-AK73=0,"",AM73-AK73-AO73) -> 10:00:00 | AS73: =IF(AG73*1.5=0,"",IF(AG73*1.5>'Contract Info'!$D$38,'Contract Info'!$D$38,AG73*1.5)) -> 39.165 | AU73: =IF(AS73="","",IF(AQ73="","",AQ73*AS73*24)) -> 391.65 | AW73: 09:00:00 | AY73: 0.25 | BA73: =IF(AG73*AW73=0,"",PRODUCT(AG73,$AY73,AW73,24)) -> 58.7475 | BE73: =SUM(BB73:BD73) -> 0 | BT73: MANAGER SIGNATURE | CD73: YES | CE73: X | CF73: NO | CI73: MANAGER SIGNATURE | CS73: YES | CU73: NO
B74: PJ Nutall | D74: Sun/Mon | F74: HEBM(t), HMGB, ICT4, SHLS, FAL3, PLDO, FIRB | Q74: PJ Nutall | S74: Lead Crew | T74: Asst. Manager | W74: GS-7/8 | Y74: 08:00:00 | AA74: 16:30:00 | AC74: 00:30:00 | AE74: =IF(AA74-Y74=0,"",AA74-Y74-AC74) -> 08:00:00 | AG74: 26.44 | AI74: =IF(AG74="","",IF(AE74="","",AE74*AG74*24)) -> 211.52 | AQ74: =IF(AM74-AK74=0,"",AM74-AK74-AO74) ->  | AS74: =IF(AG74*1.5=0,"",IF(AG74*1.5>'Contract Info'!$D$38,'Contract Info'!$D$38,AG74*1.5)) -> 39.66 | AU74: =IF(AS74="","",IF(AQ74="","",AQ74*AS74*24)) ->  | AY74: 0.25 | BA74: =IF(AG74*AW74=0,"",PRODUCT(AG74,$AY74,AW74,24)) ->  | BE74: =SUM(BB74:BD74) -> 0
B75: Melissa McBurger | D75: Wed/Thurs | F75: HEBM, HMGB, ICT4(t), SHLR, AEMF, PLDO, FIRB | Q75: Melissa McBurger | S75: Lead Crew | T75: Manager Trainee | W75: GS-6/6 | Y75: 08:00:00 | AA75: 16:30:00 | AC75: 00:30:00 | AE75: 08:00:00 | AG75: 22.51 | AI75: 180.08 | AS75: =IF(AG75*1.5=0,"",IF(AG75*1.5>'Contract Info'!$D$38,'Contract Info'!$D$38,AG75*1.5)) -> 33.765 | AY75: 0.25 | BE75: 0 | CA75: =A1 -> SuperManager v3.23 SEKI | CG75: HCM-8 | CP75: =A1 -> SuperManager v3.23 SEKI | CV75: HCM-8
B76: Damian Lorna | D76: Sat/Sun | F76: HMGB, ICT4(t), SHLS, FAL2, PLDO(t) | Q76: Damian Lorna | S76: Sr. Crewmember | T76: Manager Trainee | W76: GS-5 | Y76: 08:00:00 | AA76: 16:30:00 | AC76: 00:30:00 | AE76: 08:00:00 | AG76: 17.31 | AI76: 138.48 | AS76: =IF(AG76*1.5=0,"",IF(AG76*1.5>'Contract Info'!$D$38,'Contract Info'!$D$38,AG76*1.5)) -> 25.965 | AY76: 0.25 | BE76: 0
B77: Erik Anders | D77: Fri/Sat | F77: HECM, FFT1(t), SHLR, FAL3, EMTF, ABRO(t) | Q77: Erik Anders | S77: Crewmember | T77: Manager Trainee | W77: GS-4 | Y77: 08:00:00 | AA77: 16:30:00 | AC77: 00:30:00 | AE77: 08:00:00 | AG77: 15.92 | AI77: 127.36 | AS77: =IF(AG77*1.5=0,"",IF(AG77*1.5>'Contract Info'!$D$38,'Contract Info'!$D$38,AG77*1.5)) -> 23.88 | AY77: 0.25 | BE77: 0
B78: Chandra Homer | D78: Mon/Tues | F78: HECM(t), FFT1(t), EMTF | Q78: Chandra Homer | S78: Crewmember | T78: Manager Trainee | W78: GS-4 | Y78: 08:00:00 | AA78: 16:30:00 | AC78: 00:30:00 | AE78: 08:00:00 | AG78: 15.92 | AI78: 127.36 | AS78: =IF(AG78*1.5=0,"",IF(AG78*1.5>'Contract Info'!$D$38,'Contract Info'!$D$38,AG78*1.5)) -> 23.88 | AY78: 0.25 | BE78: 0
B79: Larry Goodbush | D79: Tues/Wed | F79: HECM(t), FFT1(t) | Q79: Larry Goodbush | S79: Crewmember | T79: Manager Trainee | W79: GS-4 | Y79: 08:00:00 | AA79: 16:30:00 | AC79: 00:30:00 | AE79: 08:00:00 | AG79: 15.92 | AI79: 127.36 | AS79: =IF(AG79*1.5=0,"",IF(AG79*1.5>'Contract Info'!$D$38,'Contract Info'!$D$38,AG79*1.5)) -> 23.88 | AY79: 0.25 | BE79: 0
B80: 0 | T80: Crewmember | AS80: =IF(AG80*1.5=0,"",IF(AG80*1.5>'Contract Info'!$D$38,'Contract Info'!$D$38,AG80*1.5)) ->  | AY80: 0.25 | BE80: 0
B81: 0 | T81: Crewmember | AS81: =IF(AG81*1.5=0,"",IF(AG81*1.5>'Contract Info'!$D$38,'Contract Info'!$D$38,AG81*1.5)) ->  | AY81: 0.25 | BE81: 0
B82: 0 | T82: Crewmember | AS82: =IF(AG82*1.5=0,"",IF(AG82*1.5>'Contract Info'!$D$38,'Contract Info'!$D$38,AG82*1.5)) ->  | AU82: =IF(AS82="","",IF(AQ82="","",AQ82*AS82*24)) ->  | AY82: 0.25 | BE82: 0
V83: Total Personnel Regular Time (Base Pay) Cost | AH83: =SUM(AI73:AJ82) -> 1121.04 | BB83: =SUM(BB73:BB82) -> 0 | BC83: =SUM(BC73:BC82) -> 0 | BD83: =SUM(BD73:BD82) -> 0
B84: Notes: | C84: TOD for helitack 0800-1630 M-F until May 22nd then switches to 7 day coverage. | V84: Total Personnel Premium Pay (OT + Haz + Trv) Cost | AK84: =AT84+AZ84+BE84 -> 450.3975 | AR84: = | AT84: =SUM(AU73:AV82) -> 391.65 | AX84: + | AZ84: =SUM(BA73:BA82) -> 58.7475 | BB84: + | BE84: =SUM(BE73:BE82) -> 0
W86: Helicopter Daily Cost Summary
Q87: Helicopter: | S87: ='Contract Info'!D3 -> N836TJ | AT87: Notes:
Q88: Make/Model: | S88: ='Contract Info'!D4 -> Airbus H-125 | AA88: Rate | AD88: Total | AG88: Surchrge | AI88: Surcharge | AL88: Total | AT88: This is simply a test….
Q89: Contractor: | S89: =N6 -> Butterfly Airways, Inc. | W89: Persons | Y89: Quantity | AG89: % | AI89: Total | AL89: w/ Surcharge
Q90: Flight Time | Y90: =AH16 -> 2.7 | AA90: =AM16 -> 1325 | AD90: =AS16 -> 3577.5 | AG90: 0 | AI90: =PRODUCT(AD90,AG90) -> 0 | AL90: =SUM(AD90,AI90) -> 3577.5
Q91: Availability (hours or day) | Y91: =AH18 -> 1 | AA91: =AM18 -> 3695 | AD91: =AS18 -> 3695 | AG91: -1 | AI91: -3695 | AL91: 0
Q92: Pilot Extended Standby | W92: =AE20 -> 1 | Y92: =AH20 -> 0 | AA92: =AM20 -> 52 | AD92: =AS20 -> 0 | AG92: 0 | AI92: 0 | AL92: 0
Q93: Driver Extended Standby | W93: =AE22 -> 0 | Y93: =AH22 -> 0 | AA93: =AM22 -> 39 | AD93: =AS22 -> 0 | AG93: 0 | AI93: 0 | AL93: 0
Q94: Mechanic Extended Standby | W94: =AE24 -> 1 | Y94: =AH24 -> 2.59 | AA94: =AM24 -> 59.59 | AD94: =AS24 -> 154.3381 | AG94: 0 | AI94: 0 | AL94: 154.3381
Q95: Per Diem or RON | W95: =AE26 -> 2 | AA95: =AM26 -> 169 | AD95: =AS26 -> 338 | AG95: 0 | AI95: 0 | AL95: 338
Q96: Service Truck Miles | Y96: =AH28 -> 20 | AA96: =AM28 -> 2.45 | AD96: =AS28 -> 49 | AG96: 0 | AI96: 0 | AL96: 49
Q97: Additnl Crew Extended Standby | W97: =AE30 -> 0 | Y97: =AH30 -> 0 | AA97: =AM30 -> 10 | AD97: =AS30 -> 0 | AG97: 0 | AI97: 0 | AL97: 0
Q98: Add'l Cost: | S98: =Z32 -> 0 | W98: =AE32 -> 0 | Y98: =AH32 -> 0 | AA98: =AM32 -> 0 | AD98: =AS32 -> 0 | AG98: 0 | AI98: 0 | AL98: 0
Q99: Add'l Cost: | S99: =Z34 -> 0 | W99: =AE34 -> 0 | Y99: =AH34 -> 0 | AA99: =AM34 -> 0 | AD99: =AS34 -> 0 | AG99: 0 | AI99: 0 | AL99: 0
Q100: Add'l Cost: | S100: =Z36 -> 0 | W100: =AE36 -> 0 | Y100: =AH36 -> 0 | AA100: =AM36 -> 0 | AD100: =AS36 -> 0 | AG100: 0 | AI100: 0 | AL100: 0
Q101: Add'l Cost: | AD101: =PRODUCT(W101,Y101,AA101) -> 0 | AG101: 0 | AI101: 0 | AL101: 0
V102: Total Helicopter Costs | AK102: =SUM(AL90:AN101) -> 4118.8381
AT103: =BH18 -> Wilderness Flight Time | BE103: =BN18 -> 5
AT104: =BH20 -> Wilderness Landings | BE104: =BN20 -> 4
S105: Your Cost | V105: Your Cost | W105: N | X105: Include personnel base hours in total cost (Y or N) | AT105: =BH22 -> Wilderness Ext. Load Deliveries or Pickups (non-s-h) | BE105: =BN22 -> 3
AT106: =BH24 -> Wilderness Short-hauls | BE106: =BN24 -> 2
Q107: =IF(W105="y","Total Personnel Base and Premium Pay + Helicopter Costs",IF(W105="Y","Total Personnel Base and Premium Pay + Helicopter Costs",IF(W105="yes","Total Personnel Base and Premium Pay + Helicopter Costs",IF(W105="YES","Total Personnel Base and Premium Pay + Helicopter Costs",IF(W105="Yes","Total Personnel Base and Premium Pay + Helicopter Costs","Total Personnel Premium Pay + Helicopter Costs"))))) -> Total Personnel Premium Pay + Helicopter Costs | AK107: =IF(W105="y",SUM(AK84,AH83,AK102),IF(W105="Y",SUM(AK84,AH83,AK102),IF(W105="yes",SUM(AK84,AH83,AK102),IF(W105="YES",SUM(AK84,AH83,AK102),IF(W105="Yes",SUM(AK84,AH83,AK102),SUM(AK84,AK102)))))) -> 4569.2356 | AT107: =BH26 -> Initial Attacks | BE107: =BN26 -> 1
BC108: =A1 -> SuperManager v3.23 SEKI
L137: Lbs | M137: H2O | N137: Retard | O137: Foam | Q137: Use | R137: Time | S137: Revnue
K138: PAX | L138: Cargo | M138: Buckts | N138: Buckts | O138: Buckts | P138: Acct | Q138: Code | R138: Cost | S138: flight?
K139: =IF($S29="",K29,"") -> 2 | L139: 320 | M139: 0 | N139: 0 | O139: 0 | R139: =IF($S29="",R29,"") -> 1375
K140: 0 | L140: 622 | M140: 0 | N140: 1 | O140: 0 | R140: 1375
K141: 0 | L141: =IF($S31="",L31,"") -> 555 | M141: 0 | N141: 0 | O141: 1 | R141: 412.5
K142: 0 | L142: 0 | M142: 1 | N142: 0 | O142: 0 | R142: 550
K143: 0 | L143: 0 | M143: 0 | N143: 0 | O143: 0
K144: 0 | L144: 0 | M144: 0 | N144: 0 | O144: 0
K145: 0 | L145: 0 | M145: 0 | N145: 0 | O145: 0
K146: 0 | L146: 0 | M146: 0 | N146: 0 | O146: 0
K147: 0 | L147: 0 | M147: 0 | N147: 0 | O147: 0
K148: 0 | L148: 0 | M148: 0 | N148: 0 | O148: 0
K149: 0 | L149: 0 | M149: 0 | N149: 0 | O149: 0
K150: 0 | L150: 0 | M150: 0 | N150: 0 | O150: 0
K151: 0 | L151: 0 | M151: 0 | N151: 0 | O151: 0
K152: 0 | L152: 0 | M152: 0 | N152: 0 | O152: 0
K153: 0 | L153: 0 | M153: 0 | N153: 0 | O153: 0
K154: 0 | L154: 0 | M154: 0 | N154: 0 | O154: 0
K155: =IF($S45="",K45,"") -> 0 | L155: 0 | M155: 0 | N155: 0 | O155: 0
K156: 0 | L156: 0 | M156: 0 | N156: 0 | O156: 0
K157: 0 | L157: 0 | M157: 0 | N157: 0 | O157: 0
K158: 0 | L158: 0 | M158: 0 | N158: 0 | O158: 0
K159: 0 | L159: 0 | M159: 0 | N159: 0 | O159: 0
K160: 0 | L160: 0 | M160: 0 | N160: 0 | O160: 0
K161: 0 | L161: 0 | M161: 0 | N161: 0 | O161: 0
K162: 0 | L162: 0 | M162: 0 | N162: 0 | O162: 0
K163: 0 | L163: 0 | M163: 0 | N163: 0 | O163: 0
K164: 0 | L164: 0 | M164: 0 | N164: 0 | O164: 0
K165: 0 | L165: 0 | M165: 0 | N165: 0 | O165: 0
K166: =SUM(K139:K165) -> 2 | L166: 1497 | M166: 1 | N166: 1 | O166: 1 | R166: 3712.5
K167: PAX | L167: Lbs | M167: H2O | N167: Retard | O167: Foam | P167: Acct | Q167: Use | R167: Flight | S167: Non-
L168: Cargo | M168: Buckts | N168: Buckts | O168: Buckts | Q168: Code | R168: Time | S168: revenue
R169: Cost | S169: flight?
K177: =K69 -> 0

Sheet 2-May-23
A1: ='Contract Info'!A1:G1 -> SuperManager v3.23 SEKI | AZ1: =A1 -> SuperManager v3.23 SEKI | BT1: =A1 -> SuperManager v3.23 SEKI
E2: Aircraft Daily Detail | U2: HELICOPTER DAILY USE and COST SUMMARY | BA2: OAS-137 | BD2: Aircraft Contract Daily Diary | BT2: INTERAGENCY HELICOPTER LOAD CALCULATION Electronic Version 1.0 (3/04) | CA2: MODEL | CC2: ='Contract Info'!D4 -> Airbus H-125 | CI2: INTERAGENCY HELICOPTER LOAD CALCULATION Electronic Version 1.0 (3/04) | CP2: MODEL | CR2: ='Contract Info'!D4 -> Airbus H-125
B5: Incident: | D5: SEKI Test #2 | L5: Date: | N5: 2023-05-02 | V5: Activity Mission: | AC5: Fire | AG5: SAR | AK5: Project | AO5: Training | AS5: Date: | AU5: =N5 -> 2023-05-02 | BA5: Contract # | BC5: ='Contract Info'!D6 -> 140D8021D0666 | BF5: Item: | BG5: ='Contract Info'!F6 -> 0 | BH5: Page | BI5: 1 | BJ5: OF | BK5: 1 | BN5: DATE: | BP5: =N5 -> 2023-05-02 | CA5: N# | CC5: ='Contract Info'!D3 -> N836TJ | CP5: N# | CR5: ='Contract Info'!D3 -> N836TJ
B6: Contract #: | D6: ='Contract Info'!D6 -> 140D8021D0666 | H6: =('Contract Info'!F6)*(-1) -> 0 | L6: Contractor: | N6: ='Contract Info'!$D$8 -> Butterfly Airways, Inc. | BA6: 1. Contractor: | BD6: ='Contract Info'!$D$8 -> Butterfly Airways, Inc. | BH6: 7. Designated Base: | BM6: ='Contract Info'!$D$7 -> Asher Hill Helibase
Q7: Unavailablty | V7: Helibase: | Z7: Ash Mtn | AE7: Incident: | AI7: =D5 -> SEKI Test #2 | AP7: Agency: | AT7: NPS | BA7: 2. A/C Make/Model: | BD7: ='Contract Info'!$D$4 -> Airbus H-125 | BH7: 8. Current Aircraft Location: | BN7: AMH
B8: Power Check | F8: Resource | I8: Qty | J8: Name | O8: Begin | P8: End | Q8: Begin | R8: End | BA8: FAA #: | BD8: ='Contract Info'!$D$3 -> N836TJ | BT8: PILOT(S) | BV8: =J10 -> Frank Segovia | CA8: DATE | CC8: =N5 -> 2023-05-02 | CI8: PILOT(S) | CK8: =BV8 -> Frank Segovia | CP8: DATE | CR8: =N5 -> 2023-05-02
B9: Engine# | C9: 1 | D9: 2 | F9: Aircraft #: | J9: ='Contract Info'!$D$3 -> N836TJ | O9: 1200 | P9: 1800 | V9: N #: | X9: ='Contract Info'!$D$3 -> N836TJ | AB9: Make/Model: | AG9: ='Contract Info'!$D$4 -> Airbus H-125 | AM9: Manager's Name: | AS9: Tyler Maine | BA9: 3. Pilot(s) On Duty: | BH9: 9. Activity: | BJ9: ferry | BL9: Training | BO9: Project
B10: Hobbs | C10: 111 | F10: Pilot | I10: 1 | J10: Frank Segovia | O10: 2100 | P10: 2100 | BB10: =J10 -> Frank Segovia | BH10: Large Fire Support: | BL10: IA | BO10: SAR
B11: Altitude | C11: 7000 | F11: Driver | V11: Type: | X11: ='Contract Info'!D5 -> 3 | AC11: CWN | AF11: X | AG11: Exclusive Use | AN11: Other (specify): | BA11: 4. Mechanic(s) On Duty: | BH11: 10. Other Aircraft On Base | BT11: MISSION | BV11: IA/SAR Preparedness | CA11: TIME | CC11: 0815 | CI11: MISSION | CP11: TIME
B12: O.A.T. | C12: 30 | F12: Mechanic | I12: 1 | J12: Fernando Mechanda | O12: 1200 | P12: 2359 | BB12: =J12 -> Fernando Mechanda | BI12: none
B13: NG | C13: 0.94 | F13: Additionl | V13: Flight Invoice Reference Number(s): | BA13: 5. Driver(s) On Duty: | BH13: 11. Weather:
B14: N2 | C14: 391 | F14: Total Number of Vendor crewmembers | O14: =I10+I11+I12+I13 -> 2 | AE14: Persons | AH14: Quantity | AM14: Rate | AS14: Cost | BB14: =J11 -> 0 | BI14: Sunny and getting hotter!! | BT14: 1 | BU14: DEPARTURE | BW14: AMH | CA14: PA | CB14: 1650 | CD14: OAT | CE14: 35 | CI14: 1 | CJ14: DEPARTURE | CP14: PA | CS14: OAT
B15: E.G.T. | C15: 840 | F15: Service Truck Mileage | O15: 20222 | P15: 20222 | BA15: 6. Total # Of Contractor Personnel: | BG15: =O14 -> 2 | BH15: 12. Local Fuel Price | BN15: N/A
B16: T4 | V16: Revenue Flight Hours: | AH16: =J56 -> 0 | AM16: 1325 | AS16: =AH16*AM16 -> 0 | BA16: 13. Pay Items | BD16: Begin | BE16: End | BF16: Total | BG16: EXT. | BH16: 14. SPECIAL EQUIPMENT & STATS | BN16: HR/DAYS | BQ16: COST
B17: Torque | C17: 0.92 | F17: Allowable Loads: | N17: Delivered | P17: buckets or tanks | Q17: gal. per bkt/tank | R17: total | BT17: 2 | BU17: DESTINATION | BW17: IA/SAR | CA17: PA | CB17: 7000 | CD17: OAT | CE17: 25 | CI17: 2 | CJ17: DESTINATION | CP17: PA | CS17: OAT
B18: Perform | C18: 16.4 | D18: 6.3 | F18: PA (feet) | H18: =CB17 -> 7000 | J18: =CQ17 -> 0 | V18: *Availabiliy (Hours or Day) | AH18: 1 | AM18: 3695 | AS18: =IF(AH18>1,(AH18*AM18/14),(AH18*AM18)) -> 3695 | BA18: Availability | BD18: =O9 -> 1200 | BE18: =P9 -> 1800 | BF18: =(BE18-BD18)/100 -> 6 | BH18: Wilderness Flight Time | BN18: 5
B19: Chart | C19: 0 | D19: =C19 -> 0 | F19: ºC | H19: =CE17 -> 25 | J19: =CT17 -> 0 | N19: Water | P19: =M56 -> 0 | Q19: 180 | R19: =Q19*P19 -> 0
B20: Margin | C20: =C18-C19 -> 16.4 | D20: =D18-D19 -> 6.3 | F20: # fuel | H20: =CA26 -> 499.8 | J20: =CP26 ->  | N20: Retardant | P20: =N56 -> 0 | R20: =Q20*P20 -> 0 | V20: Pilot Extended Standby | AE20: =I10 -> 1 | AH20: =IF(BF24<'Contract Info'!$D$23,"0",BF24-('Contract Info'!$D$23)) -> 0 | AM20: 52 | AS20: =AH20*AE20*AM20 -> 0 | BA20: Flight Time | BD20: =F29 -> 113.7 | BE20: =H56 -> 113.7 | BF20: =J56 -> 0 | BH20: Wilderness Landings | BN20: 4 | BT20: 3 | BU20: HELICOPTER EQUIPPED WEIGHT | CA20: 3268 | CI20: 3 | CJ20: HELICOPTER EQUIPPED WEIGHT
B21: Next Due | C21: =C10+10 -> 121 | F21: HIGE | H21: =BY55 -> 1277.2 | J21: =CN55 ->  | N21: Foam | P21: =O56 -> 0 | R21: =Q21*P21 -> 0
F22: HOGE | H22: =CA55 -> 1277.2 | J22: =CP55 ->  | V22: Driver Extended Standby | AE22: =I11 -> 0 | AH22: =IF(BF26<'Contract Info'!$D$23,"0",BF26-('Contract Info'!$D$23)) -> 0 | AM22: 39 | AS22: =AH22*AE22*AM22 -> 0 | BA22: Service Miles | BD22: =O15 -> 20222 | BE22: =P15 -> 20222 | BF22: =BE22-BD22 -> 0 | BH22: Wilderness Ext. Load Deliveries or Pickups (non-s-h) | BN22: 3
F23: HOGE-J | H23: =CD55 -> 1452.2 | J23: =CS55 ->  | BT23: 4 | BU23: FLIGHT CREW WEIGHT | CA23: 180 | CI23: 4 | CJ23: FLIGHT CREW WEIGHT
V24: Mechanic Extend Standby | AE24: =I12 -> 1 | AH24: =IF(BF28<'Contract Info'!$D$23,"0",BF28-('Contract Info'!$D$23)) -> 2.59 | AM24: 59.59 | AS24: =AH24*AE24*AM24 -> 154.3381 | BA24: Pilot Duty | BD24: =O10 -> 2100 | BE24: =P10 -> 2100 | BF24: =(BE24-BD24)/100 -> 0 | BG24: =IF(BF24<'Contract Info'!$D$23,0,BF24-('Contract Info'!$D$23)) -> 0 | BH24: Wilderness Short-hauls | BN24: 2
B25: Flight Log
D26: Depart | E26: Arrive | O26: Short- | R26: Flight | S26: Non- | V26: Per Diem or RON | AE26: =O14 -> 2 | AM26: 169 | AS26: =AE26*AM26 -> 338 | BA26: Driver Duty | BD26: =O11 -> 0 | BE26: =P11 -> 0 | BF26: =(BE26-BD26)/100 -> 0 | BG26: =IF(BF26<'Contract Info'!$D$23,0,BF26-('Contract Info'!$D$23)) -> 0 | BH26: Initial Attacks | BN26: 1 | BT26: 5 | BU26: FUEL WEIGHT | BW26: 71.4 | BX26: gals X | BY26: 7 | BZ26: lbs/gal | CA26: =IF(BY26="","",SUM(BW26*BY26)) -> 499.8 | CI26: 5 | CJ26: FUEL WEIGHT | CM26: gals X | CO26: lbs/gal | CP26: =IF(CN26="","",SUM(CL26*CN26)) -> 
B27: Depart | C27: Destin | D27: Clock | E27: Clock | F27: Depart | H27: Arrive | J27: Hobbs | L27: Lbs | M27: H2O | N27: Sling | O27: Haul | Q27: Use | R27: Time | S27: Revnue
B28: From | C28: To | D28: Time | E28: Time | F28: Hobbs | H28: Hobbs | J28: Total | K28: PAX | L28: Cargo | M28: Buckts | N28: Loads | O28: Evols | P28: Acct | Q28: Code | R28: Cost | S28: flight? | V28: Service Truck Miles | AH28: =P15-O15 -> 0 | AM28: 2.45 | AS28: =AH28*AM28 -> 0 | BA28: Mechanic Duty | BD28: =O12 -> 1200 | BE28: =P12 -> 2359 | BF28: =(BE28-BD28)/100 -> 11.59 | BG28: =IF(BF28<'Contract Info'!$D$23,"0",BF28-('Contract Info'!$D$23)) -> 2.59
F29: 113.7 | J29: =IF(H29="","",IF(S29="",H29-F29,"")) ->  | R29: =IF(J29="","",J29*('Contract Info'!$D$18)) ->  | BT29: 6 | BU29: OPERATING WEIGHT (3 + 4 + 5) | CA29: =IF(CA26="","",SUM(CA20:CG28)) -> 3947.8 | CI29: 6 | CJ29: OPERATING WEIGHT (3 + 4 + 5) | CP29: =IF(CP26="","",SUM(CP20:CV28)) -> 
F30: =IF(H29="","",H29) ->  | J30: =IF(H30="","",IF(S30="",H30-F30,"")) ->  | R30: =IF(J30="","",J30*('Contract Info'!$D$18)) ->  | V30: Addnl Crew Extend Stnby: | AE30: =I13 -> 0 | AM30: 10 | AS30: =AH30*AE30*AM30 -> 0 | BA30: 15. Aircraft Status: (Maintenance performed, power trend analysis completed, reasons for any unavailability, etc.)
F31: =IF(H30="","",H30) ->  | J31: =IF(H31="","",IF(S31="",H31-F31,"")) ->  | R31: =IF(J31="","",J31*('Contract Info'!$D$18)) ->  | BA31: Pre-flight maintenance performed.
F32: =IF(H31="","",H31) ->  | R32: =IF(J32="","",J32*('Contract Info'!$D$18)) ->  | V32: Add'l Cost: | AS32: =AH32*AE32*AM32 -> 0 | BY32: Non-Jettisonable | CD32: Jettisonable | CN32: Non-Jettisonable | CS32: Jettisonable
R33: =IF(J33="","",J33*('Contract Info'!$D$18)) ->  | BY33: HIGE | CA33: HOGE | CD33: HOGE- J | CN33: HIGE | CP33: HOGE | CS33: HOGE- J
R34: =IF(J34="","",J34*('Contract Info'!$D$18)) ->  | V34: Add'l Cost: | AS34: =AH34*AE34*AM34 -> 0 | BT34: 7a | BU34: PERFORMANCE REFERENCE (List chart/supplement from Flight Manual) | BY34: BLR Fig 1 or 2 | CA34: BLR Fig 1 or 2 | CD34: BLR Fig 1 or 2 | CI34: 7a | CJ34: PERFORMANCE REFERENCE (List chart/supplement from Flight Manual)
R35: =IF(J35="","",J35*('Contract Info'!$D$18)) -> 
R36: =IF(J36="","",J36*('Contract Info'!$D$18)) ->  | V36: Add'l Cost: | AS36: =AH36*AE36*AM36 -> 0 | BA36: 16. Narrative Report: (Include problems encountered, official visits or inspections, SAFECOMs submitted, etc.)
R37: =IF(J37="","",J37*('Contract Info'!$D$18)) ->  | BA37: Update helicopter and contract info on May 18th to be ready for the EU start date of May 19th. | BT37: 7b | BU37: COMPUTED GROSS WEIGHT (From Flight Manual Performance Section) | BY37: 5400 | CA37: 5400 | CD37: 5400 | CI37: 7b | CJ37: COMPUTED GROSS WEIGHT (From Flight Manual Performance Section)
R38: =IF(J38="","",J38*('Contract Info'!$D$18)) ->  | V38: * Do not calculate for exclusive use contracts where | AI38: Daily Grand Total Cost: | AS38: =AS16+AS18+AS20+AS22+AS24+AS26+AS28+AS30+AS32+AS34+AS36 -> 4187.3381
R39: =IF(J39="","",J39*('Contract Info'!$D$18)) ->  | W39: availability is paid from presuppression funds
R40: =IF(J40="","",J40*('Contract Info'!$D$18)) ->  | BT40: 8 | BU40: WEIGHT REDUCTION (Required for all Non-Jettisonable loads) | BY40: 175 | CA40: 175 | CD40: 0 | CI40: 8 | CJ40: WEIGHT REDUCTION (Required for all Non-Jettisonable loads)
R41: =IF(J41="","",J41*('Contract Info'!$D$18)) ->  | V41: Total PAX Transported | AA41: Total Pounds Cargo | AG41: Total Gallons Water | AM41: Sling Loads | AS41: Short-haul Evolutions
R42: =IF(J42="","",J42*('Contract Info'!$D$18)) -> 
R43: =IF(J43="","",J43*('Contract Info'!$D$18)) ->  | V43: =K166 -> 0 | AA43: =L166 -> 0 | AG43: =Q19*M166 -> 0 | AM43: =N56 -> 0 | AS43: =O56 -> 0 | BT43: 9 | BU43: ADJUSTED WEIGHT (7b minus 8) | BY43: =IF(BY37="","",SUM(BY37-BY40)) -> 5225 | CA43: =IF(CA37="","",SUM(CA37-CA40)) -> 5225 | CD43: =IF(CD37="","",SUM(CD37-CD40)) -> 5400 | CI43: 9 | CJ43: ADJUSTED WEIGHT (7b minus 8) | CN43: =IF(CN37="","",SUM(CN37-CN40)) ->  | CP43: =IF(CP37="","",SUM(CP37-CP40)) ->  | CS43: =IF(CS37="","",SUM(CS37-CS40)) -> 
R44: =IF(J44="","",J44*('Contract Info'!$D$18)) -> 
R45: =IF(J45="","",J45*('Contract Info'!$D$18)) ->  | AG45: Aerial Ignition
R46: =IF(J46="","",J46*('Contract Info'!$D$18)) ->  | V46: Acres Treated | AE46: PSD Spheres Used | AO46: UAS Spheres Used | BT46: 10 | BU46: GROSS WEIGHT LIMITATION (From Flight Manual Limitations Section) | BY46: 5225 | CA46: 5225 | CD46: 6173 | CI46: 10 | CJ46: GROSS WEIGHT LIMITATION (From Flight Manual Limitations Section)
R47: =IF(J47="","",J47*('Contract Info'!$D$18)) ->  | V47: 0 | AE47: 0 | AO47: 0
R48: =IF(J48="","",J48*('Contract Info'!$D$18)) -> 
R49: =IF(J49="","",J49*('Contract Info'!$D$18)) ->  | BT49: 11 | BU49: SELECTED WEIGHT (Lowest of 9 of 10) | BY49: =IF(BY46="","",MIN(BY46,BY43)) -> 5225 | CA49: =IF(CA46="","",MIN(CA46,CA43)) -> 5225 | CD49: =IF(CD46="","",MIN(CD46,CD43)) -> 5400 | CI49: 11 | CJ49: SELECTED WEIGHT (Lowest of 9 of 10) | CN49: =IF(CN46="","",MIN(CN46,CN43)) ->  | CP49: =IF(CP46="","",MIN(CP46,CP43)) ->  | CS49: =IF(CS46="","",MIN(CS46,CS43)) -> 
R50: =IF(J50="","",J50*('Contract Info'!$D$18)) ->  | V50: Account Name | AE50: Account Code | AO50: Cost
R51: =IF(J51="","",J51*('Contract Info'!$D$18)) ->  | V51: Daily Availability | AE51: PF.FPAMD1022.00.1 | AO51: =SUM(AS18) -> 3695
R52: =IF(J52="","",J52*('Contract Info'!$D$18)) ->  | BA52: 17. Miscellaneous Costs: (Contractor purchased permits, fees, travel, etc; to be reimbursed by Govt.) | BT52: 12 | BU52: OPERATING WEIGHT (From Line 6) | BY52: =IF(CA29="","",SUM(CA29)) -> 3947.8 | CA52: =IF(CA29="","",SUM(CA29)) -> 3947.8 | CD52: =IF(CA29="","",SUM(CA29)) -> 3947.8 | CI52: 12 | CJ52: OPERATING WEIGHT (From Line 6) | CN52: =IF(CP29="","",SUM(CP29)) ->  | CP52: =IF(CP29="","",SUM(CP29)) ->  | CS52: =IF(CP29="","",SUM(CP29)) -> 
R53: =IF(J53="","",J53*('Contract Info'!$D$18)) -> 
R54: =IF(J54="","",J54*('Contract Info'!$D$18)) -> 
R55: =IF(J55="","",J55*('Contract Info'!$D$18)) ->  | BT55: 13 | BU55: ALLOWABLE PAYLOAD (11 minus 12) | BY55: =IF(BY46="","",SUM(BY49-BY52)) -> 1277.2 | CA55: =IF(CA46="","",SUM(CA49-CA52)) -> 1277.2 | CD55: =IF(CD46="","",SUM(CD49-CD52)) -> 1452.2 | CI55: 13 | CJ55: ALLOWABLE PAYLOAD (11 minus 12) | CN55: =IF(CN46="","",SUM(CN49-CN52)) ->  | CP55: =IF(CP46="","",SUM(CP49-CP52)) ->  | CS55: =IF(CS46="","",SUM(CS49-CS52)) -> 
B56: TOTALS | F56: =F29 -> 113.7 | H56: =IF(H29="",F29,LARGE(H29:H55,1)) -> 113.7 | J56: =SUM(J29:J55) -> 0 | K56: 0 | L56: 0 | M56: =SUM(M29:M55) -> 0 | N56: 0 | O56: 0 | R56: =SUM(R29:R55) -> 0 | BA56: 18. Govt. Representative Name/Title (Print): | BG56: Govt. Representative Signature: | BP56: Date:
B57: Depart | C57: Destin | D57: Depart | E57: Arrive | F57: Depart | H57: Arrive | J57: Hobbs | K57: PAX | L57: Lbs | M57: H2O | N57: Sling | O57: Short- | P57: Acct | Q57: Use | R57: Flight | S57: Non- | AE57: Grand Total for Daily Helicopter Cost = | AO57: =SUM(AO51:AX56) -> 3695 | BA57: =AS9 -> Tyler Maine | BP57: =N5 -> 2023-05-02
B58: From | C58: To | D58: Clock | E58: Clock | F58: Hobbs | H58: Hobbs | J58: Total | L58: Cargo | M58: Buckts | N58: Loads | O58: Haul | Q58: Code | R58: Time | S58: Revnue | BU58: Exceeds = Allowable Exceeded | BY58: =IF(CD68="","",IF(CD68>BY55,"Exceeds","OK")) ->  | CA58: =IF(CD68="","",IF(CD68>CA55,"Exceeds","OK")) ->  | CD58: =IF(CD68="","",IF(CD68>CD55,"Exceeds","OK")) ->  | CJ58: Exceeds = Allowable Exceeded | CN58: =IF(CS68="","",IF(CS68>CN55,"Exceeds","OK")) ->  | CP58: =IF(CS68="","",IF(CS68>CP55,"Exceeds","OK")) ->  | CS58: =IF(CS68="","",IF(CS68>CS55,"Exceeds","OK")) -> 
D59: Time | E59: Time | O59: Evols | R59: Cost | S59: flight? | V59: *For full availability enter 1, otherwise enter 14 minus # of hours unavailable | AK59: =A1 -> SuperManager v3.23 SEKI | AS59: HCM-15 (REQUIRED) | BD59: NFES #1088 | BG59: =A1 -> SuperManager v3.23 SEKI | BO59: HCM-1 (REQUIRED)
P60: =A1 -> SuperManager v3.23 SEKI | BT60: 14 | BU60: PASSENGERS/CARGO | CI60: 14 | CJ60: PASSENGERS/CARGO
S66: Aviation Personnel Daily Cost Summary
BT68: 15 | BU68: ACTUAL PAYLOAD (Total of all weights listed in Item 14) Line 15 must not exceed Line 13 for the intended mission (HIGE, HOGE or HOGE-J) | CD68: =IF(CD60+CD62+CD64+CD66=0,"",SUM(CD60:CG67)) ->  | CI68: 15 | CJ68: ACTUAL PAYLOAD (Total of all weights listed in Item 14) Line 15 must not exceed Line 13 for the intended mission (HIGE, HOGE or HOGE-J) | CS68: =IF(CS60+CS62+CS64+CS66=0,"",SUM(CS60:CV67)) -> 
Q69: Crew Name: | S69: SEKI Helitack | AC69: Date: | AE69: =N5 -> 2023-05-02 | AJ69: Incident/Project: | AP69: =AI7 -> SEKI Test #2 | AY69: Account: | BB69: PF.FPAMD1022.00.1
W71: Pay | Y71: Regular TIme (RT) | AK71: Overtime (OT) | AW71: Hazard (Haz) | BB71: Travel (Trv) | BT71: PILOT SIGNATURE | CD71: HazMat Onboard | CI71: PILOT SIGNATURE | CS71: HazMat Onboard
B72: Name | D72: Lieu Days | F72: Quals | Q72: Name | S72: Position | W72: Grade | Y72: Begin | AA72: End | AC72: Break | AE72: Hours | AG72: Rate | AI72: Cost | AK72: Begin | AM72: End | AO72: Break | AQ72: Hours | AS72: Rate | AU72: Cost | AW72: Hours | AY72: Prmum | BA72: Pay | BB72: Lodge | BC72: M&IE | BD72: Other | BE72: Total
B73: =Q73 -> Tyler Wayne | D73: Thurs/Fri | F73: HEBM, HMGB, ICT4, SHLS, FAL2, PLDO, FIRB | Q73: Tyler Wayne | S73: Assistant Manager | W73: GS-8/4 | Y73: 08:00:00 | AA73: 16:30:00 | AC73: 00:30:00 | AE73: =IF(AA73-Y73=0,"",AA73-Y73-AC73) -> 08:00:00 | AG73: 26.11 | AI73: =IF(AG73="","",IF(AE73="","",AE73*AG73*24)) -> 208.88 | AK73: 07:00:00 | AM73: 17:00:00 | AQ73: =IF(AM73-AK73=0,"",AM73-AK73-AO73) -> 10:00:00 | AS73: =IF(AG73*1.5=0,"",IF(AG73*1.5>'Contract Info'!$D$38,'Contract Info'!$D$38,AG73*1.5)) -> 39.165 | AU73: =IF(AS73="","",IF(AQ73="","",AQ73*AS73*24)) -> 391.65 | AW73: 09:00:00 | AY73: 0.25 | BA73: =IF(AG73*AW73=0,"",PRODUCT(AG73,$AY73,AW73,24)) -> 58.7475 | BE73: =SUM(BB73:BD73) -> 0 | BT73: MANAGER SIGNATURE | CD73: YES | CE73: X | CF73: NO | CI73: MANAGER SIGNATURE | CS73: YES | CU73: NO
B74: PJ Nutall | D74: Sun/Mon | F74: HEBM(t), HMGB, ICT4, SHLS, FAL3, PLDO, FIRB | Q74: PJ Nutall | S74: Lead Crew | T74: Asst. Manager | W74: GS-7/8 | Y74: 08:00:00 | AA74: 16:30:00 | AC74: 00:30:00 | AE74: =IF(AA74-Y74=0,"",AA74-Y74-AC74) -> 08:00:00 | AG74: 26.44 | AI74: =IF(AG74="","",IF(AE74="","",AE74*AG74*24)) -> 211.52 | AQ74: =IF(AM74-AK74=0,"",AM74-AK74-AO74) ->  | AS74: =IF(AG74*1.5=0,"",IF(AG74*1.5>'Contract Info'!$D$38,'Contract Info'!$D$38,AG74*1.5)) -> 39.66 | AU74: =IF(AS74="","",IF(AQ74="","",AQ74*AS74*24)) ->  | AY74: 0.25 | BA74: =IF(AG74*AW74=0,"",PRODUCT(AG74,$AY74,AW74,24)) ->  | BE74: =SUM(BB74:BD74) -> 0
B75: Melissa McBurger | D75: Wed/Thurs | F75: HEBM, HMGB, ICT4(t), SHLR, AEMF, PLDO, FIRB | Q75: Melissa McBurger | S75: Lead Crew | T75: Manager Trainee | W75: GS-6/6 | Y75: 08:00:00 | AA75: 16:30:00 | AC75: 00:30:00 | AE75: 08:00:00 | AG75: 22.51 | AI75: 180.08 | AS75: =IF(AG75*1.5=0,"",IF(AG75*1.5>'Contract Info'!$D$38,'Contract Info'!$D$38,AG75*1.5)) -> 33.765 | AY75: 0.25 | BE75: 0 | CA75: =A1 -> SuperManager v3.23 SEKI | CG75: HCM-8 | CP75: =A1 -> SuperManager v3.23 SEKI | CV75: HCM-8
B76: Damian Lorna | D76: Sat/Sun | F76: HMGB, ICT4(t), SHLS, FAL2, PLDO(t) | Q76: Damian Lorna | S76: Sr. Crewmember | T76: Manager Trainee | W76: GS-5 | Y76: 08:00:00 | AA76: 16:30:00 | AC76: 00:30:00 | AE76: 08:00:00 | AG76: 17.31 | AI76: 138.48 | AS76: =IF(AG76*1.5=0,"",IF(AG76*1.5>'Contract Info'!$D$38,'Contract Info'!$D$38,AG76*1.5)) -> 25.965 | AY76: 0.25 | BE76: 0
B77: Erik Anders | D77: Fri/Sat | F77: HECM, FFT1(t), SHLR, FAL3, EMTF, ABRO(t) | Q77: Erik Anders | S77: Crewmember | T77: Manager Trainee | W77: GS-4 | Y77: 08:00:00 | AA77: 16:30:00 | AC77: 00:30:00 | AE77: 08:00:00 | AG77: 15.92 | AI77: 127.36 | AS77: =IF(AG77*1.5=0,"",IF(AG77*1.5>'Contract Info'!$D$38,'Contract Info'!$D$38,AG77*1.5)) -> 23.88 | AY77: 0.25 | BE77: 0
B78: Chandra Homer | D78: Mon/Tues | F78: HECM(t), FFT1(t), EMTF | Q78: Chandra Homer | S78: Crewmember | T78: Manager Trainee | W78: GS-4 | Y78: 08:00:00 | AA78: 16:30:00 | AC78: 00:30:00 | AE78: 08:00:00 | AG78: 15.92 | AI78: 127.36 | AS78: =IF(AG78*1.5=0,"",IF(AG78*1.5>'Contract Info'!$D$38,'Contract Info'!$D$38,AG78*1.5)) -> 23.88 | AY78: 0.25 | BE78: 0
B79: Larry Goodbush | D79: Tues/Wed | F79: HECM(t), FFT1(t) | Q79: Larry Goodbush | S79: Crewmember | T79: Manager Trainee | W79: GS-4 | Y79: 08:00:00 | AA79: 16:30:00 | AC79: 00:30:00 | AE79: 08:00:00 | AG79: 15.92 | AI79: 127.36 | AS79: =IF(AG79*1.5=0,"",IF(AG79*1.5>'Contract Info'!$D$38,'Contract Info'!$D$38,AG79*1.5)) -> 23.88 | AY79: 0.25 | BE79: 0
B80: 0 | T80: Crewmember | AS80: =IF(AG80*1.5=0,"",IF(AG80*1.5>'Contract Info'!$D$38,'Contract Info'!$D$38,AG80*1.5)) ->  | AY80: 0.25 | BE80: 0
B81: 0 | T81: Crewmember | AS81: =IF(AG81*1.5=0,"",IF(AG81*1.5>'Contract Info'!$D$38,'Contract Info'!$D$38,AG81*1.5)) ->  | AY81: 0.25 | BE81: 0
B82: 0 | T82: Crewmember | AS82: =IF(AG82*1.5=0,"",IF(AG82*1.5>'Contract Info'!$D$38,'Contract Info'!$D$38,AG82*1.5)) ->  | AU82: =IF(AS82="","",IF(AQ82="","",AQ82*AS82*24)) ->  | AY82: 0.25 | BE82: 0
V83: Total Personnel Regular Time (Base Pay) Cost | AH83: =SUM(AI73:AJ82) -> 1121.04 | BB83: =SUM(BB73:BB82) -> 0 | BC83: =SUM(BC73:BC82) -> 0 | BD83: =SUM(BD73:BD82) -> 0
B84: Notes: | C84: TOD for helitack 0800-1630 M-F until May 22nd then switches to 7 day coverage. | V84: Total Personnel Premium Pay (OT + Haz + Trv) Cost | AK84: =AT84+AZ84+BE84 -> 450.3975 | AR84: = | AT84: =SUM(AU73:AV82) -> 391.65 | AX84: + | AZ84: =SUM(BA73:BA82) -> 58.7475 | BB84: + | BE84: =SUM(BE73:BE82) -> 0
W86: Helicopter Daily Cost Summary
Q87: Helicopter: | S87: ='Contract Info'!D3 -> N836TJ | AT87: Notes:
Q88: Make/Model: | S88: ='Contract Info'!D4 -> Airbus H-125 | AA88: Rate | AD88: Total | AG88: Surchrge | AI88: Surcharge | AL88: Total | AT88: This is simply a test….
Q89: Contractor: | S89: =N6 -> Butterfly Airways, Inc. | W89: Persons | Y89: Quantity | AG89: % | AI89: Total | AL89: w/ Surcharge
Q90: Flight Time | Y90: =AH16 -> 0 | AA90: =AM16 -> 1325 | AD90: =AS16 -> 0 | AG90: 0 | AI90: =PRODUCT(AD90,AG90) -> 0 | AL90: =SUM(AD90,AI90) -> 0
Q91: Availability (hours or day) | Y91: =AH18 -> 1 | AA91: =AM18 -> 3695 | AD91: =AS18 -> 3695 | AG91: -1 | AI91: -3695 | AL91: 0
Q92: Pilot Extended Standby | W92: =AE20 -> 1 | Y92: =AH20 -> 0 | AA92: =AM20 -> 52 | AD92: =AS20 -> 0 | AG92: 0 | AI92: 0 | AL92: 0
Q93: Driver Extended Standby | W93: =AE22 -> 0 | Y93: =AH22 -> 0 | AA93: =AM22 -> 39 | AD93: =AS22 -> 0 | AG93: 0 | AI93: 0 | AL93: 0
Q94: Mechanic Extended Standby | W94: =AE24 -> 1 | Y94: =AH24 -> 2.59 | AA94: =AM24 -> 59.59 | AD94: =AS24 -> 154.3381 | AG94: 0 | AI94: 0 | AL94: 154.3381
Q95: Per Diem or RON | W95: =AE26 -> 2 | AA95: =AM26 -> 169 | AD95: =AS26 -> 338 | AG95: 0 | AI95: 0 | AL95: 338
Q96: Service Truck Miles | Y96: =AH28 -> 0 | AA96: =AM28 -> 2.45 | AD96: =AS28 -> 0 | AG96: 0 | AI96: 0 | AL96: 0
Q97: Additnl Crew Extended Standby | W97: =AE30 -> 0 | Y97: =AH30 -> 0 | AA97: =AM30 -> 10 | AD97: =AS30 -> 0 | AG97: 0 | AI97: 0 | AL97: 0
Q98: Add'l Cost: | S98: =Z32 -> 0 | W98: =AE32 -> 0 | Y98: =AH32 -> 0 | AA98: =AM32 -> 0 | AD98: =AS32 -> 0 | AG98: 0 | AI98: 0 | AL98: 0
Q99: Add'l Cost: | S99: =Z34 -> 0 | W99: =AE34 -> 0 | Y99: =AH34 -> 0 | AA99: =AM34 -> 0 | AD99: =AS34 -> 0 | AG99: 0 | AI99: 0 | AL99: 0
Q100: Add'l Cost: | S100: =Z36 -> 0 | W100: =AE36 -> 0 | Y100: =AH36 -> 0 | AA100: =AM36 -> 0 | AD100: =AS36 -> 0 | AG100: 0 | AI100: 0 | AL100: 0
Q101: Add'l Cost: | AD101: =PRODUCT(W101,Y101,AA101) -> 0 | AG101: 0 | AI101: 0 | AL101: 0
V102: Total Helicopter Costs | AK102: =SUM(AL90:AN101) -> 492.3381
AT103: =BH18 -> Wilderness Flight Time | BE103: =BN18 -> 5
AT104: =BH20 -> Wilderness Landings | BE104: =BN20 -> 4
S105: Your Cost | V105: Your Cost | W105: N | X105: Include personnel base hours in total cost (Y or N) | AT105: =BH22 -> Wilderness Ext. Load Deliveries or Pickups (non-s-h) | BE105: =BN22 -> 3
AT106: =BH24 -> Wilderness Short-hauls | BE106: =BN24 -> 2
Q107: =IF(W105="y","Total Personnel Base and Premium Pay + Helicopter Costs",IF(W105="Y","Total Personnel Base and Premium Pay + Helicopter Costs",IF(W105="yes","Total Personnel Base and Premium Pay + Helicopter Costs",IF(W105="YES","Total Personnel Base and Premium Pay + Helicopter Costs",IF(W105="Yes","Total Personnel Base and Premium Pay + Helicopter Costs","Total Personnel Premium Pay + Helicopter Costs"))))) -> Total Personnel Premium Pay + Helicopter Costs | AK107: =IF(W105="y",SUM(AK84,AH83,AK102),IF(W105="Y",SUM(AK84,AH83,AK102),IF(W105="yes",SUM(AK84,AH83,AK102),IF(W105="YES",SUM(AK84,AH83,AK102),IF(W105="Yes",SUM(AK84,AH83,AK102),SUM(AK84,AK102)))))) -> 942.7356 | AT107: =BH26 -> Initial Attacks | BE107: =BN26 -> 1
BC108: =A1 -> SuperManager v3.23 SEKI
L137: Lbs | M137: H2O | N137: Retard | O137: Foam | Q137: Use | R137: Time | S137: Revnue
K138: PAX | L138: Cargo | M138: Buckts | N138: Buckts | O138: Buckts | P138: Acct | Q138: Code | R138: Cost | S138: flight?
K139: =IF($S29="",K29,"") -> 0 | L139: 0 | M139: 0 | N139: 0 | O139: 0 | R139: =IF($S29="",R29,"") -> 
K140: 0 | L140: 0 | M140: 0 | N140: 0 | O140: 0
K141: 0 | L141: =IF($S31="",L31,"") -> 0 | M141: 0 | N141: 0 | O141: 0
K142: 0 | L142: 0 | M142: 0 | N142: 0 | O142: 0
K143: 0 | L143: 0 | M143: 0 | N143: 0 | O143: 0
K144: 0 | L144: 0 | M144: 0 | N144: 0 | O144: 0
K145: 0 | L145: 0 | M145: 0 | N145: 0 | O145: 0
K146: 0 | L146: 0 | M146: 0 | N146: 0 | O146: 0
K147: 0 | L147: 0 | M147: 0 | N147: 0 | O147: 0
K148: 0 | L148: 0 | M148: 0 | N148: 0 | O148: 0
K149: 0 | L149: 0 | M149: 0 | N149: 0 | O149: 0
K150: 0 | L150: 0 | M150: 0 | N150: 0 | O150: 0
K151: 0 | L151: 0 | M151: 0 | N151: 0 | O151: 0
K152: 0 | L152: 0 | M152: 0 | N152: 0 | O152: 0
K153: 0 | L153: 0 | M153: 0 | N153: 0 | O153: 0
K154: 0 | L154: 0 | M154: 0 | N154: 0 | O154: 0
K155: =IF($S45="",K45,"") -> 0 | L155: 0 | M155: 0 | N155: 0 | O155: 0
K156: 0 | L156: 0 | M156: 0 | N156: 0 | O156: 0
K157: 0 | L157: 0 | M157: 0 | N157: 0 | O157: 0
K158: 0 | L158: 0 | M158: 0 | N158: 0 | O158: 0
K159: 0 | L159: 0 | M159: 0 | N159: 0 | O159: 0
K160: 0 | L160: 0 | M160: 0 | N160: 0 | O160: 0
K161: 0 | L161: 0 | M161: 0 | N161: 0 | O161: 0
K162: 0 | L162: 0 | M162: 0 | N162: 0 | O162: 0
K163: 0 | L163: 0 | M163: 0 | N163: 0 | O163: 0
K164: 0 | L164: 0 | M164: 0 | N164: 0 | O164: 0
K165: 0 | L165: 0 | M165: 0 | N165: 0 | O165: 0
K166: =SUM(K139:K165) -> 0 | L166: 0 | M166: 0 | N166: 0 | O166: 0 | R166: 0
K167: PAX | L167: Lbs | M167: H2O | N167: Retard | O167: Foam | P167: Acct | Q167: Use | R167: Flight | S167: Non-
L168: Cargo | M168: Buckts | N168: Buckts | O168: Buckts | Q168: Code | R168: Time | S168: revenue
R169: Cost | S169: flight?
K177: =K69 -> 0

Sheet HCM-12 Pilot Duty Segovia
A1: ='Contract Info'!A1:G1 -> SuperManager v3.23 SEKI
A2: Pilot Name: | G2: Frank Segovia | AB2: Last Date(s) Off-Duty: | AL2: 5/17 & 5/18
A4: Flight Time or, Off, for the Last 5 Consecutive Days: | AG4: =M7-5 -> 2023-05-14 | AJ4: =M7-4 -> 2023-05-15 | AM4: =M7-3 -> 2023-05-16 | AP4: =M7-2 -> 2023-05-17 | AS4: =M7-1 -> 2023-05-18
AG5: 0 | AJ5: 0 | AM5: 0 | AP5: OFF | AS5: OFF
A7: Insert Dates of Next 7 Days: | M7: 2023-05-19 | R7: =M7+1 -> 2023-05-20 | W7: =R7+1 -> 2023-05-21 | AB7: =W7+1 -> 2023-05-22 | AG7: =AB7+1 -> 2023-05-23 | AL7: =AG7+1 -> 2023-05-24 | AQ7: =AL7+1 -> 2023-05-25
A8: Earliest Pilot Can Be On-Duty: | M8: 400.1666667 | R8: =IF(M12="","",SUM(M12+$AD$47)) -> 1.104166667 | W8: =IF(R12="","",SUM(R12+$AD$47)) ->  | AB8: =IF(W12="","",SUM(W12+$AD$47)) ->  | AG8: =IF(AB12="","",SUM(AB12+$AD$47)) ->  | AL8: =IF(AG12="","",SUM(AG12+$AD$47)) ->  | AQ8: =IF(AL12="","",SUM(AL12+$AD$47)) -> 
A9: Actual On-Duty Time (Including Preflight) | M9: 07:30:00
A10: Add 14 Hours For Maximum Duty Day | M10: + | N10: =$R$47 -> 14:00:00 | R10: + | S10: =$R$47 -> 14:00:00 | W10: + | X10: =$R$47 -> 14:00:00 | AB10: + | AC10: =$R$47 -> 14:00:00 | AG10: + | AH10: =$R$47 -> 14:00:00 | AL10: + | AM10: =$R$47 -> 14:00:00 | AQ10: + | AR10: =$R$47 -> 14:00:00
A11: Must Be Off-Duty At: | M11: =IF(M9="Off","off",IF(M9="","",SUM(M9+N10))) -> 21:30:00 | R11: =IF(R9="Off","off",IF(R9="","",SUM(R9+S10))) ->  | W11: =IF(W9="Off","off",IF(W9="","",SUM(W9+X10))) ->  | AB11: =IF(AB9="Off","off",IF(AB9="","",SUM(AB9+AC10))) ->  | AG11: =IF(AG9="Off","off",IF(AG9="","",SUM(AG9+AH10))) ->  | AL11: =IF(AL9="Off","off",IF(AL9="","",SUM(AL9+AM10))) ->  | AQ11: =IF(AQ9="Off","off",IF(AQ9="","",SUM(AQ9+AR10))) -> 
A12: Actual Off-Duty Time: | M12: 16:30:00
A13: Cumulative Flight Time Previous 5 Days: | M13: =IF(AS5="","",IF(AS5="Off","0",IF(AP5="Off",SUM(AS5),IF(AM5="Off",SUM(AP5:AU5),IF(AJ5="Off",SUM(AM5:AU5),IF(AG5="Off",SUM(AJ5:AU5),(SUM(AG5:AU5,)))))))) -> 0 | R13: =IF(N14="","",IF(N14="Off","0",IF(AS5="Off",SUM(N14),IF(AP5="Off",SUM(AS5+N14),IF(AM5="Off",SUM(AP5+AS5+N14),IF(AJ5="Off",SUM(AM5+AP5+AS5+N14),(SUM(AJ5+AM5+AP5+AS5+N14)))))))) ->  | W13: =IF(S14="","",IF(S14="Off","0",IF(N14="Off",SUM(S14),IF(AS5="Off",SUM(N14+S14),IF(AP5="Off",SUM(AS5+N14+S14),IF(AM5="Off",SUM(AP5+AS5+N14+S14),(SUM(AM5+AP5+AS5+N14+S14)))))))) ->  | AB13: =IF(X14="","",IF(X14="Off","0",IF(S14="Off",SUM(X14),IF(N14="Off",SUM(S14+X14),IF(AS5="Off",SUM(N14+S14+X14),IF(AP5="Off",SUM(AS5+N14+S14+X14),(SUM(AP5+AS5+N14+S14+X14)))))))) ->  | AG13: =IF(AC14="","",IF(AC14="Off","0",IF(X14="Off",SUM(AC14),IF(S14="Off",SUM(X14+AC14),IF(N14="Off",SUM(S14+X14+AC14),IF(AS5="Off",SUM(N14+S14+X14+AC14),(SUM(AS5+N14+S14+X14+AC14)))))))) ->  | AL13: =IF(AH14="","",IF(AH14="Off","0",IF(AC14="Off",SUM(AH14),IF(X14="Off",SUM(AC14+AH14),IF(S14="Off",SUM(X14+AC14+AH14),IF(N14="Off",SUM(S14+X14+AC14+AH14),(SUM(N14+S14+X14+AC14+AH14)))))))) ->  | AQ13: =IF(AM14="","",IF(AM14="Off","0",IF(AH14="Off",SUM(AM14),IF(AC14="Off",SUM(AH14+AM14),IF(X14="Off",SUM(AC14+AH14+AM14),IF(S14="Off",SUM(X14+AC14+AH14+AM14),(SUM(S14+X14+AC14+AH14+AM14)))))))) -> 
A14: Total Flight Time Today: | M14: + | R14: + | W14: + | AB14: + | AG14: + | AL14: + | AQ14: +
A15: Total Flight Time This 6-Day Period: | M15: =IF(N14="","",IF(N14="Off","0",SUM(M13+N14))) ->  | R15: =IF(S14="","",IF(S14="Off","0",SUM(R13+S14))) ->  | W15: =IF(X14="","",IF(X14="Off","0",SUM(W13+X14))) ->  | AB15: =IF(AC14="","",IF(AC14="Off","0",SUM(AB13+AC14))) ->  | AG15: =IF(AH14="","",IF(AH14="Off","0",SUM(AG13+AH14))) ->  | AL15: =IF(AM14="","",IF(AM14="Off","0",SUM(AL13+AM14))) ->  | AQ15: =IF(AR14="","",IF(AR14="Off","0",SUM(AQ13+AR14))) -> 
A17: Insert Dates of Next 7 Days: | M17: =AQ7+1 -> 2023-05-26 | R17: =M17+1 -> 2023-05-27 | W17: =R17+1 -> 2023-05-28 | AB17: =W17+1 -> 2023-05-29 | AG17: =AB17+1 -> 2023-05-30 | AL17: =AG17+1 -> 2023-05-31 | AQ17: =AL17+1 -> 2023-06-01
A18: Earliest Pilot Can Be On-Duty: | M18: =IF(AQ12="","",SUM(AQ12+$AD$47)) ->  | R18: =IF(M22="","",SUM(M22+$AD$47)) ->  | W18: =IF(R22="","",SUM(R22+$AD$47)) ->  | AB18: =IF(W22="","",SUM(W22+$AD$47)) ->  | AG18: =IF(AB22="","",SUM(AB22+$AD$47)) ->  | AL18: =IF(AG22="","",SUM(AG22+$AD$47)) ->  | AQ18: =IF(AL22="","",SUM(AL22+$AD$47)) -> 
A19: Actual On-Duty Time (Including Preflight)
A20: Add 14 Hours For Maximum Duty Day | M20: + | N20: =$R$47 -> 14:00:00 | R20: + | S20: =$R$47 -> 14:00:00 | W20: + | X20: =$R$47 -> 14:00:00 | AB20: + | AC20: =$R$47 -> 14:00:00 | AG20: + | AH20: =$R$47 -> 14:00:00 | AL20: + | AM20: =$R$47 -> 14:00:00 | AQ20: + | AR20: =$R$47 -> 14:00:00
A21: Must Be Off-Duty At: | M21: =IF(M19="Off","off",IF(M19="","",SUM(M19+N20))) ->  | R21: =IF(R19="Off","off",IF(R19="","",SUM(R19+S20))) ->  | W21: =IF(W19="Off","off",IF(W19="","",SUM(W19+X20))) ->  | AB21: =IF(AB19="Off","off",IF(AB19="","",SUM(AB19+AC20))) ->  | AG21: =IF(AG19="Off","off",IF(AG19="","",SUM(AG19+AH20))) ->  | AL21: =IF(AL19="Off","off",IF(AL19="","",SUM(AL19+AM20))) ->  | AQ21: =IF(AQ19="Off","off",IF(AQ19="","",SUM(AQ19+AR20))) -> 
A22: Actual Off-Duty Time:
A23: Cumulative Flight Time Previous 5 Days: | M23: =IF(AR14="","",IF(AR14="Off","0",IF(AM14="Off",SUM(AR14),IF(AH14="Off",SUM(AM14+AR14),IF(AC14="Off",SUM(AH14+AM14+AR14),IF(X14="Off",SUM(AC14+AH14+AM14+AR14),(SUM(X14+AC14+AH14+AM14+AR14)))))))) ->  | R23: =IF(N24="","",IF(N24="Off","0",IF(AR14="Off",SUM(N24),IF(AM14="Off",SUM(AR14+N24),IF(AH14="Off",SUM(AM14+AR14+N24),IF(AC14="Off",SUM(AH14+AM14+AR14+N24),(SUM(AC14+AH14+AM14+AR14+N24)))))))) ->  | W23: =IF(S24="","",IF(S24="Off","0",IF(N24="Off",SUM(S24),IF(AR14="Off",SUM(N24+S24),IF(AM14="Off",SUM(AR14+N24+S24),IF(AH14="Off",SUM(AM14+AR14+N24+S24),(SUM(AH14+AM14+AR14+N24+S24)))))))) ->  | AB23: =IF(X24="","",IF(X24="Off","0",IF(S24="Off",SUM(X24),IF(N24="Off",SUM(S24+X24),IF(AR14="Off",SUM(N24+S24+X24),IF(AM14="Off",SUM(AR14+N24+S24+X24),(SUM(AM14+AR14+N24+S24+X24)))))))) ->  | AG23: =IF(AC24="","",IF(AC24="Off","0",IF(X24="Off",SUM(AC24),IF(S24="Off",SUM(X24+AC24),IF(N24="Off",SUM(S24+X24+AC24),IF(AR14="Off",SUM(N24+S24+X24+AC24),(SUM(AR14+N24+S24+X24+AC24)))))))) ->  | AL23: =IF(AH24="","",IF(AH24="Off","0",IF(AC24="Off",SUM(AH24),IF(X24="Off",SUM(AC24+AH24),IF(S24="Off",SUM(X24+AC24+AH24),IF(N24="Off",SUM(S24+X24+AC24+AH24),(SUM(N24+S24+X24+AC24+AH24)))))))) ->  | AQ23: =IF(AM24="","",IF(AM24="Off","0",IF(AH24="Off",SUM(AM24),IF(AC24="Off",SUM(AH24+AM24),IF(X24="Off",SUM(AC24+AH24+AM24),IF(S24="Off",SUM(X24+AC24+AH24+AM24),(SUM(S24+X24+AC24+AH24+AM24)))))))) -> 
A24: Total Flight Time Today: | M24: + | R24: + | W24: + | AB24: + | AG24: + | AL24: + | AQ24: +
A25: Total Flight Time This 6-Day Period: | M25: =IF(N24="","",IF(N24="Off","0",SUM(M23+N24))) ->  | R25: =IF(S24="","",IF(S24="Off","0",SUM(R23+S24))) ->  | W25: =IF(X24="","",IF(X24="Off","0",SUM(W23+X24))) ->  | AB25: =IF(AC24="","",IF(AC24="Off","0",SUM(AB23+AC24))) ->  | AG25: =IF(AH24="","",IF(AH24="Off","0",SUM(AG23+AH24))) ->  | AL25: =IF(AM24="","",IF(AM24="Off","0",SUM(AL23+AM24))) ->  | AQ25: =IF(AR24="","",IF(AR24="Off","0",SUM(AQ23+AR24))) -> 
A27: Insert Dates of Next 7 Days: | M27: =AQ17+1 -> 2023-06-02 | R27: =M27+1 -> 2023-06-03 | W27: =R27+1 -> 2023-06-04 | AB27: =W27+1 -> 2023-06-05 | AG27: =AB27+1 -> 2023-06-06 | AL27: =AG27+1 -> 2023-06-07 | AQ27: =AL27+1 -> 2023-06-08
A28: Earliest Pilot Can Be On-Duty: | M28: =IF(AQ22="","",SUM(AQ22+$AD$47)) ->  | R28: =IF(M32="","",SUM(M32+$AD$47)) ->  | W28: =IF(R32="","",SUM(R32+$AD$47)) ->  | AB28: =IF(W32="","",SUM(W32+$AD$47)) ->  | AG28: =IF(AB32="","",SUM(AB32+$AD$47)) ->  | AL28: =IF(AG32="","",SUM(AG32+$AD$47)) ->  | AQ28: =IF(AL32="","",SUM(AL32+$AD$47)) -> 
A29: Actual On-Duty Time (Including Preflight)
A30: Add 14 Hours For Maximum Duty Day | M30: + | N30: =$R$47 -> 14:00:00 | R30: + | S30: =$R$47 -> 14:00:00 | W30: + | X30: =$R$47 -> 14:00:00 | AB30: + | AC30: =$R$47 -> 14:00:00 | AG30: + | AH30: =$R$47 -> 14:00:00 | AL30: + | AM30: =$R$47 -> 14:00:00 | AQ30: + | AR30: =$R$47 -> 14:00:00
A31: Must Be Off-Duty At: | M31: =IF(M29="Off","off",IF(M29="","",SUM(M29+N30))) ->  | R31: =IF(R29="Off","off",IF(R29="","",SUM(R29+S30))) ->  | W31: =IF(W29="Off","off",IF(W29="","",SUM(W29+X30))) ->  | AB31: =IF(AB29="Off","off",IF(AB29="","",SUM(AB29+AC30))) ->  | AG31: =IF(AG29="Off","off",IF(AG29="","",SUM(AG29+AH30))) ->  | AL31: =IF(AL29="Off","off",IF(AL29="","",SUM(AL29+AM30))) ->  | AQ31: =IF(AQ29="Off","off",IF(AQ29="","",SUM(AQ29+AR30))) -> 
A32: Actual Off-Duty Time:
A33: Cumulative Flight Time Previous 5 Days: | M33: =IF(AR24="","",IF(AR24="Off","0",IF(AM24="Off",SUM(AR24),IF(AH24="Off",SUM(AM24+AR24),IF(AC24="Off",SUM(AH24+AM24+AR24),IF(X24="Off",SUM(AC24+AH24+AM24+AR24),(SUM(X24+AC24+AH24+AM24+AR24)))))))) ->  | R33: =IF(N34="","",IF(N34="Off","0",IF(AR24="Off",SUM(N34),IF(AM24="Off",SUM(AR24+N34),IF(AH24="Off",SUM(AM24+AR24+N34),IF(AC24="Off",SUM(AH24+AM24+AR24+N34),(SUM(AC24+AH24+AM24+AR24+N34)))))))) ->  | W33: =IF(S34="","",IF(S34="Off","0",IF(N34="Off",SUM(S34),IF(AR24="Off",SUM(N34+S34),IF(AM24="Off",SUM(AR24+N34+S34),IF(AH24="Off",SUM(AM24+AR24+N34+S34),(SUM(AH24+AM24+AR24+N34+S34)))))))) ->  | AB33: =IF(X34="","",IF(X34="Off","0",IF(S34="Off",SUM(X34),IF(N34="Off",SUM(S34+X34),IF(AR24="Off",SUM(N34+S34+X34),IF(AM24="Off",SUM(AR24+N34+S34+X34),(SUM(AM24+AR24+N34+S34+X34)))))))) ->  | AG33: =IF(AC34="","",IF(AC34="Off","0",IF(X34="Off",SUM(AC34),IF(S34="Off",SUM(X34+AC34),IF(N34="Off",SUM(S34+X34+AC34),IF(AR24="Off",SUM(N34+S34+X34+AC34),(SUM(AR24+N34+S34+X34+AC34)))))))) ->  | AL33: =IF(AH34="","",IF(AH34="Off","0",IF(AC34="Off",SUM(AH34),IF(X34="Off",SUM(AC34+AH34),IF(S34="Off",SUM(X34+AC34+AH34),IF(N34="Off",SUM(S34+X34+AC34+AH34),(SUM(N34+S34+X34+AC34+AH34)))))))) ->  | AQ33: =IF(AM34="","",IF(AM34="Off","0",IF(AH34="Off",SUM(AM34),IF(AC34="Off",SUM(AH34+AM34),IF(X34="Off",SUM(AC34+AH34+AM34),IF(S34="Off",SUM(X34+AC34+AH34+AM34),(SUM(S34+X34+AC34+AH34+AM34)))))))) -> 
A34: Total Flight Time Today: | M34: + | R34: + | W34: + | AB34: + | AG34: + | AL34: + | AQ34: +
A35: Total Flight Time This 6-Day Period: | M35: =IF(N34="","",IF(N34="Off","0",SUM(M33+N34))) ->  | R35: =IF(S34="","",IF(S34="Off","0",SUM(R33+S34))) ->  | W35: =IF(X34="","",IF(X34="Off","0",SUM(W33+X34))) ->  | AB35: =IF(AC34="","",IF(AC34="Off","0",SUM(AB33+AC34))) ->  | AG35: =IF(AH34="","",IF(AH34="Off","0",SUM(AG33+AH34))) ->  | AL35: =IF(AM34="","",IF(AM34="Off","0",SUM(AL33+AM34))) ->  | AQ35: =IF(AR34="","",IF(AR34="Off","0",SUM(AQ33+AR34))) -> 
A37: Insert Dates of Next 7 Days: | M37: =AQ27+1 -> 2023-06-09 | R37: =M37+1 -> 2023-06-10 | W37: =R37+1 -> 2023-06-11 | AB37: =W37+1 -> 2023-06-12 | AG37: =AB37+1 -> 2023-06-13 | AL37: =AG37+1 -> 2023-06-14 | AQ37: =AL37+1 -> 2023-06-15
A38: Earliest Pilot Can Be On-Duty: | M38: =IF(AQ32="","",SUM(AQ32+$AD$47)) ->  | R38: =IF(M42="","",SUM(M42+$AD$47)) ->  | W38: =IF(R42="","",SUM(R42+$AD$47)) ->  | AB38: =IF(W42="","",SUM(W42+$AD$47)) ->  | AG38: =IF(AB42="","",SUM(AB42+$AD$47)) ->  | AL38: =IF(AG42="","",SUM(AG42+$AD$47)) ->  | AQ38: =IF(AL42="","",SUM(AL42+$AD$47)) -> 
A39: Actual On-Duty Time (Including Preflight)
A40: Add 14 Hours For Maximum Duty Day | M40: + | N40: =$R$47 -> 14:00:00 | R40: + | S40: =$R$47 -> 14:00:00 | W40: + | X40: =$R$47 -> 14:00:00 | AB40: + | AC40: =$R$47 -> 14:00:00 | AG40: + | AH40: =$R$47 -> 14:00:00 | AL40: + | AM40: =$R$47 -> 14:00:00 | AQ40: + | AR40: =$R$47 -> 14:00:00
A41: Must Be Off-Duty At: | M41: =IF(M39="Off","off",IF(M39="","",SUM(M39+N40))) ->  | R41: =IF(R39="Off","off",IF(R39="","",SUM(R39+S40))) ->  | W41: =IF(W39="Off","off",IF(W39="","",SUM(W39+X40))) ->  | AB41: =IF(AB39="Off","off",IF(AB39="","",SUM(AB39+AC40))) ->  | AG41: =IF(AG39="Off","off",IF(AG39="","",SUM(AG39+AH40))) ->  | AL41: =IF(AL39="Off","off",IF(AL39="","",SUM(AL39+AM40))) ->  | AQ41: =IF(AQ39="Off","off",IF(AQ39="","",SUM(AQ39+AR40))) -> 
A42: Actual Off-Duty Time:
A43: Cumulative Flight Time Previous 5 Days: | M43: =IF(AR34="","",IF(AR34="Off","0",IF(AM34="Off",SUM(AR34),IF(AH34="Off",SUM(AM34+AR34),IF(AC34="Off",SUM(AH34+AM34+AR34),IF(X34="Off",SUM(AC34+AH34+AM34+AR34),(SUM(X34+AC34+AH34+AM34+AR34)))))))) ->  | R43: =IF(N44="","",IF(N44="Off","0",IF(AR34="Off",SUM(N44),IF(AM34="Off",SUM(AR34+N44),IF(AH34="Off",SUM(AM34+AR34+N44),IF(AC34="Off",SUM(AH34+AM34+AR34+N44),(SUM(AC34+AH34+AM34+AR34+N44)))))))) ->  | W43: =IF(S44="","",IF(S44="Off","0",IF(N44="Off",SUM(S44),IF(AR34="Off",SUM(N44+S44),IF(AM34="Off",SUM(AR34+N44+S44),IF(AH34="Off",SUM(AM34+AR34+N44+S44),(SUM(AH34+AM34+AR34+N44+S44)))))))) ->  | AB43: =IF(X44="","",IF(X44="Off","0",IF(S44="Off",SUM(X44),IF(N44="Off",SUM(S44+X44),IF(AR34="Off",SUM(N44+S44+X44),IF(AM34="Off",SUM(AR34+N44+S44+X44),(SUM(AM34+AR34+N44+S44+X44)))))))) ->  | AG43: =IF(AC44="","",IF(AC44="Off","0",IF(X44="Off",SUM(AC44),IF(S44="Off",SUM(X44+AC44),IF(N44="Off",SUM(S44+X44+AC44),IF(AR34="Off",SUM(N44+S44+X44+AC44),(SUM(AR34+N44+S44+X44+AC44)))))))) ->  | AL43: =IF(AH44="","",IF(AH44="Off","0",IF(AC44="Off",SUM(AH44),IF(X44="Off",SUM(AC44+AH44),IF(S44="Off",SUM(X44+AC44+AH44),IF(N44="Off",SUM(S44+X44+AC44+AH44),(SUM(N44+S44+X44+AC44+AH44)))))))) ->  | AQ43: =IF(AM44="","",IF(AM44="Off","0",IF(AH44="Off",SUM(AM44),IF(AC44="Off",SUM(AH44+AM44),IF(X44="Off",SUM(AC44+AH44+AM44),IF(S44="Off",SUM(X44+AC44+AH44+AM44),(SUM(S44+X44+AC44+AH44+AM44)))))))) -> 
A44: Total Flight Time Today: | M44: + | R44: + | W44: + | AB44: + | AG44: + | AL44: + | AQ44: +
A45: Total Flight Time This 6-Day Period: | M45: =IF(N44="","",IF(N44="Off","0",SUM(M43+N44))) ->  | R45: =IF(S44="","",IF(S44="Off","0",SUM(R43+S44))) ->  | W45: =IF(X44="","",IF(X44="Off","0",SUM(W43+X44))) ->  | AB45: =IF(AC44="","",IF(AC44="Off","0",SUM(AB43+AC44))) ->  | AG45: =IF(AH44="","",IF(AH44="Off","0",SUM(AG43+AH44))) ->  | AL45: =IF(AM44="","",IF(AM44="Off","0",SUM(AL43+AM44))) ->  | AQ45: =IF(AR44="","",IF(AR44="Off","0",SUM(AQ43+AR44))) -> 
A47: Max Flight Time: | G47: 8 | I47: *Hours | L47: Max Duty Day: | R47: 14:00:00 | T47: *Hours | W47: Min Rest Period: | AD47: 10:00:00 | AF47: *Hours | AJ47: Required Days Off: | AQ47: 2 Days in 14*
A49: A maximum of | F49: 42 | G49: * hours flight time may be flown during any consecutive six-day period. When a pilot accrues | AJ49: 36 | AK49: * or more flight hours in a
A50: consecutive six-day period, the pilot will be given the following full calendar day off-duty. Following any day-off, a new six-day cycle begins with 0 cumulative flight time.
A53: *DOI and USFS Standards. Other Agency Standards may vary.

Sheet HCM-13 Driver Sample
A1: ='Contract Info'!A1:G1 -> SuperManager v3.23 SEKI
A2: Driver Name: | I2: Mini Driver | AB2: Last Date(s) Off-Duty:
A4: Insert Dates of Next 7 Days: | R4: =M4+1 -> 1900-01-01 | W4: =R4+1 -> 1900-01-02 | AB4: =W4+1 -> 1900-01-03 | AG4: =AB4+1 -> 1900-01-04 | AL4: =AG4+1 -> 1900-01-05 | AQ4: =AL4+1 -> 1900-01-06
A5: Actual On-Duty Time
A6: Actual Off-Duty Time
A11: Insert Dates of Next 7 Days: | M11: =AQ4+1 -> 1900-01-07 | R11: =M11+1 -> 1900-01-08 | W11: =R11+1 -> 1900-01-09 | AB11: =W11+1 -> 1900-01-10 | AG11: =AB11+1 -> 1900-01-11 | AL11: =AG11+1 -> 1900-01-12 | AQ11: =AL11+1 -> 1900-01-13
A12: Actual On-Duty Time
A13: Actual Off-Duty Time
A18: Insert Dates of Next 7 Days: | M18: =AQ11+1 -> 1900-01-14 | R18: =M18+1 -> 1900-01-15 | W18: =R18+1 -> 1900-01-16 | AB18: =W18+1 -> 1900-01-17 | AG18: =AB18+1 -> 1900-01-18 | AL18: =AG18+1 -> 1900-01-19 | AQ18: =AL18+1 -> 1900-01-20
A19: Actual On-Duty Time
A20: Actual Off-Duty Time
A25: Insert Dates of Next 7 Days: | M25: =AQ18+1 -> 1900-01-21 | R25: =M25+1 -> 1900-01-22 | W25: =R25+1 -> 1900-01-23 | AB25: =W25+1 -> 1900-01-24 | AG25: =AB25+1 -> 1900-01-25 | AL25: =AG25+1 -> 1900-01-26 | AQ25: =AL25+1 -> 1900-01-27
A26: Actual On-Duty Time
A27: Actual Off-Duty Time
L32: Max Duty Day: | R32: per DOT | W32: Min Rest Period: | AD32: per DOT | AJ32: Required Days Off: | AQ32: 2 Days in 14*
A34: It is the Contractors’ responsibility to insure that employees comply with DOT Safety Regulation 49 CFR Part 390-399, including duty limitations. The fuel
A35: servicing vehicle driver will be responsible to keep the Government apprised of their ground duty limitation status. Notwithstanding DOT Safety Regulation
A36: 49 CFR Part 390-399, the fuel servicing vehicle driver shall have a minimum of two (2) full calendar days off duty during any 14-day period. Off duty days
A37: need not be consecutive.
A39: *DOI and USFS Standards. Other Agency Standards may vary.

Sheet HCM-14 Mechanic Duty Mechando
A1: ='Contract Info'!A1:G1 -> SuperManager v3.23 SEKI
A2: Mechanic Name: | I2: Fernando Mechando | AB2: Last Date(s) Off-Duty: | AL2: 5/16&5/17
A4: Insert Dates of Next 7 Days: | M4: 2022-05-19 | R4: =M4+1 -> 2022-05-20 | W4: =R4+1 -> 2022-05-21 | AB4: =W4+1 -> 2022-05-22 | AG4: =AB4+1 -> 2022-05-23 | AL4: =AG4+1 -> 2022-05-24 | AQ4: =AL4+1 -> 2022-05-25
A5: Earliest Mechanic Can Be On-Duty: | M5: 04:00:00 | R5: =IF(M9="","",SUM(M9+$AD$32)) -> 1.020833333 | W5: =IF(R9="","",SUM(R9+$AD$32)) ->  | AB5: =IF(W9="","",SUM(W9+$AD$32)) ->  | AG5: =IF(AB9="","",SUM(AB9+$AD$32)) ->  | AL5: =IF(AG9="","",SUM(AG9+$AD$32)) ->  | AQ5: =IF(AL9="","",SUM(AL9+$AD$32)) -> 
A6: Actual On-Duty Time (Including Preflight) | M6: 07:30:00
A7: Add 14 Hours For Maximum Duty Day | M7: + | N7: =$R$32 -> 16:00:00 | R7: + | S7: =$R$32 -> 16:00:00 | W7: + | X7: =$R$32 -> 16:00:00 | AB7: + | AC7: =$R$32 -> 16:00:00 | AG7: + | AH7: =$R$32 -> 16:00:00 | AL7: + | AM7: =$R$32 -> 16:00:00 | AQ7: + | AR7: =$R$32 -> 16:00:00
A8: Must Be Off-Duty At: | M8: =IF(M6="Off","off",IF(M6="","",SUM(M6+N7))) -> 23:30:00 | R8: =IF(R6="Off","off",IF(R6="","",SUM(R6+S7))) ->  | W8: =IF(W6="Off","off",IF(W6="","",SUM(W6+X7))) ->  | AB8: =IF(AB6="Off","off",IF(AB6="","",SUM(AB6+AC7))) ->  | AG8: =IF(AG6="Off","off",IF(AG6="","",SUM(AG6+AH7))) ->  | AL8: =IF(AL6="Off","off",IF(AL6="","",SUM(AL6+AM7))) ->  | AQ8: =IF(AQ6="Off","off",IF(AQ6="","",SUM(AQ6+AR7))) -> 
A9: Actual Off-Duty Time: | M9: 16:30:00
A11: Insert Dates of Next 7 Days: | M11: =AQ4+1 -> 2022-05-26 | R11: =M11+1 -> 2022-05-27 | W11: =R11+1 -> 2022-05-28 | AB11: =W11+1 -> 2022-05-29 | AG11: =AB11+1 -> 2022-05-30 | AL11: =AG11+1 -> 2022-05-31 | AQ11: =AL11+1 -> 2022-06-01
A12: Earliest Mechanic Can Be On-Duty: | M12: =IF(AQ9="","",SUM(AQ9+$AD$32)) ->  | R12: =IF(M16="","",SUM(M16+$AD$32)) ->  | W12: =IF(R16="","",SUM(R16+$AD$32)) ->  | AB12: =IF(W16="","",SUM(W16+$AD$32)) ->  | AG12: =IF(AB16="","",SUM(AB16+$AD$32)) ->  | AL12: =IF(AG16="","",SUM(AG16+$AD$32)) ->  | AQ12: =IF(AL16="","",SUM(AL16+$AD$32)) -> 
A13: Actual On-Duty Time (Including Preflight)
A14: Add 14 Hours For Maximum Duty Day | M14: + | N14: =$R$32 -> 16:00:00 | R14: + | S14: =$R$32 -> 16:00:00 | W14: + | X14: =$R$32 -> 16:00:00 | AB14: + | AC14: =$R$32 -> 16:00:00 | AG14: + | AH14: =$R$32 -> 16:00:00 | AL14: + | AM14: =$R$32 -> 16:00:00 | AQ14: + | AR14: =$R$32 -> 16:00:00
A15: Must Be Off-Duty At: | M15: =IF(M13="Off","off",IF(M13="","",SUM(M13+N14))) ->  | R15: =IF(R13="Off","off",IF(R13="","",SUM(R13+S14))) ->  | W15: =IF(W13="Off","off",IF(W13="","",SUM(W13+X14))) ->  | AB15: =IF(AB13="Off","off",IF(AB13="","",SUM(AB13+AC14))) ->  | AG15: =IF(AG13="Off","off",IF(AG13="","",SUM(AG13+AH14))) ->  | AL15: =IF(AL13="Off","off",IF(AL13="","",SUM(AL13+AM14))) ->  | AQ15: =IF(AQ13="Off","off",IF(AQ13="","",SUM(AQ13+AR14))) -> 
A16: Actual Off-Duty Time:
A18: Insert Dates of Next 7 Days: | M18: =AQ11+1 -> 2022-06-02 | R18: =M18+1 -> 2022-06-03 | W18: =R18+1 -> 2022-06-04 | AB18: =W18+1 -> 2022-06-05 | AG18: =AB18+1 -> 2022-06-06 | AL18: =AG18+1 -> 2022-06-07 | AQ18: =AL18+1 -> 2022-06-08
A19: Earliest Mechanic Can Be On-Duty: | M19: =IF(AQ16="","",SUM(AQ16+$AD$32)) ->  | R19: =IF(M23="","",SUM(M23+$AD$32)) ->  | W19: =IF(R23="","",SUM(R23+$AD$32)) ->  | AB19: =IF(W23="","",SUM(W23+$AD$32)) ->  | AG19: =IF(AB23="","",SUM(AB23+$AD$32)) ->  | AL19: =IF(AG23="","",SUM(AG23+$AD$32)) ->  | AQ19: =IF(AL23="","",SUM(AL23+$AD$32)) -> 
A20: Actual On-Duty Time (Including Preflight)
A21: Add 14 Hours For Maximum Duty Day | M21: + | N21: =$R$32 -> 16:00:00 | R21: + | S21: =$R$32 -> 16:00:00 | W21: + | X21: =$R$32 -> 16:00:00 | AB21: + | AC21: =$R$32 -> 16:00:00 | AG21: + | AH21: =$R$32 -> 16:00:00 | AL21: + | AM21: =$R$32 -> 16:00:00 | AQ21: + | AR21: =$R$32 -> 16:00:00
A22: Must Be Off-Duty At: | M22: =IF(M20="Off","off",IF(M20="","",SUM(M20+N21))) ->  | R22: =IF(R20="Off","off",IF(R20="","",SUM(R20+S21))) ->  | W22: =IF(W20="Off","off",IF(W20="","",SUM(W20+X21))) ->  | AB22: =IF(AB20="Off","off",IF(AB20="","",SUM(AB20+AC21))) ->  | AG22: =IF(AG20="Off","off",IF(AG20="","",SUM(AG20+AH21))) ->  | AL22: =IF(AL20="Off","off",IF(AL20="","",SUM(AL20+AM21))) ->  | AQ22: =IF(AQ20="Off","off",IF(AQ20="","",SUM(AQ20+AR21))) -> 
A23: Actual Off-Duty Time:
A25: Insert Dates of Next 7 Days: | M25: =AQ18+1 -> 2022-06-09 | R25: =M25+1 -> 2022-06-10 | W25: =R25+1 -> 2022-06-11 | AB25: =W25+1 -> 2022-06-12 | AG25: =AB25+1 -> 2022-06-13 | AL25: =AG25+1 -> 2022-06-14 | AQ25: =AL25+1 -> 2022-06-15
A26: Earliest Mechanic Can Be On-Duty: | M26: =IF(AQ23="","",SUM(AQ23+$AD$32)) ->  | R26: =IF(M30="","",SUM(M30+$AD$32)) ->  | W26: =IF(R30="","",SUM(R30+$AD$32)) ->  | AB26: =IF(W30="","",SUM(W30+$AD$32)) ->  | AG26: =IF(AB30="","",SUM(AB30+$AD$32)) ->  | AL26: =IF(AG30="","",SUM(AG30+$AD$32)) ->  | AQ26: =IF(AL30="","",SUM(AL30+$AD$32)) -> 
A27: Actual On-Duty Time (Including Preflight)
A28: Add 14 Hours For Maximum Duty Day | M28: + | N28: =$R$32 -> 16:00:00 | R28: + | S28: =$R$32 -> 16:00:00 | W28: + | X28: =$R$32 -> 16:00:00 | AB28: + | AC28: =$R$32 -> 16:00:00 | AG28: + | AH28: =$R$32 -> 16:00:00 | AL28: + | AM28: =$R$32 -> 16:00:00 | AQ28: + | AR28: =$R$32 -> 16:00:00
A29: Must Be Off-Duty At: | M29: =IF(M27="Off","off",IF(M27="","",SUM(M27+N28))) ->  | R29: =IF(R27="Off","off",IF(R27="","",SUM(R27+S28))) ->  | W29: =IF(W27="Off","off",IF(W27="","",SUM(W27+X28))) ->  | AB29: =IF(AB27="Off","off",IF(AB27="","",SUM(AB27+AC28))) ->  | AG29: =IF(AG27="Off","off",IF(AG27="","",SUM(AG27+AH28))) ->  | AL29: =IF(AL27="Off","off",IF(AL27="","",SUM(AL27+AM28))) ->  | AQ29: =IF(AQ27="Off","off",IF(AQ27="","",SUM(AQ27+AR28))) -> 
A30: Actual Off-Duty Time:
L32: Max Duty Day: | R32: 16:00:00 | T32: *Hours | W32: Min Rest Period: | AD32: 08:00:00 | AF32: *Hours | AJ32: Required Days Off: | AQ32: 2 Days in 14*
A38: *DOI and USFS Standards. Other Agency Standards may vary.

Sheet HCM-2-Pre-Use Checklist
A1: ='Contract Info'!A1:G1 -> SuperManager v3.23 SEKI
A2: General
A3: Date: | D3: 2021-05-02 | H3: Aircraft Make/Model: | O3: ='Contract Info'!D4 -> Airbus H-125 | AA3: N#: | AC3: ='Contract Info'!D3 -> N836TJ
A4: Vendor: | D4: ='Contract Info'!D8:F8 -> Butterfly Airways, Inc. | Z4: Equipped Weight: | AF4: ='Contract Info'!D32 -> 0
A5: Pilot(s) Name(s):
A6: Card Expiration Date(s):
A7: Pilot(s) Carded for Intended Mission(s): | N7: Yes: | R7: No: | V7: Mech | AB7: Yes: | AF7: No:
A8: A/C Card Expiration Date: | P8: A/C Carded For Intended Mission(s): | AB8: Yes: | AF8: No:
A9: Departure Base: | Q9: Departure HOBBS: | AA9: Arrival HOBBS:
A10: Copy Of Contract Onboard A/C: | L10: Yes: | P10: No: | T10: HazMat HB/Exemption/ERG: | AB10: Yes: | AF10: No:
A12: Logbook Review
A13: 50/100-Hour, Progressive, Or Other Inspection Program Up-To-Date: | AB13: Yes: | AF13: No:
A14: Entries Indicating Damage to Aircraft: | AB14: Yes: | AF14: No:
A15: Form HCM-5 "Turbine Engine Performance Analysis" Onboard Aircraft: | AB15: Yes: | AF15: No:
A16: Power Check Completed/Results Satisfactory: | AB16: Yes: | AF16: No:
A17: Comments:
A20: Condition Of Helicopter
A21: Item | H21: OK | J21: Document Inoperable Or Damaged Equipment (Dents, Tears, Leaks, Etc.)
A22: Skin and Exterior
A23: Windows
A24: Doors
A25: Upholstery
A26: Cargo Compartment
A27: Skids/Wheels
A28: Fixed Tank
A29: Other
A30: Comments:
A33: Required Helicopter Equipment Installed And Operative (Consult Contract)
A34: Item | N34: Yes | P34: No | R34: Item | AF34: Yes | AH34: No
A35: Seat Belts And Harnesses | R35: Strobe Light(s)
A36: Hi-Visibility Paint On Main Rotor Blades | R36: Survival Kit
A37: 9600 Channel Radio | R37: First Aid Kit
A38: VHF-AM 720-Channel Radio | R38: Fire Extinguisher(s)
A39: Auxiliary Radio Adapter | R39: Cargo Hook
A40: GPS | R40: Convex Mirror
A41: High Skid Gear | R41: Buckets (Appropriate Sizes)
A42: Nine-Pin Plug (Type III Helicopters Only) | R42: Anti-Theft Security Measures in Place
A43: Comments:
A46: Required Service Truck Equipment Installed And Operative (Consult Contract)
A47: Item | N47: Yes | P47: No | R47: Item | AF47: Yes | AH47: No
A48: Spare Set Of Filters | R48: Filter Change Date Placarded
A49: Fire Extinguisher(s)/Current Inspection | R49: Bonding Cables
A50: HazMat Marking And Placards | R50: Fuel Quality Control Log
A51: Inspection Sticker | R51: Absorbent Materials For Spills
A52: Beginning Odometer Reading:
A53: Comments:
A56: Signatures of: Inspecting Govt. Representative & Pilot | U56: Print Name | AF56: Date

Sheet HCM-4 Power Check
A1: ='Contract Info'!A1:G1 -> SuperManager v3.23 SEKI
A2: HELICOPTER TURBINE ENGINE POWER CHECK
A3: Date: | H3: Aircraft Make/Model: | N3: ='Contract Info'!D4 -> Airbus H-125 | AA3: N#: | AC3: ='Contract Info'!D3 -> N836TJ
A4: Pilot: | R4: Vendor: | V4: ='Contract Info'!D8 -> Butterfly Airways, Inc.
A5: *Item | H5: Value | R5: HOBBS Meter:
A6: Engine # | H6: #1 | M6: #2 | R6: Type of Check:
A7: OAT: | R7: Power Check
A8: PA:
A9: Torque: | M9: - | R9: Performance Reading
A10: T.O.T. / T4 | M10: - | R10: 0 | AA10: 0
A11: N1/NG: | M11: -
A12: N2: | M12: - | R12: Chart Reading:
A13: EGT: | M13: - | R13: 0 | AA13: 0
A14: NR | M14: -
R15: Margin Difference:
A16: Correction Factor: | R16: =SUM(R10-R13) -> 0 | AA16: =SUM(AA10-AA13) -> 0
A21: *Use only items applicable to type of helicopter | X21: HCM-4 SuperManager v1.9 *OPTIONAL

Sheet HCM-5 Trend Analysis
A1: ='Contract Info'!A1:G1 -> SuperManager v3.23 SEKI
A2: TURBINE ENGINE PERFORMANCE TREND ANALYSIS
A3: Helicopter N# : | H3: ='Contract Info'!D3 -> N836TJ | N3: Make/Model: | S3: ='Contract Info'!D4 -> Airbus H-125 | AH3: Engines # : | AL3: 1 | AO3: 2
A4: >15 | F4: =IF(E$33>1000,"",IF(E$33>$A5,"X","")) ->  | G4: =IF(G$33>1000,"",IF(G$33>$A5,"X","")) ->  | J4: =IF(I$33>1000,"",IF(I$33>$A5,"X","")) ->  | K4: =IF(K$33>1000,"",IF(K$33>$A5,"X","")) ->  | N4: =IF(M$33>1000,"",IF(M$33>$A5,"X","")) ->  | O4: =IF(O$33>1000,"",IF(O$33>$A5,"X","")) ->  | R4: =IF(Q$33>1000,"",IF(Q$33>$A5,"X","")) ->  | S4: =IF(S$33>1000,"",IF(S$33>$A5,"X","")) ->  | V4: =IF(U$33>1000,"",IF(U$33>$A5,"X","")) ->  | W4: =IF(W$33>1000,"",IF(W$33>$A5,"X","")) ->  | Z4: =IF(Y$33>1000,"",IF(Y$33>$A5,"X","")) ->  | AA4: =IF(AA$33>1000,"",IF(AA$33>$A5,"X","")) ->  | AD4: =IF(AC$33>1000,"",IF(AC$33>$A5,"X","")) ->  | AE4: =IF(AE$33>1000,"",IF(AE$33>$A5,"X","")) ->  | AH4: =IF(AG$33>1000,"",IF(AG$33>$A5,"X","")) ->  | AI4: =IF(AI$33>1000,"",IF(AI$33>$A5,"X","")) ->  | AL4: =IF(AK$33>1000,"",IF(AK$33>$A5,"X","")) ->  | AM4: =IF(AM$33>1000,"",IF(AM$33>$A5,"X","")) ->  | AP4: =IF(AO$33>1000,"",IF(AO$33>$A5,"X","")) ->  | AQ4: =IF(AQ$33>1000,"",IF(AQ$33>$A5,"X","")) -> 
A5: 15 | F5: =IF(E$33=$A5,"X","") ->  | G5: =IF(G$33=$A5,"X","") ->  | J5: =IF(I$33=$A5,"X","") ->  | K5: =IF(K$33=$A5,"X","") ->  | N5: =IF(M$33=$A5,"X","") ->  | O5: =IF(O$33=$A5,"X","") ->  | R5: =IF(Q$33=$A5,"X","") ->  | S5: =IF(S$33=$A5,"X","") ->  | V5: =IF(U$33=$A5,"X","") ->  | W5: =IF(W$33=$A5,"X","") ->  | Z5: =IF(Y$33=$A5,"X","") ->  | AA5: =IF(AA$33=$A5,"X","") ->  | AD5: =IF(AC$33=$A5,"X","") ->  | AE5: =IF(AE$33=$A5,"X","") ->  | AH5: =IF(AG$33=$A5,"X","") ->  | AI5: =IF(AI$33=$A5,"X","") ->  | AL5: =IF(AK$33=$A5,"X","") ->  | AM5: =IF(AM$33=$A5,"X","") ->  | AP5: =IF(AO$33=$A5,"X","") ->  | AQ5: =IF(AQ$33=$A5,"X","") -> 
A6: 14
A7: 13
A8: 12
A9: 11
A10: 10
A11: 9
A12: 8
A13: 7
A14: 6
A15: 5
A16: 4
A17: 3
A18: 2
A19: 1 | B19: or Correct | F19: =IF(E$33=1,"X",IF(E$33="c","X",IF(E$33="correct","X",IF(E$33="cor","X",IF(E$33="corr","X",IF(E$33="co","X","")))))) ->  | G19: =IF(G$33=1,"X",IF(G$33="c","X",IF(G$33="correct","X",IF(G$33="cor","X",IF(G$33="corr","X",IF(G$33="co","X","")))))) ->  | J19: =IF(I$33=1,"X",IF(I$33="c","X",IF(I$33="correct","X",IF(I$33="cor","X",IF(I$33="corr","X",IF(I$33="co","X","")))))) ->  | K19: =IF(K$33=1,"X",IF(K$33="c","X",IF(K$33="correct","X",IF(K$33="cor","X",IF(K$33="corr","X",IF(K$33="co","X","")))))) ->  | N19: =IF(M$33=1,"X",IF(M$33="c","X",IF(M$33="correct","X",IF(M$33="cor","X",IF(M$33="corr","X",IF(M$33="co","X","")))))) ->  | O19: =IF(O$33=1,"X",IF(O$33="c","X",IF(O$33="correct","X",IF(O$33="cor","X",IF(O$33="corr","X",IF(O$33="co","X","")))))) ->  | R19: =IF(Q$33=1,"X",IF(Q$33="c","X",IF(Q$33="correct","X",IF(Q$33="cor","X",IF(Q$33="corr","X",IF(Q$33="co","X","")))))) ->  | S19: =IF(S$33=1,"X",IF(S$33="c","X",IF(S$33="correct","X",IF(S$33="cor","X",IF(S$33="corr","X",IF(S$33="co","X","")))))) ->  | V19: =IF(U$33=1,"X",IF(U$33="c","X",IF(U$33="correct","X",IF(U$33="cor","X",IF(U$33="corr","X",IF(U$33="co","X","")))))) ->  | W19: =IF(W$33=1,"X",IF(W$33="c","X",IF(W$33="correct","X",IF(W$33="cor","X",IF(W$33="corr","X",IF(W$33="co","X","")))))) ->  | Z19: =IF(Y$33=1,"X",IF(Y$33="c","X",IF(Y$33="correct","X",IF(Y$33="cor","X",IF(Y$33="corr","X",IF(Y$33="co","X","")))))) ->  | AA19: =IF(AA$33=1,"X",IF(AA$33="c","X",IF(AA$33="correct","X",IF(AA$33="cor","X",IF(AA$33="corr","X",IF(AA$33="co","X","")))))) ->  | AD19: =IF(AC$33=1,"X",IF(AC$33="c","X",IF(AC$33="correct","X",IF(AC$33="cor","X",IF(AC$33="corr","X",IF(AC$33="co","X","")))))) ->  | AE19: =IF(AE$33=1,"X",IF(AE$33="c","X",IF(AE$33="correct","X",IF(AE$33="cor","X",IF(AE$33="corr","X",IF(AE$33="co","X","")))))) ->  | AH19: =IF(AG$33=1,"X",IF(AG$33="c","X",IF(AG$33="correct","X",IF(AG$33="cor","X",IF(AG$33="corr","X",IF(AG$33="co","X","")))))) ->  | AI19: =IF(AI$33=1,"X",IF(AI$33="c","X",IF(AI$33="correct","X",IF(AI$33="cor","X",IF(AI$33="corr","X",IF(AI$33="co","X","")))))) ->  | AL19: =IF(AK$33=1,"X",IF(AK$33="c","X",IF(AK$33="correct","X",IF(AK$33="cor","X",IF(AK$33="corr","X",IF(AK$33="co","X","")))))) ->  | AM19: =IF(AM$33=1,"X",IF(AM$33="c","X",IF(AM$33="correct","X",IF(AM$33="cor","X",IF(AM$33="corr","X",IF(AM$33="co","X","")))))) ->  | AP19: =IF(AO$33=1,"X",IF(AO$33="c","X",IF(AO$33="correct","X",IF(AO$33="cor","X",IF(AO$33="corr","X",IF(AO$33="co","X","")))))) ->  | AQ19: =IF(AQ$33=1,"X",IF(AQ$33="c","X",IF(AQ$33="correct","X",IF(AQ$33="cor","X",IF(AQ$33="corr","X",IF(AQ$33="co","X","")))))) -> 
A20: 0 | B20: / min spec | F20: =IF(E$33=0,"X","") -> X | G20: =IF(G$33=0,"X","") -> X | J20: =IF(I$33=0,"X","") -> X | K20: =IF(K$33=0,"X","") -> X | N20: =IF(M$33=0,"X","") -> X | O20: =IF(O$33=0,"X","") -> X | R20: =IF(Q$33=0,"X","") -> X | S20: =IF(S$33=0,"X","") -> X | V20: =IF(U$33=0,"X","") -> X | W20: =IF(W$33=0,"X","") -> X | Z20: =IF(Y$33=0,"X","") -> X | AA20: =IF(AA$33=0,"X","") -> X | AD20: =IF(AC$33=0,"X","") -> X | AE20: =IF(AE$33=0,"X","") -> X | AH20: =IF(AG$33=0,"X","") -> X | AI20: =IF(AI$33=0,"X","") -> X | AL20: =IF(AK$33=0,"X","") -> X | AM20: =IF(AM$33=0,"X","") -> X | AP20: =IF(AO$33=0,"X","") -> X | AQ20: =IF(AQ$33=0,"X","") -> X
A21: <0 | B21: or Incorrect | F21: =IF(E$33<0,"X",IF(E$33="i","X",IF(E$33="incorrect","X",IF(E$33="in","X",IF(E$33="inc","X",""))))) ->  | G21: =IF(G$33<0,"X",IF(G$33="i","X",IF(G$33="incorrect","X",IF(G$33="in","X",IF(G$33="inc","X",""))))) ->  | J21: =IF(I$33<0,"X",IF(I$33="i","X",IF(I$33="incorrect","X",IF(I$33="in","X",IF(I$33="inc","X",""))))) ->  | K21: =IF(K$33<0,"X",IF(K$33="i","X",IF(K$33="incorrect","X",IF(K$33="in","X",IF(K$33="inc","X",""))))) ->  | N21: =IF(M$33<0,"X",IF(M$33="i","X",IF(M$33="incorrect","X",IF(M$33="in","X",IF(M$33="inc","X",""))))) ->  | O21: =IF(O$33<0,"X",IF(O$33="i","X",IF(O$33="incorrect","X",IF(O$33="in","X",IF(O$33="inc","X",""))))) ->  | R21: =IF(Q$33<0,"X",IF(Q$33="i","X",IF(Q$33="incorrect","X",IF(Q$33="in","X",IF(Q$33="inc","X",""))))) ->  | S21: =IF(S$33<0,"X",IF(S$33="i","X",IF(S$33="incorrect","X",IF(S$33="in","X",IF(S$33="inc","X",""))))) ->  | V21: =IF(U$33<0,"X",IF(U$33="i","X",IF(U$33="incorrect","X",IF(U$33="in","X",IF(U$33="inc","X",""))))) ->  | W21: =IF(W$33<0,"X",IF(W$33="i","X",IF(W$33="incorrect","X",IF(W$33="in","X",IF(W$33="inc","X",""))))) ->  | Z21: =IF(Y$33<0,"X",IF(Y$33="i","X",IF(Y$33="incorrect","X",IF(Y$33="in","X",IF(Y$33="inc","X",""))))) ->  | AA21: =IF(AA$33<0,"X",IF(AA$33="i","X",IF(AA$33="incorrect","X",IF(AA$33="in","X",IF(AA$33="inc","X",""))))) ->  | AD21: =IF(AC$33<0,"X",IF(AC$33="i","X",IF(AC$33="incorrect","X",IF(AC$33="in","X",IF(AC$33="inc","X",""))))) ->  | AE21: =IF(AE$33<0,"X",IF(AE$33="i","X",IF(AE$33="incorrect","X",IF(AE$33="in","X",IF(AE$33="inc","X",""))))) ->  | AH21: =IF(AG$33<0,"X",IF(AG$33="i","X",IF(AG$33="incorrect","X",IF(AG$33="in","X",IF(AG$33="inc","X",""))))) ->  | AI21: =IF(AI$33<0,"X",IF(AI$33="i","X",IF(AI$33="incorrect","X",IF(AI$33="in","X",IF(AI$33="inc","X",""))))) ->  | AL21: =IF(AK$33<0,"X",IF(AK$33="i","X",IF(AK$33="incorrect","X",IF(AK$33="in","X",IF(AK$33="inc","X",""))))) ->  | AM21: =IF(AM$33<0,"X",IF(AM$33="i","X",IF(AM$33="incorrect","X",IF(AM$33="in","X",IF(AM$33="inc","X",""))))) ->  | AP21: =IF(AO$33<0,"X",IF(AO$33="i","X",IF(AO$33="incorrect","X",IF(AO$33="in","X",IF(AO$33="inc","X",""))))) ->  | AQ21: =IF(AQ$33<0,"X",IF(AQ$33="i","X",IF(AQ$33="incorrect","X",IF(AQ$33="in","X",IF(AQ$33="inc","X",""))))) -> 
A22: Date:
A23: HOBBS:
A24: OAT:
A25: PA:
A26: Engine:
A27: Torque:
A28: T.O.T / T4
A29: N1/NG:
A30: N2:
A31: EGT:
A32: NR
A33: Margin Difference
A34: Pilot Initials:
B36: Enter "Margin Difference" as a positive or negative number or as "correct" or "incorrect" for Eurocopter aircraft.
B37: ("c" may be substituted for "correct" and "i" may be substituted for "incorrect")

Sheet HCM-6 Helicopter Info
A1: ='Contract Info'!A1:G1 -> SuperManager v3.23 SEKI
A2: Date: | F2: Incident/Project Order #: | P2: Request #: | U2: Make/Model: | AE2: N #:
A3: 2022-03-23 | F3: ='Contract Info'!D36 -> 0 | P3: ='Contract Info'!D37 -> 0 | U3: ='Contract Info'!D4 -> Airbus H-125 | AE3: ='Contract Info'!D3 -> N836TJ
A4: Check One: | L4: Check One:
A5: Exclusive-Use Contract | L5: Type 1 Helicopter | U5: =IF('Contract Info'!D5=1,"x","") ->  | Z5: Color of A/C:
A6: Call-When-Needed | L6: Type 2 Helicopter | U6: =IF('Contract Info'!D5=2,"x","") -> 
A7: Agency-Owned | L7: Type 3 Helicopter | U7: =IF('Contract Info'!D5=3,"x","") -> x | Z7: Insured PAX Seats:
A8: Other (List) | L8: Limited/Restricted: | S8: YES | V8: NO
A10: Agency and Home Unit: | Z10: Phone # :
A11: COR Name: | I11: ='Contract Info'!D14 -> Marissa Terez | Z11: Phone # : | AD11: ='Contract Info'!D15 -> 559-565-8888
A12: CO Name: | I12: ='Contract Info'!D16 -> Shavonda Jamison | Z12: Phone # : | AD12: ='Contract Info'!D17 -> 202-618-7777
A13: Vendor Name/Contact: | I13: ='Contract Info'!D8 -> Butterfly Airways, Inc. | Z13: Phone # : | AD13: ='Contract Info'!D10 -> 928-638-9010
A15: Type Bucket/Fixed Tank | J15: Capacity | N15: Foam Injection | U15: Specific Capabilities
N16: YES | Q16: NO | U16: Longline/Remote Hook? | AC16: YES | AF16: NO
N17: YES | Q17: NO | U17: Carousel? | AC17: YES | AF17: NO
A18: Other Capabilities, Avionics, ETC: | U18: Cargo Letdown? | AC18: YES | AF18: NO
U19: Rappel? | AC19: YES | AF19: NO
U20: Short-Haul Rescue? | AC20: YES | AF20: NO
U21: Internal Litter Capable? | AC21: YES | AF21: NO
U22: Aerial Ignition - PSD? | AC22: YES | AF22: NO
U23: Aerial Ignition - Helitorch? | AC23: YES | AF23: NO
A26: Vendor Fuel Servicing Vehicle | M26: Government Helitender (Crew Chase Truck)
A27: Make/Model: | M27: Make/Model: | Y27: 4X4? | AC27: YES | AF27: NO
A28: License # and State: | M28: License # and State: | Y28: Trailer? | AC28: YES | AF28: NO
A29: Tank Capacity: | M29: Number of Seats: | Y29: Other:
A31: Hourly Flight Rate: | H31: Daily Availability Rate: | P31: Daily Flight Hours Guarantee: | AA31: # of Vendor Personnel:
A32: ='Contract Info'!D18 -> 1375 | H32: ='Contract Info'!D19 -> 3095 | P32: ='Contract Info'!D21 -> 0
A34: Maintenance and Vendor Crew Information
A35: Current HOBBS: | O35: Next Scheduled Maintenance Due at:
A36: Name & cell # | L36: Position (Pilot/Mechanic/Driver) | V36: Next Day Off | AC36: Date Relief Due In
A43: Vendor Personnel Lodging Site: | V43: Phone Number:
A44: Vendor Personnel Contact Name: | V44: Phone Number:
A45: GOV Helicopter Manager Name: | V45: Phone Number:
A46: Remarks

Sheet HCM-7 Crew Info
A1: ='Contract Info'!A1:G1 -> SuperManager v3.23 SEKI
A2: AIRCRAFT INCIDENT/PROJECT ORDER # : | R2: ='Contract Info'!D36 -> 0 | AE2: AIRCRAFT REQUEST # : | AP2: ='Contract Info'!D37 -> 0
A4: CREW NAME or RESOURCE ID # : | AE4: DATE FILED: | AP4: 2022-03-23
A6: TYPE of CREW: | K6: ATTACHED TO CONTRACT HELICOPTER (Enter Aircraft "A" Order/Request and Personnel Subordinate/Roster #
K7: (i.e. A-1.1) in the column next to each individual's name
K8: ATTACHED TO CWN HELICOPTER (Enter Overhead "O" Order/Request # in the column next to each Individual's name
A10: Name | I10: Order/ Request # | M10: Travel Method | Q10: Return to (City) | V10: Last Day Off | Z10: 1st Day On Assignment | AD10: Qualifications/Special Skills | AO10: Training Needs
A11: Helicopter Manager
A14: Assistant Manager
A17: Lead Crewperson
A20: Crewperson
A23: Crewperson
A26: Crewperson
A29: Crewperson
A32: Crewperson

Sheet HCM-16 Contractor Eval
A1: ='Contract Info'!A1:G1 -> SuperManager v3.23 SEKI
A2: To be completed at the end of your tour.
A3: This form is to improve the quality level of Call-When-Needed Helicopter Contracts. Your remarks will assist us in improving our interagency standards for CWN Helicopter Contracts and Contractors.
A4: Contractor's Name: | G4: ='Contract Info'!$D$8 -> Butterfly Airways, Inc. | P4: Contract #: | T4: ='Contract Info'!D6 -> 140D8021D0666 | AC4: A/C N# : | AF4: ='Contract Info'!$D$3 -> N836TJ
A5: Your Name: | P5: E-Mail: | AC5: Agency: | AF5: DOI-NPS
A6: Your Assignment Date: | N6: Release Date: | Y6: Phone # :
A8: 1 | B8: Was the helicopter kept neat and clean? | AD8: Yes | AE8: x | AG8: No
A11: DOES NOT MEET REQUIREMENTS | L11: 1 | O11: 2 | R11: 3 | U11: 4 | X11: 5 | AA11: EXCEEDS ALL REQUIREMENTS
A13: QUALITY COMMENTS:
A15: 2 | B15: Did the fuel truck provide reliable service? | AD15: Yes | AG15: No
A18: DOES NOT MEET REQUIREMENTS | L18: 1 | O18: 2 | R18: 3 | U18: 4 | X18: 5 | AA18: EXCEEDS ALL REQUIREMENTS
A20: QUALITY COMMENTS:
A22: 3 | B22: Did the company keep you fully informed on condition of the crew, helicopter, and fuel truck? | AD22: Yes | AG22: No
A25: DOES NOT MEET REQUIREMENTS | L25: 1 | O25: 2 | R25: 3 | U25: 4 | X25: 5 | AA25: EXCEEDS ALL REQUIREMENTS
A27: QUALITY COMMENTS:
A29: 4 | B29: Did the contractor abide by all provisions of the contract? | AD29: Yes | AG29: No
A32: DOES NOT MEET REQUIREMENTS | L32: 1 | O32: 2 | R32: 3 | U32: 4 | X32: 5 | AA32: EXCEEDS ALL REQUIREMENTS
A34: COST CONTROL COMMENTS:
A36: 5 | B36: Would you take your next assignment with this contractor? | AD36: Yes | AG36: No
A39: DOES NOT MEET REQUIREMENTS | L39: 1 | O39: 2 | R39: 3 | U39: 4 | X39: 5 | AA39: EXCEEDS ALL REQUIREMENTS
A41: COST CONTROL COMMENTS:
A43: 6 | B43: Was the crew and helicopter supported by the company in a timely manner? | AD43: Yes | AG43: No
A46: DOES NOT MEET REQUIREMENTS | L46: 1 | O46: 2 | R46: 3 | U46: 4 | X46: 5 | AA46: EXCEEDS ALL REQUIREMENTS
A48: TIMELINESS OF PERFORMANCE COMMENTS:
A50: 7 | B50: During any mechanical problems, were you informed of the problem and the progress of the work being done to fix the aircraft? | AD50: Yes | AG50: No
A53: DOES NOT MEET REQUIREMENTS | L53: 1 | O53: 2 | R53: 3 | U53: 4 | X53: 5 | AA53: EXCEEDS ALL REQUIREMENTS
A55: TIMELINESS OF PERFORMANCE COMMENTS:
A57: 8 | B57: Did the flight crew/fuel truck/mechanic arrive on time each day? | AD57: Yes | AG57: No
A60: DOES NOT MEET REQUIREMENTS | L60: 1 | O60: 2 | R60: 3 | U60: 4 | X60: 5 | AA60: EXCEEDS ALL REQUIREMENTS
A62: TIMELINESS OF PERFORMANCE COMMENTS:
A64: 9 | B64: Were crew changes handled with little or no confusion, and, was there a briefing between crew members being exchanged? | AD64: Yes | AG64: No
A67: DOES NOT MEET REQUIREMENTS | L67: 1 | O67: 2 | R67: 3 | U67: 4 | X67: 5 | AA67: EXCEEDS ALL REQUIREMENTS
A69: BUSINESS RELATIONS COMMENTS:
A71: 10 | B71: Were you treated like a preferred customer? | AD71: Yes | AG71: No
A74: DOES NOT MEET REQUIREMENTS | L74: 1 | O74: 2 | R74: 3 | U74: 4 | X74: 5 | AA74: EXCEEDS ALL REQUIREMENTS
A76: BUSINESS RELATIONS COMMENTS:
A78: Would you like someone to contact you about this contractor? | AD78: Yes | AG78: No
A80: Complete at the end of your assignment and FAX to contracting @ 208-387-5384 or email to jonturner@fs.fed.us

Sheet User Manual
A1: ='Contract Info'!A1:G1 -> SuperManager v3.23 SEKI
A2: User Manual
C4: SuperManager is a creation of Glenn Kessler. SuperManger version 2.4 is freeware.
C5: You can help improve SuperManager by suggesting changes and telling me about problems.
C6: This user manual is unprotected, so you may add notes here. You can also help by writing a section or subsection to
C7: benefit others as I have not spent time to do so.
C8: Contact info: Glenn Kessler mountainsavvy@gmail.com 503.780.9300
C9: Before you begin using SuperManager it is highly recommended that you save a copy of the original workbook and NEVER alter it. This will enable you to make fresh working copies from original as it is possible to unintentionally delete portions of the SuperManager workbook.
C13: A few key things to ensure are set within Excel to get full functionality when using SuperManager: * Avoid using the browser version of of Excel. Use the full version of Excel. More on this below. * Enable Macros * Enable Content * SuperManger will work to its full capacity only with macro-enabled Excel (.xlsm). Without macros working, the butons will not work. The button performs essential functions such as Create Next Day and Print Cost Summary.
C16: * Store your copies of SuperManager in a folder that is "trusted" folder so the macros work. Go to File > Options (scroll all the way to the bottom to find "Options") > Trust Center >Trust Center Settings > Trusted Locations > Add new location * Ensure your copy of Excel has the menu item Formulas set as follows: Formulas > Calculation Options > Automatic
C19: * Save a pristine copy of SuperManager so after you've bungled up your working copy, you can always start afresh. * While SuperManager will work in the browser version, it will not work correctly. From the browser version, you can get to the Desktop App by clicking on "Open in Desktop App" just below the green bar toward the top of the window. .
C22: Begin using SuperManager by filling in the fields of the Contract Info worksheet. This should be the first worksheet. Almost all other worksheets require information from fields you enter into the Contract Info worksheet.
C24: SuperManager is intended to be used to manage aircraft on a daily basis. In order to do this, you will want to enter your first day on the first green-tabbed worksheet (generally named by its date). From there you may create each subsequent day's worksheet from the previous day's worksheeet using the Create Next Day button.
C27: It is best to fully complete each day's worksheet prior to creating the next day's worksheet as the end hobbs, end odometer and a good deal of other data is used to "intelligently" initialize the next day.
C29: The background color of the fields in a worksheet denote what type of field it is.
C32: Field color coding
M33: no color | Q33: your information | Z33: enterable
M34: tan | Q34: calculated fields | Z34: unenterable
M35: aqua blue | Q35: form text | Z35: unenterable
M36: rose | Q36: signature field | Z36: unenterable
C38: When entering times, always enter in the format nn:nn where n is a number and be sure to INCLUDE THE COLON.
C39: This is a limitation of MS Excel.
C41: When you select the Print buton, you will be taken to a preview of the print you are about to make. Depending on the speed of your computer's processor it may take up to 15 seconds for this screen to appear. Be patient.
C43: Once the preview appears, if you find it acceptable select "Print", otherwise you may cancel the print by
C44: selecting "close" or hittin the Esc key.
C46: Writing manuals is not my favorite thing to do, so you write the rest and send it to me and I'll include it in future versions.
A51: USER:- Please make additions or changes and add any additional information that will help us stay consistent in gathering all the information needed as HMGBs. Most of this is based off how Glenn and MORA do things, so I'm fine with modifying it to whatever best meets our needs at SEKI.
A52: Not sure if you'd like to use the Task Order Totals, Contract Grand Totals Details/Overview and Fuel Apportionment Sheets?
A54: Using SuperManager here on my unit:
A56: This program can be used as little or as much as needed. If utilized to the max, it's essentially a one stop shop for most the documents we use as HMGBs, but it also gives up the ability to pick and chose whatever we want/need. (eg. Use a different cost summary instead of the one built into this program.)
A58: Naming convention we currently use is Date (DD-Month-YY, Park or Unit Acronym, incident or project leaving out the word Fire, SAR or Project which is specified by color.) eg. 5-July-22 SEKI Aquatics Amphitheater
A59: At the top of each page list the incident or project for that day or the breakout incident or project for a multi-incident/project day.
A61: Tabs should be named and colored consistently. We currently use:
A62: * Gray for Preparedness,
A63: * Purple for ALL (multiple incidents in a day),
A64: * Red for Fire,
A65: * Orange for SAR,
A66: * Green for projects and
A67: * Yellow for Training.
A69: Account or Agency in the cost summary should generally specify the name of the incident and account to be charged.
A71: Focus on entering all the information for a multi-incident day on the "ALL" page before breaking out the day between incidents/projects. Once the "ALL" page is completed then start to break out the day by pressing the "Copy Sheet" tab. Repeat this as many times as needed before starting the individual breakouts.
A72: When breaking out a multi-incident day into separate worksheets, be sure to adjust the extended standby, wilderness stats, cost summary, personnel costs and any other costs as appropriate for each incident/project break out.
A73: Add a "no" into the "Non-rev flight?" category of the flight log if you want to remove that flight leg from the total flight time in the cost summary for the that particular breakout.
A74: Add or remove a 1 under the "Qty" column and adjust the clock time to change the total hours of pilot/mechanic extended standby for that particular breakout.
A76: When creating the next day after a multi-incident day, try and remember to use the "ALL" sheet or at least the last sheet of the individual breakouts. This will ensure that the current Hobbs is transferred and will prevent extra work. If not, the Hobbs can always be modified on the new sheet.
A78: Most of the other information is pretty straight foward and uses/mirrors the standard HMGB forms.
A80: Avoid hardcoding dollar or time formulas, but instead use generic formulas that will remain if a correction or modification is made. This is especially true for the breakouts in multi-incident days.
A81: Rather than using "=" and selecting the field you want to get the value of, use "=sum(" and select the field you want the value of. Then add commas inbetween the fields until you're ready for the total.
A83: Avoid copying one field to another field with a different format or size or boarder. Instead click on the formula bar toward the top of the page and select part or all of the formula bar that you want.
A84: Hit ctrl-c (for copy) and then go to the formula bar of the field to which you want to copy to and hit ctrl-p (for paste).
A85: You can do the same by double clicking on the field you want to copy from and selecting that which you want to copy. Then use ctrl-c for copy. Double click on the field to paste to and use ctrl-p.
